Body Name,Body,Service Label,Service Code,CIPFA Detailed Expenditure Type,CIPFA Detailed Expenditure Code,Date,Transaction Number,Net Amount,Supplier Name
Nottinghamshire County Council,1111/1001,Children and Young People,CYP,Employee Related,ABA,26/09/2022,06-17438,"3,540.00",University Of Birmingham
Nottinghamshire County Council,1111/1001,Children and Young People,CYP,Premises Related,BAA,02/09/2022,06-10174,4592.73,ARC Property Services Partnership L
Nottinghamshire County Council,1111/1001,Children and Young People,CYP,Premises Related,BAA,06/09/2022,06-11008,4458.03,ARC Property Services Partnership L
Nottinghamshire County Council,1111/1001,Children and Young People,CYP,Premises Related,BAA,15/09/2022,06-13005,3000.49,ARC Property Services Partnership L
Nottinghamshire County Council,1111/1001,Children and Young People,CYP,Premises Related,BAA,22/09/2022,06-13379,6740.81,ARC Property Services Partnership L
Nottinghamshire County Council,1111/1001,Children and Young People,CYP,Premises Related,BAA,26/09/2022,06-15725,"3,389.08",ARC Property Services Partnership L
Nottinghamshire County Council,1111/1001,Children and Young People,CYP,Premises Related,BDA,01/09/2022,06-10008,"1,085.00",High Peak Borough Council
Nottinghamshire County Council,1111/1001,Children and Young People,CYP,Premises Related,BDA,01/09/2022,06-10011,886,Derbyshire Dales District Council
Nottinghamshire County Council,1111/1001,Children and Young People,CYP,Premises Related,BDA,01/09/2022,06-10014,"8,274.24",Ekmw Summit Centre
Nottinghamshire County Council,1111/1001,Children and Young People,CYP,Premises Related,BDA,01/09/2022,06-10019,920,Portland College
Nottinghamshire County Council,1111/1001,Children and Young People,CYP,Premises Related,BDA,01/09/2022,06-10024,"2,000.00",Royal Society for the Prot. of Bird
Nottinghamshire County Council,1111/1001,Children and Young People,CYP,Premises Related,BDA,06/09/2022,06-10979,7674.64,Calder Conferences Ltd
Nottinghamshire County Council,1111/1001,Children and Young People,CYP,Premises Related,BDA,07/09/2022,06-17322,8610.07,Tin Hat Centre
Nottinghamshire County Council,1111/1001,Children and Young People,CYP,Premises Related,BDA,08/09/2022,06-10026,13975,Kings C of E Primary Academy
Nottinghamshire County Council,1111/1001,Children and Young People,CYP,Premises Related,BDA,08/09/2022,06-17374,"2,526.26",SLM Fitness & Health Ltd (Everyone
Nottinghamshire County Council,1111/1001,Children and Young People,CYP,Premises Related,BEA,02/09/2022,06-10180,211026,Gedling Borough Council (Bus Rates
Nottinghamshire County Council,1111/1001,Children and Young People,CYP,Premises Related,BEA,02/09/2022,06-10187,359868,Att Of Earn/Bus Rates Bassetlaw D C
Nottinghamshire County Council,1111/1001,Children and Young People,CYP,Premises Related,BEA,02/09/2022,06-10193,"333,695.00",Mansfield District Council
Nottinghamshire County Council,1111/1001,Children and Young People,CYP,Premises Related,BEA,02/09/2022,06-10197,188631,Rushcliffe Borough Council
Nottinghamshire County Council,1111/1001,Children and Young People,CYP,Premises Related,BEA,02/09/2022,06-10202,330903.87,Ashfield District Council
Nottinghamshire County Council,1111/1001,Children and Young People,CYP,Premises Related,BEA,02/09/2022,06-10207,214373.2,Newark & Sherwood District Council
Nottinghamshire County Council,1111/1001,Children and Young People,CYP,Premises Related,BEA,02/09/2022,06-10222,203218.5,Broxtowe Borough Council
Nottinghamshire County Council,1111/1001,Children and Young People,CYP,Premises Related,BEA,21/09/2022,06-13309,"4,746.35",Gedling Borough Council (Bus Rates
Nottinghamshire County Council,1111/1001,Children and Young People,CYP,Premises Related,BEA,21/09/2022,06-13373,"2,941.75",Newark & Sherwood District Council
Nottinghamshire County Council,1111/1001,Children and Young People,CYP,Premises Related,BEA,22/09/2022,06-13377,9472,Gedling Borough Council (Bus Rates
Nottinghamshire County Council,1111/1001,Children and Young People,CYP,Transport Related,CAA,05/09/2022,06-10591,241.88,UK Fuels Ltd
Nottinghamshire County Council,1111/1001,Children and Young People,CYP,Transport Related,CAA,07/09/2022,06-10122,445.38,UK Fuels Ltd
Nottinghamshire County Council,1111/1001,Children and Young People,CYP,Transport Related,CAA,09/09/2022,06-11170,91.20,Via East Midlands Ltd
Nottinghamshire County Council,1111/1001,Children and Young People,CYP,Transport Related,CAA,14/09/2022,06-12849,495.93,Via East Midlands Ltd
Nottinghamshire County Council,1111/1001,Children and Young People,CYP,Transport Related,CAA,21/09/2022,06-10214,427.85,UK Fuels Ltd
Nottinghamshire County Council,1111/1001,Children and Young People,CYP,Transport Related,CAA,28/09/2022,06-11811,221.49,UK Fuels Ltd
Nottinghamshire County Council,1111/1001,Children and Young People,CYP,Transport Related,CCA,02/09/2022,06-10582,624.00,6 Five 2s
Nottinghamshire County Council,1111/1001,Children and Young People,CYP,Transport Related,CCA,02/09/2022,06-10583,917.7,6 Five 2s
Nottinghamshire County Council,1111/1001,Children and Young People,CYP,Transport Related,CCA,02/09/2022,06-10584,1524.69,6 Five 2s
Nottinghamshire County Council,1111/1001,Children and Young People,CYP,Transport Related,CCA,02/09/2022,06-10585,603.25,6 Five 2s
Nottinghamshire County Council,1111/1001,Children and Young People,CYP,Transport Related,CCA,06/09/2022,06-10916,"1,289.34",Southside Cars Ltd
Nottinghamshire County Council,1111/1001,Children and Young People,CYP,Transport Related,CCA,06/09/2022,06-10917,973.44,Southside Cars Ltd
Nottinghamshire County Council,1111/1001,Children and Young People,CYP,Transport Related,CCA,06/09/2022,06-10918,803.00,Southside Cars Ltd
Nottinghamshire County Council,1111/1001,Children and Young People,CYP,Transport Related,CCA,06/09/2022,06-10919,2570.1,Southside Cars Ltd
Nottinghamshire County Council,1111/1001,Children and Young People,CYP,Transport Related,CCA,06/09/2022,06-10920,640.90,Southside Cars Ltd
Nottinghamshire County Council,1111/1001,Children and Young People,CYP,Transport Related,CCA,06/09/2022,06-10921,"1,322.88",Southside Cars Ltd
Nottinghamshire County Council,1111/1001,Children and Young People,CYP,Transport Related,CCA,06/09/2022,06-10922,2281.5,Southside Cars Ltd
Nottinghamshire County Council,1111/1001,Children and Young People,CYP,Transport Related,CCA,06/09/2022,06-10923,2351.12,Southside Cars Ltd
Nottinghamshire County Council,1111/1001,Children and Young People,CYP,Transport Related,CCA,06/09/2022,06-10924,2693.6,Southside Cars Ltd
Nottinghamshire County Council,1111/1001,Children and Young People,CYP,Transport Related,CCA,06/09/2022,06-10925,"1,526.70",Southside Cars Ltd
Nottinghamshire County Council,1111/1001,Children and Young People,CYP,Transport Related,CCA,06/09/2022,06-10926,948.48,Southside Cars Ltd
Nottinghamshire County Council,1111/1001,Children and Young People,CYP,Transport Related,CCA,06/09/2022,06-10927,1513.77,Southside Cars Ltd
Nottinghamshire County Council,1111/1001,Children and Young People,CYP,Transport Related,CCA,06/09/2022,06-10928,"2,197.25",Southside Cars Ltd
Nottinghamshire County Council,1111/1001,Children and Young People,CYP,Transport Related,CCA,06/09/2022,06-10929,"1,473.78",Southside Cars Ltd
Nottinghamshire County Council,1111/1001,Children and Young People,CYP,Transport Related,CCA,06/09/2022,06-10930,2271.36,Southside Cars Ltd
Nottinghamshire County Council,1111/1001,Children and Young People,CYP,Transport Related,CCA,06/09/2022,06-10931,"2,474.88",Southside Cars Ltd
Nottinghamshire County Council,1111/1001,Children and Young People,CYP,Transport Related,CCA,06/09/2022,06-10932,2261.34,Southside Cars Ltd
Nottinghamshire County Council,1111/1001,Children and Young People,CYP,Transport Related,CCA,06/09/2022,06-10933,2584,Southside Cars Ltd
Nottinghamshire County Council,1111/1001,Children and Young People,CYP,Transport Related,CCA,06/09/2022,06-10934,"1,276.40",Southside Cars Ltd
Nottinghamshire County Council,1111/1001,Children and Young People,CYP,Transport Related,CCA,06/09/2022,06-10935,964.48,Southside Cars Ltd
Nottinghamshire County Council,1111/1001,Children and Young People,CYP,Transport Related,CCA,06/09/2022,06-10936,"1,544.40",Southside Cars Ltd
Nottinghamshire County Council,1111/1001,Children and Young People,CYP,Transport Related,CCA,06/09/2022,06-10939,1244.32,Southside Cars Ltd
Nottinghamshire County Council,1111/1001,Children and Young People,CYP,Transport Related,CCA,06/09/2022,06-10940,757.12,Southside Cars Ltd
Nottinghamshire County Council,1111/1001,Children and Young People,CYP,Transport Related,CCA,06/09/2022,06-10941,1098.24,Southside Cars Ltd
Nottinghamshire County Council,1111/1001,Children and Young People,CYP,Transport Related,CCA,06/09/2022,06-10943,727,Southside Cars Ltd
Nottinghamshire County Council,1111/1001,Children and Young People,CYP,Transport Related,CCA,06/09/2022,06-10944,730,Southside Cars Ltd
Nottinghamshire County Council,1111/1001,Children and Young People,CYP,Transport Related,CCA,06/09/2022,06-10946,"1,959.79",Southside Cars Ltd
Nottinghamshire County Council,1111/1001,Children and Young People,CYP,Transport Related,CCA,06/09/2022,06-10947,2568.8,Southside Cars Ltd
Nottinghamshire County Council,1111/1001,Children and Young People,CYP,Transport Related,CCA,06/09/2022,06-10948,"3,027.84",Southside Cars Ltd
Nottinghamshire County Council,1111/1001,Children and Young People,CYP,Transport Related,CCA,06/09/2022,06-10949,3214.42,Southside Cars Ltd
Nottinghamshire County Council,1111/1001,Children and Young People,CYP,Transport Related,CCA,06/09/2022,06-10950,2227.68,Southside Cars Ltd
Nottinghamshire County Council,1111/1001,Children and Young People,CYP,Transport Related,CCA,06/09/2022,06-10951,"2,680.44",Southside Cars Ltd
Nottinghamshire County Council,1111/1001,Children and Young People,CYP,Transport Related,CCA,06/09/2022,06-10952,1808.4,Southside Cars Ltd
Nottinghamshire County Council,1111/1001,Children and Young People,CYP,Transport Related,CCA,06/09/2022,06-10953,1243.88,Southside Cars Ltd
Nottinghamshire County Council,1111/1001,Children and Young People,CYP,Transport Related,CCA,06/09/2022,06-10954,2299,Southside Cars Ltd
Nottinghamshire County Council,1111/1001,Children and Young People,CYP,Transport Related,CCA,06/09/2022,06-10955,1622.4,Southside Cars Ltd
Nottinghamshire County Council,1111/1001,Children and Young People,CYP,Transport Related,CCA,06/09/2022,06-10956,1875.64,Southside Cars Ltd
Nottinghamshire County Council,1111/1001,Children and Young People,CYP,Transport Related,CCA,06/09/2022,06-10957,1977.3,Southside Cars Ltd
Nottinghamshire County Council,1111/1001,Children and Young People,CYP,Transport Related,CCA,06/09/2022,06-10958,1085.76,Southside Cars Ltd
Nottinghamshire County Council,1111/1001,Children and Young People,CYP,Transport Related,CCA,06/09/2022,06-10959,1959.79,Southside Cars Ltd
Nottinghamshire County Council,1111/1001,Children and Young People,CYP,Transport Related,CCA,06/09/2022,06-10960,2390.4,Southside Cars Ltd
Nottinghamshire County Council,1111/1001,Children and Young People,CYP,Transport Related,CCA,06/09/2022,06-10961,2616.62,Southside Cars Ltd
Nottinghamshire County Council,1111/1001,Children and Young People,CYP,Transport Related,CCA,06/09/2022,06-10962,1928.96,Southside Cars Ltd
Nottinghamshire County Council,1111/1001,Children and Young People,CYP,Transport Related,CCA,06/09/2022,06-10963,2299,Southside Cars Ltd
Nottinghamshire County Council,1111/1001,Children and Young People,CYP,Transport Related,CCA,06/09/2022,06-10964,1730.56,Southside Cars Ltd
Nottinghamshire County Council,1111/1001,Children and Young People,CYP,Transport Related,CCA,06/09/2022,06-10965,870.96,Southside Cars Ltd
Nottinghamshire County Council,1111/1001,Children and Young People,CYP,Transport Related,CCA,06/09/2022,06-10966,1846.74,Southside Cars Ltd
Nottinghamshire County Council,1111/1001,Children and Young People,CYP,Transport Related,CCA,06/09/2022,06-10967,839.91,Southside Cars Ltd
Nottinghamshire County Council,1111/1001,Children and Young People,CYP,Transport Related,CCA,06/09/2022,06-10968,2178,Southside Cars Ltd
Nottinghamshire County Council,1111/1001,Children and Young People,CYP,Transport Related,CCA,06/09/2022,06-10971,3770.22,Freeway Coaches Ltd
Nottinghamshire County Council,1111/1001,Children and Young People,CYP,Transport Related,CCA,06/09/2022,06-10972,2044.36,Freeway Coaches Ltd
Nottinghamshire County Council,1111/1001,Children and Young People,CYP,Transport Related,CCA,07/09/2022,06-11031,1788.16,Freeway Coaches Ltd
Nottinghamshire County Council,1111/1001,Children and Young People,CYP,Transport Related,CCA,07/09/2022,06-11092,2159.66,Marshalls Of Sutton On Trent Ltd
Nottinghamshire County Council,1111/1001,Children and Young People,CYP,Transport Related,CCA,07/09/2022,06-11097,4737.24,Stagecoach Services Ltd
Nottinghamshire County Council,1111/1001,Children and Young People,CYP,Transport Related,CCA,07/09/2022,06-11099,2781.2,Stagecoach Services Ltd
Nottinghamshire County Council,1111/1001,Children and Young People,CYP,Transport Related,CCA,07/09/2022,06-11101,5904.75,Stagecoach Services Ltd
Nottinghamshire County Council,1111/1001,Children and Young People,CYP,Transport Related,CCA,07/09/2022,06-11119,4268.48,Stagecoach Services Ltd
Nottinghamshire County Council,1111/1001,Children and Young People,CYP,Transport Related,CCA,07/09/2022,06-11131,3591,Rushcliffe Travel Ltd
Nottinghamshire County Council,1111/1001,Children and Young People,CYP,Transport Related,CCA,12/09/2022,06-11497,2756.52,Ace Cars & Minibuses Ltd
Nottinghamshire County Council,1111/1001,Children and Young People,CYP,Transport Related,CCA,12/09/2022,06-11498,10735.57,Ace Cars & Minibuses Ltd
Nottinghamshire County Council,1111/1001,Children and Young People,CYP,Transport Related,CCA,12/09/2022,06-11499,1180.66,Ace Cars & Minibuses Ltd
Nottinghamshire County Council,1111/1001,Children and Young People,CYP,Transport Related,CCA,12/09/2022,06-11501,3155.07,Nottingham Coaches Ltd
Nottinghamshire County Council,1111/1001,Children and Young People,CYP,Transport Related,CCA,12/09/2022,06-11502,1596.18,Hammonds Coaches Ltd
Nottinghamshire County Council,1111/1001,Children and Young People,CYP,Transport Related,CCA,12/09/2022,06-11507,720,Vectare Ltd
Nottinghamshire County Council,1111/1001,Children and Young People,CYP,Transport Related,CCA,21/09/2022,06-13320,3026.7,Sharpes Of Nottingham
Nottinghamshire County Council,1111/1001,Children and Young People,CYP,Transport Related,CCA,21/09/2022,06-13321,528,Southside Cars Ltd
Nottinghamshire County Council,1111/1001,Children and Young People,CYP,Transport Related,CCA,21/09/2022,06-13331,4880,Silverdale Tours Nottm Ltd
Nottinghamshire County Council,1111/1001,Children and Young People,CYP,Transport Related,CCA,21/09/2022,06-13338,3990,Rushcliffe Travel Ltd
Nottinghamshire County Council,1111/1001,Children and Young People,CYP,Transport Related,CCA,21/09/2022,06-13339,3016,Rushcliffe Travel Ltd
Nottinghamshire County Council,1111/1001,Children and Young People,CYP,Transport Related,CCA,21/09/2022,06-13340,2820.48,Rushcliffe Travel Ltd
Nottinghamshire County Council,1111/1001,Children and Young People,CYP,Transport Related,CCA,21/09/2022,06-13341,3754.92,Rushcliffe Travel Ltd
Nottinghamshire County Council,1111/1001,Children and Young People,CYP,Transport Related,CCA,21/09/2022,06-13342,3113.76,Rushcliffe Travel Ltd
Nottinghamshire County Council,1111/1001,Children and Young People,CYP,Transport Related,CCA,21/09/2022,06-13343,3112.2,Rushcliffe Travel Ltd
Nottinghamshire County Council,1111/1001,Children and Young People,CYP,Transport Related,CCA,21/09/2022,06-13344,4736.16,Rushcliffe Travel Ltd
Nottinghamshire County Council,1111/1001,Children and Young People,CYP,Transport Related,CCA,21/09/2022,06-13345,3737.76,Rushcliffe Travel Ltd
Nottinghamshire County Council,1111/1001,Children and Young People,CYP,Transport Related,CCA,21/09/2022,06-13346,2901.6,Rushcliffe Travel Ltd
Nottinghamshire County Council,1111/1001,Children and Young People,CYP,Transport Related,CCA,21/09/2022,06-13347,2485.6,Rushcliffe Travel Ltd
Nottinghamshire County Council,1111/1001,Children and Young People,CYP,Transport Related,CCA,21/09/2022,06-13348,2693.6,Rushcliffe Travel Ltd
Nottinghamshire County Council,1111/1001,Children and Young People,CYP,Transport Related,CCA,21/09/2022,06-13349,3941.6,Rushcliffe Travel Ltd
Nottinghamshire County Council,1111/1001,Children and Young People,CYP,Transport Related,CCA,21/09/2022,06-13350,1820,Rushcliffe Travel Ltd
Nottinghamshire County Council,1111/1001,Children and Young People,CYP,Transport Related,CCA,21/09/2022,06-13351,5264.48,Rushcliffe Travel Ltd
Nottinghamshire County Council,1111/1001,Children and Young People,CYP,Transport Related,CCA,21/09/2022,06-13352,2865.2,Rushcliffe Travel Ltd
Nottinghamshire County Council,1111/1001,Children and Young People,CYP,Transport Related,CCA,21/09/2022,06-13353,"2,163.72",Rushcliffe Travel Ltd
Nottinghamshire County Council,1111/1001,Children and Young People,CYP,Transport Related,CCA,21/09/2022,06-13354,3109.6,Rushcliffe Travel Ltd
Nottinghamshire County Council,1111/1001,Children and Young People,CYP,Transport Related,CCA,21/09/2022,06-13355,3941.6,Rushcliffe Travel Ltd
Nottinghamshire County Council,1111/1001,Children and Young People,CYP,Transport Related,CCA,21/09/2022,06-13356,"3,016.00",Rushcliffe Travel Ltd
Nottinghamshire County Council,1111/1001,Children and Young People,CYP,Transport Related,CCA,22/09/2022,06-13384,"1,606.80",6 Five 2s
Nottinghamshire County Council,1111/1001,Children and Young People,CYP,Transport Related,CCA,22/09/2022,06-13385,3908.16,Johnson Bros Tours Ltd
Nottinghamshire County Council,1111/1001,Children and Young People,CYP,Transport Related,CCA,22/09/2022,06-13386,1750,Johnson Bros Tours Ltd
Nottinghamshire County Council,1111/1001,Children and Young People,CYP,Transport Related,CCA,29/09/2022,06-17333,609.00,Square Peg
Nottinghamshire County Council,1111/1001,Children and Young People,CYP,Transport Related,CCA,30/09/2022,06-16554,"1,216.21",Stagecoach Services Ltd
Nottinghamshire County Council,1111/1001,Children and Young People,CYP,Transport Related,CCA,30/09/2022,06-16559,1637.44,SM Travel Yorkshire Ltd
Nottinghamshire County Council,1111/1001,Children and Young People,CYP,Transport Related,CCA,30/09/2022,06-16561,2547.6,SM Travel Yorkshire Ltd
Nottinghamshire County Council,1111/1001,Children and Young People,CYP,Transport Related,CCA,30/09/2022,06-16562,2720.64,SM Travel Yorkshire Ltd
Nottinghamshire County Council,1111/1001,Children and Young People,CYP,Transport Related,CCA,30/09/2022,06-16564,"2,410.59",SM Travel Yorkshire Ltd
Nottinghamshire County Council,1111/1001,Children and Young People,CYP,Transport Related,CCA,30/09/2022,06-16565,"2,829.67",SM Travel Yorkshire Ltd
Nottinghamshire County Council,1111/1001,Children and Young People,CYP,Transport Related,CCA,30/09/2022,06-16566,"2,326.86",SM Travel Yorkshire Ltd
Nottinghamshire County Council,1111/1001,Children and Young People,CYP,Transport Related,CCA,30/09/2022,06-16567,1829.85,SM Travel Yorkshire Ltd
Nottinghamshire County Council,1111/1001,Children and Young People,CYP,Transport Related,CCA,30/09/2022,06-16568,"1,167.90",SM Travel Yorkshire Ltd
Nottinghamshire County Council,1111/1001,Children and Young People,CYP,Transport Related,CCA,30/09/2022,06-16569,2317.81,SM Travel Yorkshire Ltd
Nottinghamshire County Council,1111/1001,Children and Young People,CYP,Transport Related,CCA,30/09/2022,06-16571,"1,734.40",SM Travel Yorkshire Ltd
Nottinghamshire County Council,1111/1001,Children and Young People,CYP,Transport Related,CCA,30/09/2022,06-16572,"3,317.25",SM Travel Yorkshire Ltd
Nottinghamshire County Council,1111/1001,Children and Young People,CYP,Transport Related,CCA,30/09/2022,06-16573,"1,376.20",SM Travel Yorkshire Ltd
Nottinghamshire County Council,1111/1001,Children and Young People,CYP,Transport Related,CCA,30/09/2022,06-16574,1557.44,SM Travel Yorkshire Ltd
Nottinghamshire County Council,1111/1001,Children and Young People,CYP,Transport Related,CCA,30/09/2022,06-16575,"1,554.24",SM Travel Yorkshire Ltd
Nottinghamshire County Council,1111/1001,Children and Young People,CYP,Transport Related,CCA,30/09/2022,06-16576,1552.48,SM Travel Yorkshire Ltd
Nottinghamshire County Council,1111/1001,Children and Young People,CYP,Transport Related,CCA,30/09/2022,06-16577,2333.7,SM Travel Yorkshire Ltd
Nottinghamshire County Council,1111/1001,Children and Young People,CYP,Transport Related,CCA,30/09/2022,06-16578,"1,447.02",SM Travel Yorkshire Ltd
Nottinghamshire County Council,1111/1001,Children and Young People,CYP,Transport Related,CCA,30/09/2022,06-16579,3878.85,SM Travel Yorkshire Ltd
Nottinghamshire County Council,1111/1001,Children and Young People,CYP,Transport Related,CCA,30/09/2022,06-16580,"1,236.32",SM Travel Yorkshire Ltd
Nottinghamshire County Council,1111/1001,Children and Young People,CYP,Transport Related,CCA,30/09/2022,06-16582,1001.5,SM Travel Yorkshire Ltd
Nottinghamshire County Council,1111/1001,Children and Young People,CYP,Transport Related,CCA,30/09/2022,06-16583,"1,665.30",SM Travel Yorkshire Ltd
Nottinghamshire County Council,1111/1001,Children and Young People,CYP,Transport Related,CCA,30/09/2022,06-16584,1705.25,SM Travel Yorkshire Ltd
Nottinghamshire County Council,1111/1001,Children and Young People,CYP,Transport Related,CCA,30/09/2022,06-16585,3754.4,SM Travel Yorkshire Ltd
Nottinghamshire County Council,1111/1001,Children and Young People,CYP,Transport Related,CCA,30/09/2022,06-16586,2885.44,SM Travel Yorkshire Ltd
Nottinghamshire County Council,1111/1001,Children and Young People,CYP,Transport Related,CCA,30/09/2022,06-16587,1437.61,SM Travel Yorkshire Ltd
Nottinghamshire County Council,1111/1001,Children and Young People,CYP,Transport Related,CCA,30/09/2022,06-16589,1639.33,SM Travel Yorkshire Ltd
Nottinghamshire County Council,1111/1001,Children and Young People,CYP,Transport Related,CCA,30/09/2022,06-16590,"1,056.42",SM Travel Yorkshire Ltd
Nottinghamshire County Council,1111/1001,Children and Young People,CYP,Transport Related,CDA,12/09/2022,06-11499,1180.66,Ace Cars & Minibuses Ltd
Nottinghamshire County Council,1111/1001,Children and Young People,CYP,Transport Related,CDA,16/09/2022,06-17138,782.6,Orange Grove Fostercare Ltd
Nottinghamshire County Council,1111/1001,Children and Young People,CYP,Transport Related,CDA,21/09/2022,06-13333,3109.6,Rushcliffe Travel Ltd
Nottinghamshire County Council,1111/1001,Children and Young People,CYP,Transport Related,CDA,26/09/2022,06-16062,644,Horizon Care & Education Group Ltd
Nottinghamshire County Council,1111/1001,Children and Young People,CYP,Transport Related,CDA,30/09/2022,06-16554,10945.95,Stagecoach Services Ltd
Nottinghamshire County Council,1111/1001,Children and Young People,CYP,Transport Related,CDA,30/09/2022,06-16558,1007.04,Cloud Cars Ltd
Nottinghamshire County Council,1111/1001,Children and Young People,CYP,Transport Related,CDA,30/09/2022,06-16560,964.10,SM Travel Yorkshire Ltd
Nottinghamshire County Council,1111/1001,Children and Young People,CYP,Transport Related,CDA,30/09/2022,06-16562,906.88,SM Travel Yorkshire Ltd
Nottinghamshire County Council,1111/1001,Children and Young People,CYP,Transport Related,CEA,06/09/2022,06-11038,"4,135.26",Reed Employment Ltd
Nottinghamshire County Council,1111/1001,Children and Young People,CYP,Transport Related,CEA,06/09/2022,06-11046,"3,982.75",Reed Employment Ltd
Nottinghamshire County Council,1111/1001,Children and Young People,CYP,Transport Related,CEA,06/09/2022,06-11052,3466.48,Reed Employment Ltd
Nottinghamshire County Council,1111/1001,Children and Young People,CYP,Transport Related,CEA,12/09/2022,06-11042,"5,452.62",Reed Employment Ltd
Nottinghamshire County Council,1111/1001,Children and Young People,CYP,Transport Related,CEA,22/09/2022,06-13392,"2,584.77",Reed Employment Ltd
Nottinghamshire County Council,1111/1001,Children and Young People,CYP,Transport Related,CEA,26/09/2022,06-13397,3212.32,Reed Employment Ltd
Nottinghamshire County Council,1111/1001,Children and Young People,CYP,Supplies & Services,DBA,06/09/2022,06-10984,513.31,M Maloney Country Butchers & B Ltd
Nottinghamshire County Council,1111/1001,Children and Young People,CYP,Supplies & Services,DBA,06/09/2022,06-10987,268.03,M Maloney Country Butchers & B Ltd
Nottinghamshire County Council,1111/1001,Children and Young People,CYP,Supplies & Services,DBA,07/09/2022,06-10077,581.36,Brake Bros Ltd
Nottinghamshire County Council,1111/1001,Children and Young People,CYP,Supplies & Services,DBA,12/09/2022,06-11513,270.49,M Maloney Country Butchers & B Ltd
Nottinghamshire County Council,1111/1001,Children and Young People,CYP,Supplies & Services,DBA,16/09/2022,06-13014,348.95,M Maloney Country Butchers & B Ltd
Nottinghamshire County Council,1111/1001,Children and Young People,CYP,Supplies & Services,DBA,16/09/2022,06-13018,551.22,Fresh Opportunities Ltd
Nottinghamshire County Council,1111/1001,Children and Young People,CYP,Supplies & Services,DBA,21/09/2022,06-10990,697.30,Brake Bros Ltd
Nottinghamshire County Council,1111/1001,Children and Young People,CYP,Supplies & Services,DBA,21/09/2022,06-13365,"1,707.32",John Palin (Wholesale) Ltd
Nottinghamshire County Council,1111/1001,Children and Young People,CYP,Supplies & Services,DBA,27/09/2022,06-16063,374.08,M Maloney Country Butchers & B Ltd
Nottinghamshire County Council,1111/1001,Children and Young People,CYP,Supplies & Services,DBA,28/09/2022,06-11516,"1,007.38",Brake Bros Ltd
Nottinghamshire County Council,1111/1001,Children and Young People,CYP,Supplies & Services,DEA,01/09/2022,06-10135,"6,104.13",Next Level Sports Ltd
Nottinghamshire County Council,1111/1001,Children and Young People,CYP,Supplies & Services,DEA,01/09/2022,06-10136,"9,600.00",Nottingham Forest Community Trust
Nottinghamshire County Council,1111/1001,Children and Young People,CYP,Supplies & Services,DEA,01/09/2022,06-10137,"10,032.00",Premier Education Group (WJM Sports
Nottinghamshire County Council,1111/1001,Children and Young People,CYP,Supplies & Services,DEA,01/09/2022,06-10138,"12,705.00",Rattle & Roll Ltd
Nottinghamshire County Council,1111/1001,Children and Young People,CYP,Supplies & Services,DEA,01/09/2022,06-10139,"4,483.99",M & L Sports Ltd
Nottinghamshire County Council,1111/1001,Children and Young People,CYP,Supplies & Services,DEA,01/09/2022,06-10140,"2,800.00",Staples School of Dance (S.D.A)
Nottinghamshire County Council,1111/1001,Children and Young People,CYP,Supplies & Services,DEA,01/09/2022,06-10141,"7,704.67",Switch Up CIC
Nottinghamshire County Council,1111/1001,Children and Young People,CYP,Supplies & Services,DEA,01/09/2022,06-10142,"45,682.50",TB Sport
Nottinghamshire County Council,1111/1001,Children and Young People,CYP,Supplies & Services,DEA,01/09/2022,06-10143,"12,748.00",Fun Hub CIC
Nottinghamshire County Council,1111/1001,Children and Young People,CYP,Supplies & Services,DEA,01/09/2022,06-10144,"12,456.00",Lime Trees (Colwick)
Nottinghamshire County Council,1111/1001,Children and Young People,CYP,Supplies & Services,DEA,01/09/2022,06-10145,"5,764.00",Riley Sport & Fitness-Rileys Kids C
Nottinghamshire County Council,1111/1001,Children and Young People,CYP,Supplies & Services,DEA,01/09/2022,06-10146,"9,000.00",Academy Transformation Trust Furthe
Nottinghamshire County Council,1111/1001,Children and Young People,CYP,Supplies & Services,DEA,01/09/2022,06-10147,"4,527.60",Asquith Primary & Nursery School
Nottinghamshire County Council,1111/1001,Children and Young People,CYP,Supplies & Services,DEA,01/09/2022,06-10148,"5,320.00",Canoville Coaching Ltd
Nottinghamshire County Council,1111/1001,Children and Young People,CYP,Supplies & Services,DEA,01/09/2022,06-10149,"9,600.00",SLM Fitness & Health Ltd (Everyone
Nottinghamshire County Council,1111/1001,Children and Young People,CYP,Supplies & Services,DEA,01/09/2022,06-10150,"11,435.29",Excel Sports Coaching
Nottinghamshire County Council,1111/1001,Children and Young People,CYP,Supplies & Services,DEA,01/09/2022,06-10151,"9,198.50",Express Coaching Services Ltd
Nottinghamshire County Council,1111/1001,Children and Young People,CYP,Supplies & Services,DEA,01/09/2022,06-10152,"7,500.00",Holiday Activities For Kids Ltd
Nottinghamshire County Council,1111/1001,Children and Young People,CYP,Supplies & Services,DEA,01/09/2022,06-10153,"16,922.50",Grade A Sports
Nottinghamshire County Council,1111/1001,Children and Young People,CYP,Supplies & Services,DEA,01/09/2022,06-10154,"8,352.00",JPAC Ltd
Nottinghamshire County Council,1111/1001,Children and Young People,CYP,Supplies & Services,DEA,01/09/2022,06-10155,"16,700.00",Koala Klubs 1 Ltd
Nottinghamshire County Council,1111/1001,Children and Young People,CYP,Supplies & Services,DEA,01/09/2022,06-10156,"4,768.00",Mapperley All-Stars Coaching
Nottinghamshire County Council,1111/1001,Children and Young People,CYP,Supplies & Services,DEA,01/09/2022,06-10157,"6,112.86",Metropolitan Housing Trust (Thames
Nottinghamshire County Council,1111/1001,Children and Young People,CYP,Supplies & Services,DEA,01/09/2022,06-10158,"5,707.38",Mansfield Town Football In The Comm
Nottinghamshire County Council,1111/1001,Children and Young People,CYP,Supplies & Services,DEA,01/09/2022,06-10159,"4,000.00",More Community Leisure Trust
Nottinghamshire County Council,1111/1001,Children and Young People,CYP,Supplies & Services,DEA,01/09/2022,06-10160,"4,128.00",R J Wells T/A The Pottery
Nottinghamshire County Council,1111/1001,Children and Young People,CYP,Supplies & Services,DEA,01/09/2022,06-10161,"2,711.27",Samworth Church Academy
Nottinghamshire County Council,1111/1001,Children and Young People,CYP,Supplies & Services,DEA,01/09/2022,06-10162,"5,414.12",Social Action Hub
Nottinghamshire County Council,1111/1001,Children and Young People,CYP,Supplies & Services,DEA,01/09/2022,06-10163,"4,176.00",C Dukes T/A Urban Sport Bassetlaw
Nottinghamshire County Council,1111/1001,Children and Young People,CYP,Supplies & Services,DEA,01/09/2022,06-10164,"7,200.00",Westcarr Coaching Ltd
Nottinghamshire County Council,1111/1001,Children and Young People,CYP,Supplies & Services,DEA,01/09/2022,06-10165,"10,245.69",Evolution Soccer Ltd(Worksop Town A
Nottinghamshire County Council,1111/1001,Children and Young People,CYP,Supplies & Services,DEA,02/09/2022,06-17189,"1,755.00",Derbyshire Psychology Ltd
Nottinghamshire County Council,1111/1001,Children and Young People,CYP,Supplies & Services,DEA,05/09/2022,06-17126,"1,540.00",Ann Lugering Education Services
Nottinghamshire County Council,1111/1001,Children and Young People,CYP,Supplies & Services,DEA,05/09/2022,06-17190,"8,635.00",Global Mediation Ltd
Nottinghamshire County Council,1111/1001,Children and Young People,CYP,Supplies & Services,DEA,05/09/2022,06-17205,524.00,Child Centred Solutions Ltd
Nottinghamshire County Council,1111/1001,Children and Young People,CYP,Supplies & Services,DEA,05/09/2022,06-17206,524.00,Child Centred Solutions Ltd
Nottinghamshire County Council,1111/1001,Children and Young People,CYP,Supplies & Services,DEA,05/09/2022,06-17207,524.00,Child Centred Solutions Ltd
Nottinghamshire County Council,1111/1001,Children and Young People,CYP,Supplies & Services,DEA,05/09/2022,06-17208,524.00,Child Centred Solutions Ltd
Nottinghamshire County Council,1111/1001,Children and Young People,CYP,Supplies & Services,DEA,05/09/2022,06-17209,520.00,[Redacted]
Nottinghamshire County Council,1111/1001,Children and Young People,CYP,Supplies & Services,DEA,05/09/2022,06-17210,500.00,C Brewer T/A Imagine Arts Therapy
Nottinghamshire County Council,1111/1001,Children and Young People,CYP,Supplies & Services,DEA,05/09/2022,06-17211,540.00,[Redacted]
Nottinghamshire County Council,1111/1001,Children and Young People,CYP,Supplies & Services,DEA,05/09/2022,06-17212,720.00,[Redacted]
Nottinghamshire County Council,1111/1001,Children and Young People,CYP,Supplies & Services,DEA,05/09/2022,06-17218,675.00,Catharsis - Creative Arts Therapy
Nottinghamshire County Council,1111/1001,Children and Young People,CYP,Supplies & Services,DEA,05/09/2022,06-17219,825.00,Catharsis - Creative Arts Therapy
Nottinghamshire County Council,1111/1001,Children and Young People,CYP,Supplies & Services,DEA,05/09/2022,06-17220,600.00,Catharsis - Creative Arts Therapy
Nottinghamshire County Council,1111/1001,Children and Young People,CYP,Supplies & Services,DEA,05/09/2022,06-17226,585.00,Lotus Therapy Ltd
Nottinghamshire County Council,1111/1001,Children and Young People,CYP,Supplies & Services,DEA,05/09/2022,06-17227,640.00,Lotus Therapy Ltd
Nottinghamshire County Council,1111/1001,Children and Young People,CYP,Supplies & Services,DEA,06/09/2022,06-10994,"1,615.00",Retford Tennis Club
Nottinghamshire County Council,1111/1001,Children and Young People,CYP,Supplies & Services,DEA,06/09/2022,06-10995,"1,069.02",Next Level Sports Ltd
Nottinghamshire County Council,1111/1001,Children and Young People,CYP,Supplies & Services,DEA,06/09/2022,06-17275,"1,650.00",Freeths LLP
Nottinghamshire County Council,1111/1001,Children and Young People,CYP,Supplies & Services,DEA,06/09/2022,06-17276,898.50,[Redacted]
Nottinghamshire County Council,1111/1001,Children and Young People,CYP,Supplies & Services,DEA,07/09/2022,06-17330,700.00,Lotus Therapy Ltd
Nottinghamshire County Council,1111/1001,Children and Young People,CYP,Supplies & Services,DEA,07/09/2022,06-17336,605.00,[Redacted]
Nottinghamshire County Council,1111/1001,Children and Young People,CYP,Supplies & Services,DEA,07/09/2022,06-17341,525.00,Lotus Therapy Ltd
Nottinghamshire County Council,1111/1001,Children and Young People,CYP,Supplies & Services,DEA,07/09/2022,06-17344,560.00,C Brewer T/A Imagine Arts Therapy
Nottinghamshire County Council,1111/1001,Children and Young People,CYP,Supplies & Services,DEA,08/09/2022,06-17224,625.00,Bright Light Therapy
Nottinghamshire County Council,1111/1001,Children and Young People,CYP,Supplies & Services,DEA,08/09/2022,06-17376,"1,215.00",N Ridsdale Play Therapy Services
Nottinghamshire County Council,1111/1001,Children and Young People,CYP,Supplies & Services,DEA,09/09/2022,06-17325,545.75,Healthcare Conferences UK Ltd
Nottinghamshire County Council,1111/1001,Children and Young People,CYP,Supplies & Services,DEA,09/09/2022,06-17436,650.00,[Redacted]
Nottinghamshire County Council,1111/1001,Children and Young People,CYP,Supplies & Services,DEA,12/09/2022,06-17245,625.00,Mikenda Plant
Nottinghamshire County Council,1111/1001,Children and Young People,CYP,Supplies & Services,DEA,12/09/2022,06-17246,625.00,Mikenda Plant
Nottinghamshire County Council,1111/1001,Children and Young People,CYP,Supplies & Services,DEA,12/09/2022,06-17247,625.00,Mikenda Plant
Nottinghamshire County Council,1111/1001,Children and Young People,CYP,Supplies & Services,DEA,12/09/2022,06-17248,625.00,Mikenda Plant
Nottinghamshire County Council,1111/1001,Children and Young People,CYP,Supplies & Services,DEA,12/09/2022,06-17339,560.00,Tiptoes Child Therapy Services Ltd
Nottinghamshire County Council,1111/1001,Children and Young People,CYP,Supplies & Services,DEA,15/09/2022,06-17304,826.00,Harrow Green Ltd
Nottinghamshire County Council,1111/1001,Children and Young People,CYP,Supplies & Services,DEA,20/09/2022,06-17223,500.00,Bright Light Therapy
Nottinghamshire County Council,1111/1001,Children and Young People,CYP,Supplies & Services,DEA,20/09/2022,06-17234,"1,040.00",[Redacted]
Nottinghamshire County Council,1111/1001,Children and Young People,CYP,Supplies & Services,DEA,21/09/2022,06-13313,500.00,Homes 2 Inspire Ltd
Nottinghamshire County Council,1111/1001,Children and Young People,CYP,Supplies & Services,DEA,21/09/2022,06-13316,607.50,TimTin Playgroup and Kids Club
Nottinghamshire County Council,1111/1001,Children and Young People,CYP,Supplies & Services,DEA,21/09/2022,06-13361,"2,164.50",Orange Tree Day Nursery
Nottinghamshire County Council,1111/1001,Children and Young People,CYP,Supplies & Services,DEA,23/09/2022,06-17231,"1,812.50",Bright Light Therapy
Nottinghamshire County Council,1111/1001,Children and Young People,CYP,Supplies & Services,DEA,23/09/2022,06-17233,"1,000.00",Bright Light Therapy
Nottinghamshire County Council,1111/1001,Children and Young People,CYP,Supplies & Services,DEA,23/09/2022,06-17299,625.00,Bright Light Therapy
Nottinghamshire County Council,1111/1001,Children and Young People,CYP,Supplies & Services,DEA,26/09/2022,06-17118,"1,000.00",Springbank Primary Academy
Nottinghamshire County Council,1111/1001,Children and Young People,CYP,Supplies & Services,DEA,26/09/2022,06-17143,"1,000.00",Carlton Junior Academy
Nottinghamshire County Council,1111/1001,Children and Young People,CYP,Supplies & Services,DEA,26/09/2022,06-17221,625.00,Bright Light Therapy
Nottinghamshire County Council,1111/1001,Children and Young People,CYP,Supplies & Services,DEA,26/09/2022,06-17255,"1,540.00",Ann Lugering Education Services
Nottinghamshire County Council,1111/1001,Children and Young People,CYP,Supplies & Services,DEA,26/09/2022,06-17258,550.00,Clive Harrison Consultancy Ltd
Nottinghamshire County Council,1111/1001,Children and Young People,CYP,Supplies & Services,DEA,26/09/2022,06-17273,"1,000.00",Lowes Wong Infants (Academy)
Nottinghamshire County Council,1111/1001,Children and Young People,CYP,Supplies & Services,DEA,26/09/2022,06-17315,"1,375.00",TAAFA (Ruth Adams)
Nottinghamshire County Council,1111/1001,Children and Young People,CYP,Supplies & Services,DEA,26/09/2022,06-17331,625.00,TAAFA (Ruth Adams)
Nottinghamshire County Council,1111/1001,Children and Young People,CYP,Supplies & Services,DEA,26/09/2022,06-17337,625.00,TAAFA (Ruth Adams)
Nottinghamshire County Council,1111/1001,Children and Young People,CYP,Supplies & Services,DEA,26/09/2022,06-17338,625.00,TAAFA (Ruth Adams)
Nottinghamshire County Council,1111/1001,Children and Young People,CYP,Supplies & Services,DEA,26/09/2022,06-17342,530.00,Enabling Care Ltd
Nottinghamshire County Council,1111/1001,Children and Young People,CYP,Supplies & Services,DEA,26/09/2022,06-17366,"1,375.00",Worksop Priory CE Primary Academy
Nottinghamshire County Council,1111/1001,Children and Young People,CYP,Supplies & Services,DFA,07/09/2022,06-11061,300.00,Young People First Ltd
Nottinghamshire County Council,1111/1001,Children and Young People,CYP,Supplies & Services,DFA,21/09/2022,06-13314,300.00,Young People First Ltd
Nottinghamshire County Council,1111/1001,Children and Young People,CYP,Supplies & Services,DHA,15/09/2022,06-12936,"4,578.42",Orston Projects Ltd
Nottinghamshire County Council,1111/1001,Children and Young People,CYP,Supplies & Services,DHA,26/09/2022,06-17413,"46,869.00",Nottm & Notts Youth Support Ltd
Nottinghamshire County Council,1111/1001,Children and Young People,CYP,Supplies & Services,DKA,07/09/2022,06-11056,850.00,Norman Galloway Ltd
Nottinghamshire County Council,1111/1001,Children and Young People,CYP,Supplies & Services,DKA,07/09/2022,06-11058,550.00,Mansfield Property Services LtdT/A
Nottinghamshire County Council,1111/1001,Children and Young People,CYP,Supplies & Services,DKA,07/09/2022,06-11059,514.35,Sixteen Plus Ltd
Nottinghamshire County Council,1111/1001,Children and Young People,CYP,Supplies & Services,DKA,07/09/2022,06-11060,650.00,[Redacted]
Nottinghamshire County Council,1111/1001,Children and Young People,CYP,Supplies & Services,DKA,07/09/2022,06-11064,550.00,[Redacted]
Nottinghamshire County Council,1111/1001,Children and Young People,CYP,Supplies & Services,DKA,07/09/2022,06-11065,500.00,[Redacted]
Nottinghamshire County Council,1111/1001,Children and Young People,CYP,Supplies & Services,DKA,14/09/2022,06-12844,"1,400.00",Norman Galloway Ltd
Nottinghamshire County Council,1111/1001,Children and Young People,CYP,Supplies & Services,DKA,14/09/2022,06-12845,785.00,MVS Transportation
Nottinghamshire County Council,1111/1001,Children and Young People,CYP,Supplies & Services,DKA,20/09/2022,06-13023,881.86,Young People First Ltd
Nottinghamshire County Council,1111/1001,Children and Young People,CYP,Supplies & Services,DKA,21/09/2022,06-13310,680.00,MVS Transportation
Nottinghamshire County Council,1111/1001,Children and Young People,CYP,Supplies & Services,DKA,21/09/2022,06-13311,"1,026.84",Hits Homes Trust
Nottinghamshire County Council,1111/1001,Children and Young People,CYP,Supplies & Services,DKA,21/09/2022,06-13317,"1,545.50",YMCA Nottinghamshire  (Head Office)
Nottinghamshire County Council,1111/1001,Children and Young People,CYP,Supplies & Services,DKA,28/09/2022,06-16076,512.28,Mansfield District Council
Nottinghamshire County Council,1111/1001,Children and Young People,CYP,Supplies & Services,DKA,28/09/2022,06-16079,500.00,[Redacted]
Nottinghamshire County Council,1111/1001,Children and Young People,CYP,Supplies & Services,DKA,28/09/2022,06-16080,500.00,G P Removals & Waste Management
Nottinghamshire County Council,1111/1001,Children and Young People,CYP,Supplies & Services,DKA,29/09/2022,06-16192,881.86,Young People First Ltd
Nottinghamshire County Council,1111/1001,Children and Young People,CYP,Third Party Payments,EDA,01/09/2022,06-10052,"5,857.53",Hall Park Academy
Nottinghamshire County Council,1111/1001,Children and Young People,CYP,Third Party Payments,EDA,01/09/2022,06-10053,"34,285.63",Hall Park Academy
Nottinghamshire County Council,1111/1001,Children and Young People,CYP,Third Party Payments,EDA,01/09/2022,06-10054,"4,610.02",Colonel Frank Seeley Academy
Nottinghamshire County Council,1111/1001,Children and Young People,CYP,Third Party Payments,EDA,01/09/2022,06-10055,"30,037.35",Colonel Frank Seeley Academy
Nottinghamshire County Council,1111/1001,Children and Young People,CYP,Third Party Payments,EDA,01/09/2022,06-10056,"4,411.57",South Nottinghamshire Academy
Nottinghamshire County Council,1111/1001,Children and Young People,CYP,Third Party Payments,EDA,01/09/2022,06-10057,"41,161.00",South Nottinghamshire Academy
Nottinghamshire County Council,1111/1001,Children and Young People,CYP,Third Party Payments,EDA,01/09/2022,06-10058,"71,511.54",Carlton Academy
Nottinghamshire County Council,1111/1001,Children and Young People,CYP,Third Party Payments,EDA,01/09/2022,06-10059,"7,312.85",Carlton Academy
Nottinghamshire County Council,1111/1001,Children and Young People,CYP,Third Party Payments,EDA,01/09/2022,06-10060,"8,770.21",Redhill Academy
Nottinghamshire County Council,1111/1001,Children and Young People,CYP,Third Party Payments,EDA,01/09/2022,06-10061,"69,549.78",Redhill Academy
Nottinghamshire County Council,1111/1001,Children and Young People,CYP,Third Party Payments,EDA,05/09/2022,06-10064,"25,573.00",National C of E Academy (Minster Tr
Nottinghamshire County Council,1111/1001,Children and Young People,CYP,Third Party Payments,EDA,05/09/2022,06-10065,"1,899.00",National C of E Academy (Minster Tr
Nottinghamshire County Council,1111/1001,Children and Young People,CYP,Third Party Payments,EDA,06/09/2022,06-10978,"52,000.00",Stubbin Wood School
Nottinghamshire County Council,1111/1001,Children and Young People,CYP,Third Party Payments,EDA,08/09/2022,06-10069,"6,346.00",Hucknall National Primary Academy
Nottinghamshire County Council,1111/1001,Children and Young People,CYP,Third Party Payments,EDA,08/09/2022,06-10070,"6,346.00",Kirkby Woodhouse Academy School
Nottinghamshire County Council,1111/1001,Children and Young People,CYP,Third Party Payments,EDA,08/09/2022,06-10071,"3,385.00",Priory Catholic Academy(St Ralph Sh
Nottinghamshire County Council,1111/1001,Children and Young People,CYP,Third Party Payments,EDA,08/09/2022,06-10072,"8,250.00",Serlby Park Academy
Nottinghamshire County Council,1111/1001,Children and Young People,CYP,Third Party Payments,EDA,08/09/2022,06-10073,"8,673.00",Sutton Community Academy
Nottinghamshire County Council,1111/1001,Children and Young People,CYP,Third Party Payments,EDA,08/09/2022,06-10074,"6,981.00",Christ The King Catholic Voluntary
Nottinghamshire County Council,1111/1001,Children and Young People,CYP,Third Party Payments,EDA,08/09/2022,06-10075,917.00,Outwood Academy - Valley
Nottinghamshire County Council,1111/1001,Children and Young People,CYP,Third Party Payments,EDA,08/09/2022,06-10076,"9,837.00",Bishop Alexander LEAD Academy
Nottinghamshire County Council,1111/1001,Children and Young People,CYP,Third Party Payments,EDA,08/09/2022,06-10080,"6,346.00",St Josephs Catholic Primary Sch Aca
Nottinghamshire County Council,1111/1001,Children and Young People,CYP,Third Party Payments,EDA,08/09/2022,06-10081,"6,346.00",Carlton Le Willows Academy
Nottinghamshire County Council,1111/1001,Children and Young People,CYP,Third Party Payments,EDA,08/09/2022,06-10082,"6,346.00",All Saints Catholic Voluntary Acade
Nottinghamshire County Council,1111/1001,Children and Young People,CYP,Third Party Payments,EDA,08/09/2022,06-10083,"6,346.00",Keyworth Primary & Nursery School
Nottinghamshire County Council,1111/1001,Children and Young People,CYP,Third Party Payments,EDA,08/09/2022,06-10084,"6,346.00",Thrumpton Primary Academy
Nottinghamshire County Council,1111/1001,Children and Young People,CYP,Third Party Payments,EDA,08/09/2022,06-10085,"6,346.00",Carlton Le Willows Academy
Nottinghamshire County Council,1111/1001,Children and Young People,CYP,Third Party Payments,EDA,08/09/2022,06-10086,"6,346.00",Newark Academy
Nottinghamshire County Council,1111/1001,Children and Young People,CYP,Third Party Payments,EDA,08/09/2022,06-10087,"6,346.00",West Park Academy
Nottinghamshire County Council,1111/1001,Children and Young People,CYP,Third Party Payments,EDA,08/09/2022,06-10088,"6,346.00",Netherfield Primary School (Academy
Nottinghamshire County Council,1111/1001,Children and Young People,CYP,Third Party Payments,EDA,08/09/2022,06-10089,"6,346.00",Holy Cross Catholic Voluntary Acade
Nottinghamshire County Council,1111/1001,Children and Young People,CYP,Third Party Payments,EDA,08/09/2022,06-10090,"6,346.00",Dukeries Academy
Nottinghamshire County Council,1111/1001,Children and Young People,CYP,Third Party Payments,EDA,08/09/2022,06-10091,"6,346.00",Heymann Primary School
Nottinghamshire County Council,1111/1001,Children and Young People,CYP,Third Party Payments,EDA,08/09/2022,06-10092,"6,346.00",Edwalton Primary Academy(Flying Hig
Nottinghamshire County Council,1111/1001,Children and Young People,CYP,Third Party Payments,EDA,08/09/2022,06-10093,"6,346.00",Sir John Sherbrooke Junior Academy
Nottinghamshire County Council,1111/1001,Children and Young People,CYP,Third Party Payments,EDA,08/09/2022,06-10094,"7,698.00",Candleby Lane School
Nottinghamshire County Council,1111/1001,Children and Young People,CYP,Third Party Payments,EDA,08/09/2022,06-10095,"6,346.00",Sir John Sherbrooke Junior Academy
Nottinghamshire County Council,1111/1001,Children and Young People,CYP,Third Party Payments,EDA,08/09/2022,06-10096,"6,346.00",Bramcote College
Nottinghamshire County Council,1111/1001,Children and Young People,CYP,Third Party Payments,EDA,08/09/2022,06-10097,"6,346.00",Edwalton Primary Academy(Flying Hig
Nottinghamshire County Council,1111/1001,Children and Young People,CYP,Third Party Payments,EDA,08/09/2022,06-10098,"6,346.00",Carlton Le Willows Academy
Nottinghamshire County Council,1111/1001,Children and Young People,CYP,Third Party Payments,EDA,08/09/2022,06-10099,"6,346.00",Tuxford Academy
Nottinghamshire County Council,1111/1001,Children and Young People,CYP,Third Party Payments,EDA,08/09/2022,06-10100,"6,346.00",Christ The King Catholic Voluntary
Nottinghamshire County Council,1111/1001,Children and Young People,CYP,Third Party Payments,EDA,08/09/2022,06-10101,"9,043.00",Gunthorpe C OF E Primary Academy
Nottinghamshire County Council,1111/1001,Children and Young People,CYP,Third Party Payments,EDA,08/09/2022,06-10102,"6,346.00",Mornington Primary Academy
Nottinghamshire County Council,1111/1001,Children and Young People,CYP,Third Party Payments,EDA,08/09/2022,06-10103,"6,346.00",Candleby Lane School
Nottinghamshire County Council,1111/1001,Children and Young People,CYP,Third Party Payments,EDA,08/09/2022,06-10104,"6,346.00",John Hunt Academy
Nottinghamshire County Council,1111/1001,Children and Young People,CYP,Third Party Payments,EDA,08/09/2022,06-10105,"6,346.00",Sparken Hill Academy
Nottinghamshire County Council,1111/1001,Children and Young People,CYP,Third Party Payments,EDA,08/09/2022,06-10106,"6,346.00",Kirkby Woodhouse Academy School
Nottinghamshire County Council,1111/1001,Children and Young People,CYP,Third Party Payments,EDA,08/09/2022,06-10107,"6,346.00",Tollerton Primary School
Nottinghamshire County Council,1111/1001,Children and Young People,CYP,Third Party Payments,EDA,08/09/2022,06-10108,"6,346.00",Tollerton Primary School
Nottinghamshire County Council,1111/1001,Children and Young People,CYP,Third Party Payments,EDA,08/09/2022,06-10109,"6,346.00",Meden School - A Torch Academy
Nottinghamshire County Council,1111/1001,Children and Young People,CYP,Third Party Payments,EDA,08/09/2022,06-10110,"9,519.00",Abbey Road Primary School Academy
Nottinghamshire County Council,1111/1001,Children and Young People,CYP,Third Party Payments,EDA,08/09/2022,06-10111,"8,885.00",Sir John Sherbrooke Junior Academy
Nottinghamshire County Council,1111/1001,Children and Young People,CYP,Third Party Payments,EDA,08/09/2022,06-10112,"6,346.00",Hillside Academy
Nottinghamshire County Council,1111/1001,Children and Young People,CYP,Third Party Payments,EDA,08/09/2022,06-10113,"6,346.00",Ranskill Primary Academy
Nottinghamshire County Council,1111/1001,Children and Young People,CYP,Third Party Payments,EDA,08/09/2022,06-10114,"6,346.00",Edwalton Primary Academy(Flying Hig
Nottinghamshire County Council,1111/1001,Children and Young People,CYP,Third Party Payments,EDA,08/09/2022,06-10115,"6,346.00",Toothill Academy
Nottinghamshire County Council,1111/1001,Children and Young People,CYP,Third Party Payments,EDA,08/09/2022,06-10116,"6,346.00",Robert Mellors Primary & Nursery Ac
Nottinghamshire County Council,1111/1001,Children and Young People,CYP,Third Party Payments,EDA,08/09/2022,06-10117,"11,000.00",St Edmund Campion Voluntary Academy
Nottinghamshire County Council,1111/1001,Children and Young People,CYP,Third Party Payments,EDA,08/09/2022,06-10118,"8,250.00",Sutton Community Academy
Nottinghamshire County Council,1111/1001,Children and Young People,CYP,Third Party Payments,EDA,08/09/2022,06-10119,"3,173.00",Mapplewells Primary & Nursery Acade
Nottinghamshire County Council,1111/1001,Children and Young People,CYP,Third Party Payments,EDA,08/09/2022,06-10120,"6,346.00",Tollerton Primary School
Nottinghamshire County Council,1111/1001,Children and Young People,CYP,Third Party Payments,EDA,08/09/2022,06-10121,"6,595.00",West Bridgford School
Nottinghamshire County Council,1111/1001,Children and Young People,CYP,Third Party Payments,EDA,09/09/2022,06-11162,"56,670.50",Redgate Primary Academy
Nottinghamshire County Council,1111/1001,Children and Young People,CYP,Third Party Payments,EDA,09/09/2022,06-11166,900.00,Yeoman Park Academy
Nottinghamshire County Council,1111/1001,Children and Young People,CYP,Third Party Payments,EDA,09/09/2022,06-11168,"106,282.67",Foxwood Academy
Nottinghamshire County Council,1111/1001,Children and Young People,CYP,Third Party Payments,EDA,09/09/2022,06-11169,"124,164.50",Yeoman Park Academy
Nottinghamshire County Council,1111/1001,Children and Young People,CYP,Third Party Payments,EDA,13/09/2022,06-11165,833.33,Fountaindale Academy (Nexus Trust)
Nottinghamshire County Council,1111/1001,Children and Young People,CYP,Third Party Payments,EDA,13/09/2022,06-11167,"132,449.08",Fountaindale Academy (Nexus Trust)
Nottinghamshire County Council,1111/1001,Children and Young People,CYP,Third Party Payments,EDA,13/09/2022,06-11824,"8,250.00",George Spencer Academy
Nottinghamshire County Council,1111/1001,Children and Young People,CYP,Third Party Payments,EDA,15/09/2022,06-12937,536.25,Alderman Pounder Academy(Flying Hig
Nottinghamshire County Council,1111/1001,Children and Young People,CYP,Third Party Payments,EDA,15/09/2022,06-12938,575.25,Greenwood Primary & Nursery School
Nottinghamshire County Council,1111/1001,Children and Young People,CYP,Third Party Payments,EDA,15/09/2022,06-12939,522.00,Hawthorne Primary Academy(Flying Hi
Nottinghamshire County Council,1111/1001,Children and Young People,CYP,Third Party Payments,EDA,15/09/2022,06-12940,640.95,Heymann Primary School
Nottinghamshire County Council,1111/1001,Children and Young People,CYP,Third Party Payments,EDA,15/09/2022,06-12941,652.75,Hillside Academy
Nottinghamshire County Council,1111/1001,Children and Young People,CYP,Third Party Payments,EDA,15/09/2022,06-12942,730.50,Netherfield Primary School (Academy
Nottinghamshire County Council,1111/1001,Children and Young People,CYP,Third Party Payments,EDA,15/09/2022,06-12943,840.50,Norbridge Academy Trust
Nottinghamshire County Council,1111/1001,Children and Young People,CYP,Third Party Payments,EDA,15/09/2022,06-12944,645.75,Peafield Lane Academy
Nottinghamshire County Council,1111/1001,Children and Young People,CYP,Third Party Payments,EDA,15/09/2022,06-12945,617.10,Richard Bonnington Primary Academy(
Nottinghamshire County Council,1111/1001,Children and Young People,CYP,Third Party Payments,EDA,15/09/2022,06-12946,"1,322.85",St Augustine's Academy (The Forge T
Nottinghamshire County Council,1111/1001,Children and Young People,CYP,Third Party Payments,EDA,15/09/2022,06-12947,621.75,Mansfield Primary Academy
Nottinghamshire County Council,1111/1001,Children and Young People,CYP,Third Party Payments,EDA,15/09/2022,06-12948,999.00,Wainwright Primary Academy (DALP)
Nottinghamshire County Council,1111/1001,Children and Young People,CYP,Third Party Payments,EDA,15/09/2022,06-12949,"1,152.75",Kirkby Woodhouse Academy School
Nottinghamshire County Council,1111/1001,Children and Young People,CYP,Third Party Payments,EDA,15/09/2022,06-12950,"1,016.25",Peafield Lane Academy
Nottinghamshire County Council,1111/1001,Children and Young People,CYP,Third Party Payments,EDA,15/09/2022,06-12951,"1,136.25",Mapplewells Primary & Nursery Acade
Nottinghamshire County Council,1111/1001,Children and Young People,CYP,Third Party Payments,EDA,15/09/2022,06-12952,"1,431.00",Leamington Primary & Nursery Academ
Nottinghamshire County Council,1111/1001,Children and Young People,CYP,Third Party Payments,EDA,15/09/2022,06-12953,511.50,Birklands Primary (Academy)
Nottinghamshire County Council,1111/1001,Children and Young People,CYP,Third Party Payments,EDA,15/09/2022,06-12954,"1,378.05",Richard Bonnington Primary Academy(
Nottinghamshire County Council,1111/1001,Children and Young People,CYP,Third Party Payments,EDA,15/09/2022,06-12955,873.75,Robert Mellors Primary & Nursery Ac
Nottinghamshire County Council,1111/1001,Children and Young People,CYP,Third Party Payments,EDA,15/09/2022,06-12956,521.63,Parkdale Primary Academy
Nottinghamshire County Council,1111/1001,Children and Young People,CYP,Third Party Payments,EDA,15/09/2022,06-12957,585.75,John Clifford School
Nottinghamshire County Council,1111/1001,Children and Young People,CYP,Third Party Payments,EDA,15/09/2022,06-12958,"1,582.38",Alderman Pounder Academy(Flying Hig
Nottinghamshire County Council,1111/1001,Children and Young People,CYP,Third Party Payments,EDA,15/09/2022,06-12959,806.25,Thrumpton Primary Academy
Nottinghamshire County Council,1111/1001,Children and Young People,CYP,Third Party Payments,EDA,15/09/2022,06-12960,954.75,Bracken Lane Primary Academy
Nottinghamshire County Council,1111/1001,Children and Young People,CYP,Third Party Payments,EDA,15/09/2022,06-12961,763.50,Forest Glade Primary School (Academ
Nottinghamshire County Council,1111/1001,Children and Young People,CYP,Third Party Payments,EDA,15/09/2022,06-12962,"1,033.50",Hillocks Primary Academy
Nottinghamshire County Council,1111/1001,Children and Young People,CYP,Third Party Payments,EDA,15/09/2022,06-12963,"1,272.00",Heymann Primary School
Nottinghamshire County Council,1111/1001,Children and Young People,CYP,Third Party Payments,EDA,15/09/2022,06-12964,"1,380.00",Norbridge Academy Trust
Nottinghamshire County Council,1111/1001,Children and Young People,CYP,Third Party Payments,EDA,15/09/2022,06-12965,"1,056.75",John Hunt Academy
Nottinghamshire County Council,1111/1001,Children and Young People,CYP,Third Party Payments,EDA,15/09/2022,06-12966,993.75,Hawthorne Primary Academy(Flying Hi
Nottinghamshire County Council,1111/1001,Children and Young People,CYP,Third Party Payments,EDA,15/09/2022,06-12967,964.50,Samuel Barlow Primary Academy
Nottinghamshire County Council,1111/1001,Children and Young People,CYP,Third Party Payments,EDA,15/09/2022,06-12968,"1,337.25",Parkgate Academy (Forge Trust)
Nottinghamshire County Council,1111/1001,Children and Young People,CYP,Third Party Payments,EDA,15/09/2022,06-12969,763.35,Tuxford Primary Academy
Nottinghamshire County Council,1111/1001,Children and Young People,CYP,Third Party Payments,EDA,15/09/2022,06-12970,603.75,Ranskill Primary Academy
Nottinghamshire County Council,1111/1001,Children and Young People,CYP,Third Party Payments,EDA,15/09/2022,06-12971,789.00,Kimberley Primary & Nursery Acadamy
Nottinghamshire County Council,1111/1001,Children and Young People,CYP,Third Party Payments,EDA,15/09/2022,06-12972,"1,209.75",Greenwood Primary & Nursery School
Nottinghamshire County Council,1111/1001,Children and Young People,CYP,Third Party Payments,EDA,15/09/2022,06-12973,555.75,West Park Academy
Nottinghamshire County Council,1111/1001,Children and Young People,CYP,Third Party Payments,EDA,15/09/2022,06-12974,"1,733.25",Barnby Road Academy Prim & Nursery
Nottinghamshire County Council,1111/1001,Children and Young People,CYP,Third Party Payments,EDA,15/09/2022,06-12975,509.43,Keyworth Primary & Nursery School
Nottinghamshire County Council,1111/1001,Children and Young People,CYP,Third Party Payments,EDA,15/09/2022,06-12976,"1,387.50",Sparken Hill Academy
Nottinghamshire County Council,1111/1001,Children and Young People,CYP,Third Party Payments,EDA,15/09/2022,06-12977,822.45,Bilsthorpe Flying High Academy (Fly
Nottinghamshire County Council,1111/1001,Children and Young People,CYP,Third Party Payments,EDA,15/09/2022,06-12978,936.75,Beeston Fields Primary(Flying High
Nottinghamshire County Council,1111/1001,Children and Young People,CYP,Third Party Payments,EDA,15/09/2022,06-12979,893.55,St Johns C of E Academy
Nottinghamshire County Council,1111/1001,Children and Young People,CYP,Third Party Payments,EDA,15/09/2022,06-12980,605.50,St Peters C of E Academy
Nottinghamshire County Council,1111/1001,Children and Young People,CYP,Third Party Payments,EDA,15/09/2022,06-12981,"1,890.00",Sir Donald Bailey Academy (Forge Tr
Nottinghamshire County Council,1111/1001,Children and Young People,CYP,Third Party Payments,EDA,15/09/2022,06-12982,887.25,Langold Dyscarr Community Academy
Nottinghamshire County Council,1111/1001,Children and Young People,CYP,Third Party Payments,EDA,15/09/2022,06-12983,553.50,St Peters C of E Academy Mansfield
Nottinghamshire County Council,1111/1001,Children and Young People,CYP,Third Party Payments,EDA,15/09/2022,06-12984,"1,092.00",Abbey Primary Academy(Believe Acade
Nottinghamshire County Council,1111/1001,Children and Young People,CYP,Third Party Payments,EDA,15/09/2022,06-12985,894.75,Springbank Primary Academy
Nottinghamshire County Council,1111/1001,Children and Young People,CYP,Third Party Payments,EDA,15/09/2022,06-12986,664.50,Sacred Heart Catholic Voluntary Aca
Nottinghamshire County Council,1111/1001,Children and Young People,CYP,Third Party Payments,EDA,15/09/2022,06-12987,755.25,Do Not Use-St Joseph's RC Primary A
Nottinghamshire County Council,1111/1001,Children and Young People,CYP,Third Party Payments,EDA,15/09/2022,06-12988,889.50,Holy Trinity Catholic Voluntary Aca
Nottinghamshire County Council,1111/1001,Children and Young People,CYP,Third Party Payments,EDA,15/09/2022,06-12989,777.75,St Patricks Catholic Voluntary Acad
Nottinghamshire County Council,1111/1001,Children and Young People,CYP,Third Party Payments,EDA,15/09/2022,06-12990,"1,123.50",St Philip Neri with St Bede Vol Aca
Nottinghamshire County Council,1111/1001,Children and Young People,CYP,Third Party Payments,EDA,15/09/2022,06-12991,534.00,St Josephs Catholic Primary Sch Aca
Nottinghamshire County Council,1111/1001,Children and Young People,CYP,Third Party Payments,EDA,15/09/2022,06-12992,684.75,Worksop Priory CE Primary Academy
Nottinghamshire County Council,1111/1001,Children and Young People,CYP,Third Party Payments,EDA,15/09/2022,06-12993,624.75,Oak Tree Lane Primary Academy
Nottinghamshire County Council,1111/1001,Children and Young People,CYP,Third Party Payments,EDA,15/09/2022,06-12994,"1,046.25",Awsworth Primary & Nursery Academy
Nottinghamshire County Council,1111/1001,Children and Young People,CYP,Third Party Payments,EDA,15/09/2022,06-12995,"1,503.00",Netherfield Primary School (Academy
Nottinghamshire County Council,1111/1001,Children and Young People,CYP,Third Party Payments,EDA,15/09/2022,06-12996,879.75,Florence Nightingale Academy
Nottinghamshire County Council,1111/1001,Children and Young People,CYP,Third Party Payments,EDA,15/09/2022,06-12997,"1,165.45",Candleby Lane School
Nottinghamshire County Council,1111/1001,Children and Young People,CYP,Third Party Payments,EDA,15/09/2022,06-12998,"1,031.25",Hillside Academy
Nottinghamshire County Council,1111/1001,Children and Young People,CYP,Third Party Payments,EDA,15/09/2022,06-12999,"1,380.84",The Flying High Academy
Nottinghamshire County Council,1111/1001,Children and Young People,CYP,Third Party Payments,EDA,15/09/2022,06-13000,"1,064.25",Serlby Park Academy
Nottinghamshire County Council,1111/1001,Children and Young People,CYP,Third Party Payments,EDA,15/09/2022,06-13001,998.25,Hucknall Flying High Academy
Nottinghamshire County Council,1111/1001,Children and Young People,CYP,Third Party Payments,EDA,15/09/2022,06-13002,596.25,Bishop Alexander LEAD Academy
Nottinghamshire County Council,1111/1001,Children and Young People,CYP,Third Party Payments,EDA,15/09/2022,06-13003,606.15,Sunnyside Spencer Academy (Spencer
Nottinghamshire County Council,1111/1001,Children and Young People,CYP,Third Party Payments,EDA,15/09/2022,06-13004,858.00,Carlton Infant Academy & Nursery Sc
Nottinghamshire County Council,1111/1001,Children and Young People,CYP,Third Party Payments,EDA,21/09/2022,06-13318,"76,897.00",Quarrydale Academy
Nottinghamshire County Council,1111/1001,Children and Young People,CYP,Third Party Payments,EDA,22/09/2022,06-11163,"4,166.67",Beech Academy (Nexus Multi AcademyT
Nottinghamshire County Council,1111/1001,Children and Young People,CYP,Third Party Payments,EDA,22/09/2022,06-11164,"91,434.00",Beech Academy (Nexus Multi AcademyT
Nottinghamshire County Council,1111/1001,Children and Young People,CYP,Third Party Payments,EDA,23/09/2022,06-13403,"7,902.72",Kings C of E Primary Academy
Nottinghamshire County Council,1111/1001,Children and Young People,CYP,Third Party Payments,EDA,23/09/2022,06-13404,"21,732.48",St Augustine's Academy (The Forge T
Nottinghamshire County Council,1111/1001,Children and Young People,CYP,Third Party Payments,EDA,23/09/2022,06-13405,"9,878.40",Mansfield Primary Academy
Nottinghamshire County Council,1111/1001,Children and Young People,CYP,Third Party Payments,EDA,23/09/2022,06-13406,"17,122.56",Wainwright Primary Academy (DALP)
Nottinghamshire County Council,1111/1001,Children and Young People,CYP,Third Party Payments,EDA,23/09/2022,06-13407,"8,561.28",Kingston Park Academy
Nottinghamshire County Council,1111/1001,Children and Young People,CYP,Third Party Payments,EDA,23/09/2022,06-13408,"19,098.24",Kirkby Woodhouse Academy School
Nottinghamshire County Council,1111/1001,Children and Young People,CYP,Third Party Payments,EDA,23/09/2022,06-13409,"16,464.00",Peafield Lane Academy
Nottinghamshire County Council,1111/1001,Children and Young People,CYP,Third Party Payments,EDA,23/09/2022,06-13410,"23,708.16",Leamington Primary & Nursery Academ
Nottinghamshire County Council,1111/1001,Children and Young People,CYP,Third Party Payments,EDA,23/09/2022,06-13411,"9,219.84",Birklands Primary (Academy)
Nottinghamshire County Council,1111/1001,Children and Young People,CYP,Third Party Payments,EDA,23/09/2022,06-13412,"21,337.34",Richard Bonnington Primary Academy(
Nottinghamshire County Council,1111/1001,Children and Young People,CYP,Third Party Payments,EDA,23/09/2022,06-13413,"13,829.76",Robert Mellors Primary & Nursery Ac
Nottinghamshire County Council,1111/1001,Children and Young People,CYP,Third Party Payments,EDA,23/09/2022,06-13414,"9,878.40",Haddon Primary School (Academy)
Nottinghamshire County Council,1111/1001,Children and Young People,CYP,Third Party Payments,EDA,23/09/2022,06-13415,"13,829.76",Parkdale Primary Academy
Nottinghamshire County Council,1111/1001,Children and Young People,CYP,Third Party Payments,EDA,23/09/2022,06-13416,"11,195.52",John Clifford School
Nottinghamshire County Council,1111/1001,Children and Young People,CYP,Third Party Payments,EDA,23/09/2022,06-13417,"27,659.52",Alderman Pounder Academy(Flying Hig
Nottinghamshire County Council,1111/1001,Children and Young People,CYP,Third Party Payments,EDA,23/09/2022,06-13418,"13,829.76",Thrumpton Primary Academy
Nottinghamshire County Council,1111/1001,Children and Young People,CYP,Third Party Payments,EDA,23/09/2022,06-13419,"18,439.68",Bracken Lane Primary Academy
Nottinghamshire County Council,1111/1001,Children and Young People,CYP,Third Party Payments,EDA,23/09/2022,06-13420,"12,512.64",Forest Glade Primary School (Academ
Nottinghamshire County Council,1111/1001,Children and Young People,CYP,Third Party Payments,EDA,23/09/2022,06-13421,"19,098.24",Hillocks Primary Academy
Nottinghamshire County Council,1111/1001,Children and Young People,CYP,Third Party Payments,EDA,23/09/2022,06-13422,"30,293.76",Heymann Primary School
Nottinghamshire County Council,1111/1001,Children and Young People,CYP,Third Party Payments,EDA,23/09/2022,06-13423,"6,585.60",Haggonfields Primary Academy
Nottinghamshire County Council,1111/1001,Children and Young People,CYP,Third Party Payments,EDA,23/09/2022,06-13424,"25,683.84",Norbridge Academy Trust
Nottinghamshire County Council,1111/1001,Children and Young People,CYP,Third Party Payments,EDA,23/09/2022,06-13425,"20,415.36",John Hunt Academy
Nottinghamshire County Council,1111/1001,Children and Young People,CYP,Third Party Payments,EDA,23/09/2022,06-13426,"18,439.68",Hawthorne Primary Academy(Flying Hi
Nottinghamshire County Council,1111/1001,Children and Young People,CYP,Third Party Payments,EDA,23/09/2022,06-13427,"17,781.12",Samuel Barlow Primary Academy
Nottinghamshire County Council,1111/1001,Children and Young People,CYP,Third Party Payments,EDA,23/09/2022,06-13428,"2,634.24",Flintham Primary Academy School
Nottinghamshire County Council,1111/1001,Children and Young People,CYP,Third Party Payments,EDA,23/09/2022,06-13429,"27,000.96",Parkgate Academy (Forge Trust)
Nottinghamshire County Council,1111/1001,Children and Young People,CYP,Third Party Payments,EDA,23/09/2022,06-13430,"13,171.20",Tuxford Primary Academy
Nottinghamshire County Council,1111/1001,Children and Young People,CYP,Third Party Payments,EDA,23/09/2022,06-13431,"11,195.52",Ranskill Primary Academy
Nottinghamshire County Council,1111/1001,Children and Young People,CYP,Third Party Payments,EDA,23/09/2022,06-13432,"13,171.20",Kimberley Primary & Nursery Acadamy
Nottinghamshire County Council,1111/1001,Children and Young People,CYP,Third Party Payments,EDA,23/09/2022,06-13433,"21,732.48",Greenwood Primary & Nursery School
Nottinghamshire County Council,1111/1001,Children and Young People,CYP,Third Party Payments,EDA,23/09/2022,06-13434,"9,219.84",West Park Academy
Nottinghamshire County Council,1111/1001,Children and Young People,CYP,Third Party Payments,EDA,23/09/2022,06-13435,"29,635.20",Barnby Road Academy Prim & Nursery
Nottinghamshire County Council,1111/1001,Children and Young People,CYP,Third Party Payments,EDA,23/09/2022,06-13436,"9,219.84",Keyworth Primary & Nursery School
Nottinghamshire County Council,1111/1001,Children and Young People,CYP,Third Party Payments,EDA,23/09/2022,06-13437,"21,732.48",Sparken Hill Academy
Nottinghamshire County Council,1111/1001,Children and Young People,CYP,Third Party Payments,EDA,23/09/2022,06-13438,"13,829.76",Bilsthorpe Flying High Academy (Fly
Nottinghamshire County Council,1111/1001,Children and Young People,CYP,Third Party Payments,EDA,23/09/2022,06-13439,"15,146.88",Beeston Fields Primary(Flying High
Nottinghamshire County Council,1111/1001,Children and Young People,CYP,Third Party Payments,EDA,23/09/2022,06-13440,"6,585.60",Bramble Academy (Evolve Trust)
Nottinghamshire County Council,1111/1001,Children and Young People,CYP,Third Party Payments,EDA,23/09/2022,06-13441,"8,561.28",Mount C of E Primary School (Academ
Nottinghamshire County Council,1111/1001,Children and Young People,CYP,Third Party Payments,EDA,23/09/2022,06-13442,"18,439.68",St Johns C of E Academy
Nottinghamshire County Council,1111/1001,Children and Young People,CYP,Third Party Payments,EDA,23/09/2022,06-13443,"10,097.92",St Peters C of E Academy
Nottinghamshire County Council,1111/1001,Children and Young People,CYP,Third Party Payments,EDA,23/09/2022,06-13444,"5,927.04",Leverton C Of E Academy
Nottinghamshire County Council,1111/1001,Children and Young People,CYP,Third Party Payments,EDA,23/09/2022,06-13445,"32,928.00",Sir Donald Bailey Academy (Forge Tr
Nottinghamshire County Council,1111/1001,Children and Young People,CYP,Third Party Payments,EDA,23/09/2022,06-13446,"16,464.00",Langold Dyscarr Community Academy
Nottinghamshire County Council,1111/1001,Children and Young People,CYP,Third Party Payments,EDA,23/09/2022,06-13447,"8,561.28",St Peters C of E Academy Mansfield
Nottinghamshire County Council,1111/1001,Children and Young People,CYP,Third Party Payments,EDA,23/09/2022,06-13448,"19,098.24",Abbey Primary Academy(Believe Acade
Nottinghamshire County Council,1111/1001,Children and Young People,CYP,Third Party Payments,EDA,23/09/2022,06-13449,"15,805.44",Springbank Primary Academy
Nottinghamshire County Council,1111/1001,Children and Young People,CYP,Third Party Payments,EDA,23/09/2022,06-13450,"3,292.80",Burntstump Seely CofE Primary Acade
Nottinghamshire County Council,1111/1001,Children and Young People,CYP,Third Party Payments,EDA,23/09/2022,06-13451,"5,927.04",St Swithuns C of E Primary Academy
Nottinghamshire County Council,1111/1001,Children and Young People,CYP,Third Party Payments,EDA,23/09/2022,06-13452,"7,156.35",Gunthorpe C OF E Primary Academy
Nottinghamshire County Council,1111/1001,Children and Young People,CYP,Third Party Payments,EDA,23/09/2022,06-13453,"13,171.20",Sacred Heart Catholic Voluntary Aca
Nottinghamshire County Council,1111/1001,Children and Young People,CYP,Third Party Payments,EDA,23/09/2022,06-13454,"9,878.40",Good Shephard Prim Catholic Vol Aca
Nottinghamshire County Council,1111/1001,Children and Young People,CYP,Third Party Payments,EDA,23/09/2022,06-13455,"17,122.56",Holy Trinity Catholic Voluntary Aca
Nottinghamshire County Council,1111/1001,Children and Young People,CYP,Third Party Payments,EDA,23/09/2022,06-13456,"19,098.24",St Philip Neri with St Bede Vol Aca
Nottinghamshire County Council,1111/1001,Children and Young People,CYP,Third Party Payments,EDA,23/09/2022,06-13457,"7,244.16",St Josephs Catholic Primary Sch Aca
Nottinghamshire County Council,1111/1001,Children and Young People,CYP,Third Party Payments,EDA,23/09/2022,06-13458,"10,536.96",Oak Tree Lane Primary Academy
Nottinghamshire County Council,1111/1001,Children and Young People,CYP,Third Party Payments,EDA,23/09/2022,06-13459,"21,073.92",Awsworth Primary & Nursery Academy
Nottinghamshire County Council,1111/1001,Children and Young People,CYP,Third Party Payments,EDA,23/09/2022,06-13460,"5,268.48",Python Hill Academy (Forge Trust)
Nottinghamshire County Council,1111/1001,Children and Young People,CYP,Third Party Payments,EDA,23/09/2022,06-13461,"4,609.92",Arnbrook Primary Academy
Nottinghamshire County Council,1111/1001,Children and Young People,CYP,Third Party Payments,EDA,23/09/2022,06-13462,"28,318.08",Netherfield Primary School (Academy
Nottinghamshire County Council,1111/1001,Children and Young People,CYP,Third Party Payments,EDA,23/09/2022,06-13463,"16,464.00",Florence Nightingale Academy
Nottinghamshire County Council,1111/1001,Children and Young People,CYP,Third Party Payments,EDA,23/09/2022,06-13464,"19,581.18",Candleby Lane School
Nottinghamshire County Council,1111/1001,Children and Young People,CYP,Third Party Payments,EDA,23/09/2022,06-13465,"15,146.88",Hillside Academy
Nottinghamshire County Council,1111/1001,Children and Young People,CYP,Third Party Payments,EDA,23/09/2022,06-13466,"25,683.84",The Flying High Academy
Nottinghamshire County Council,1111/1001,Children and Young People,CYP,Third Party Payments,EDA,23/09/2022,06-13467,"15,805.44",Serlby Park Academy
Nottinghamshire County Council,1111/1001,Children and Young People,CYP,Third Party Payments,EDA,23/09/2022,06-13468,"19,756.80",Hucknall Flying High Academy
Nottinghamshire County Council,1111/1001,Children and Young People,CYP,Third Party Payments,EDA,23/09/2022,06-13469,810.00,Magnus Church of England Academy
Nottinghamshire County Council,1111/1001,Children and Young People,CYP,Third Party Payments,EDA,23/09/2022,06-13470,"9,219.84",Bishop Alexander LEAD Academy
Nottinghamshire County Council,1111/1001,Children and Young People,CYP,Third Party Payments,EDA,23/09/2022,06-13471,"12,117.50",Sunnyside Spencer Academy (Spencer
Nottinghamshire County Council,1111/1001,Children and Young People,CYP,Third Party Payments,EDA,23/09/2022,06-13472,"13,829.76",Carlton Infant Academy & Nursery Sc
Nottinghamshire County Council,1111/1001,Children and Young People,CYP,Third Party Payments,EDA,26/09/2022,06-10997,"16,992.00",Carlton Academy
Nottinghamshire County Council,1111/1001,Children and Young People,CYP,Third Party Payments,EDA,26/09/2022,06-10998,"38,436.00",Colonel Frank Seeley Academy
Nottinghamshire County Council,1111/1001,Children and Young People,CYP,Third Party Payments,EDA,26/09/2022,06-10999,"13,540.00",Sir John Sherbrooke Junior Academy
Nottinghamshire County Council,1111/1001,Children and Young People,CYP,Third Party Payments,EDA,26/09/2022,06-11000,"8,659.00",Haddon Primary School (Academy)
Nottinghamshire County Council,1111/1001,Children and Young People,CYP,Third Party Payments,EDA,26/09/2022,06-11001,"2,860.00",Westdale Junior School Academy
Nottinghamshire County Council,1111/1001,Children and Young People,CYP,Third Party Payments,EDA,26/09/2022,06-11002,"4,199.00",Burntstump Seely CofE Primary Acade
Nottinghamshire County Council,1111/1001,Children and Young People,CYP,Third Party Payments,EDA,26/09/2022,06-11003,"8,594.00",Killisick Junior Academy
Nottinghamshire County Council,1111/1001,Children and Young People,CYP,Third Party Payments,EDA,26/09/2022,06-11004,"16,264.00",Candleby Lane School
Nottinghamshire County Council,1111/1001,Children and Young People,CYP,Third Party Payments,EDA,26/09/2022,06-11005,"12,712.00",South Nottinghamshire Academy
Nottinghamshire County Council,1111/1001,Children and Young People,CYP,Third Party Payments,EDA,26/09/2022,06-11006,"10,329.00",Richard Bonnington Primary Academy(
Nottinghamshire County Council,1111/1001,Children and Young People,CYP,Third Party Payments,EDA,26/09/2022,06-11007,"17,388.00",Robert Mellors Primary & Nursery Ac
Nottinghamshire County Council,1111/1001,Children and Young People,CYP,Third Party Payments,EDA,26/09/2022,06-11013,"16,519.00",Carlton Junior Academy
Nottinghamshire County Council,1111/1001,Children and Young People,CYP,Third Party Payments,EDA,26/09/2022,06-11014,"14,191.00",Redhill Academy
Nottinghamshire County Council,1111/1001,Children and Young People,CYP,Third Party Payments,EDA,26/09/2022,06-11015,"13,585.00",Carlton Infant Academy & Nursery Sc
Nottinghamshire County Council,1111/1001,Children and Young People,CYP,Third Party Payments,EDA,26/09/2022,06-17127,"11,869.00",Hilltop Special School (Nexis Trust
Nottinghamshire County Council,1111/1001,Children and Young People,CYP,Third Party Payments,EDA,26/09/2022,06-17437,"2,108.00",XP School (Doncaster) Ltd
Nottinghamshire County Council,1111/1001,Children and Young People,CYP,Third Party Payments,EFA,02/09/2022,06-17124,"7,950.00",A Place To Call Our Own Ltd
Nottinghamshire County Council,1111/1001,Children and Young People,CYP,Third Party Payments,EFA,02/09/2022,06-17165,"54,965.90",Longboat Special Education Ltd
Nottinghamshire County Council,1111/1001,Children and Young People,CYP,Third Party Payments,EFA,06/09/2022,06-11016,"4,500.00",[Redacted]
Nottinghamshire County Council,1111/1001,Children and Young People,CYP,Third Party Payments,EFA,06/09/2022,06-11017,"2,450.00",[Redacted]
Nottinghamshire County Council,1111/1001,Children and Young People,CYP,Third Party Payments,EFA,06/09/2022,06-17284,"18,472.33",Acorn Care & Education Ltd
Nottinghamshire County Council,1111/1001,Children and Young People,CYP,Third Party Payments,EFA,06/09/2022,06-17314,"2,250.00",A Place To Call Our Own Ltd
Nottinghamshire County Council,1111/1001,Children and Young People,CYP,Third Party Payments,EFA,07/09/2022,06-17340,"2,694.00",Buxton Training Enterprises Ltd
Nottinghamshire County Council,1111/1001,Children and Young People,CYP,Third Party Payments,EFA,07/09/2022,06-17361,"12,576.50",Wellow House School
Nottinghamshire County Council,1111/1001,Children and Young People,CYP,Third Party Payments,EFA,07/09/2022,06-17362,"10,492.50",Wellow House School
Nottinghamshire County Council,1111/1001,Children and Young People,CYP,Third Party Payments,EFA,07/09/2022,06-17363,"12,575.50",Wellow House School
Nottinghamshire County Council,1111/1001,Children and Young People,CYP,Third Party Payments,EFA,07/09/2022,06-17367,"27,173.11",Real Education Ltd
Nottinghamshire County Council,1111/1001,Children and Young People,CYP,Third Party Payments,EFA,08/09/2022,06-17360,"17,495.50",Wellow House School
Nottinghamshire County Council,1111/1001,Children and Young People,CYP,Third Party Payments,EFA,08/09/2022,06-17379,"9,096.00",A Place To Call Our Own Ltd
Nottinghamshire County Council,1111/1001,Children and Young People,CYP,Third Party Payments,EFA,08/09/2022,06-17380,"1,188.00",CB Fresh Start in Education Ltd
Nottinghamshire County Council,1111/1001,Children and Young People,CYP,Third Party Payments,EFA,08/09/2022,06-17406,"5,000.00",A Place To Call Our Own Ltd
Nottinghamshire County Council,1111/1001,Children and Young People,CYP,Third Party Payments,EFA,08/09/2022,06-17419,"87,146.33",I Can Services Ltd
Nottinghamshire County Council,1111/1001,Children and Young People,CYP,Third Party Payments,EFA,08/09/2022,06-17420,"56,500.00",A Place To Call Our Own Ltd
Nottinghamshire County Council,1111/1001,Children and Young People,CYP,Third Party Payments,EFA,08/09/2022,06-17422,"8,814.66",Acorn Care & Education Ltd
Nottinghamshire County Council,1111/1001,Children and Young People,CYP,Third Party Payments,EFA,08/09/2022,06-17423,"8,814.66",Acorn Care & Education Ltd
Nottinghamshire County Council,1111/1001,Children and Young People,CYP,Third Party Payments,EFA,08/09/2022,06-17424,"8,814.66",Acorn Care & Education Ltd
Nottinghamshire County Council,1111/1001,Children and Young People,CYP,Third Party Payments,EFA,08/09/2022,06-17425,"18,472.34",Acorn Care & Education Ltd
Nottinghamshire County Council,1111/1001,Children and Young People,CYP,Third Party Payments,EFA,08/09/2022,06-17426,"8,814.66",Acorn Care & Education Ltd
Nottinghamshire County Council,1111/1001,Children and Young People,CYP,Third Party Payments,EFA,08/09/2022,06-17427,"8,814.66",Acorn Care & Education Ltd
Nottinghamshire County Council,1111/1001,Children and Young People,CYP,Third Party Payments,EFA,09/09/2022,06-17432,"1,452.00",Learn Solutions Ltd T/A TLC Live
Nottinghamshire County Council,1111/1001,Children and Young People,CYP,Third Party Payments,EFA,12/09/2022,06-17357,"10,492.50",Wellow House School
Nottinghamshire County Council,1111/1001,Children and Young People,CYP,Third Party Payments,EFA,12/09/2022,06-17358,"17,495.50",Wellow House School
Nottinghamshire County Council,1111/1001,Children and Young People,CYP,Third Party Payments,EFA,12/09/2022,06-17359,"12,576.50",Wellow House School
Nottinghamshire County Council,1111/1001,Children and Young People,CYP,Third Party Payments,EFA,12/09/2022,06-17365,"12,575.50",Wellow House School
Nottinghamshire County Council,1111/1001,Children and Young People,CYP,Third Party Payments,EFA,12/09/2022,06-17385,"8,500.00",Acorn Care & Education Ltd
Nottinghamshire County Council,1111/1001,Children and Young People,CYP,Third Party Payments,EFA,20/09/2022,06-17386,"2,678.57",Greenfields Adolescent Development
Nottinghamshire County Council,1111/1001,Children and Young People,CYP,Third Party Payments,EFA,20/09/2022,06-17388,"2,678.70",Branas Isaf Ltd
Nottinghamshire County Council,1111/1001,Children and Young People,CYP,Third Party Payments,EFA,20/09/2022,06-17411,"3,900.00",Cambian Childcare Ltd
Nottinghamshire County Council,1111/1001,Children and Young People,CYP,Third Party Payments,EFA,26/09/2022,06-17123,"27,173.11",Real Education Ltd
Nottinghamshire County Council,1111/1001,Children and Young People,CYP,Third Party Payments,EFA,26/09/2022,06-17355,"1,038.60",G18 Ltd T/A LivAva
Nottinghamshire County Council,1111/1001,Children and Young People,CYP,Third Party Payments,EFA,28/09/2022,06-16078,586.00,Foster Care Associates Ltd
Nottinghamshire County Council,1111/1001,Children and Young People,CYP,Third Party Payments,EGA,01/09/2022,06-10129,564.48,E Haynes (Childminder)
Nottinghamshire County Council,1111/1001,Children and Young People,CYP,Third Party Payments,EGA,01/09/2022,06-17117,"2,598.88",Nottingham Mencap
Nottinghamshire County Council,1111/1001,Children and Young People,CYP,Third Party Payments,EGA,06/09/2022,06-17277,696.15,Cherubs Childrens Centre Wynndale
Nottinghamshire County Council,1111/1001,Children and Young People,CYP,Third Party Payments,EGA,06/09/2022,06-17295,678.84,Thornbury Nursing Services
Nottinghamshire County Council,1111/1001,Children and Young People,CYP,Third Party Payments,EGA,06/09/2022,06-17309,"3,634.44",Fostering Dimensions Ltd
Nottinghamshire County Council,1111/1001,Children and Young People,CYP,Third Party Payments,EGA,06/09/2022,06-17311,"3,634.44",Fostering Dimensions Ltd
Nottinghamshire County Council,1111/1001,Children and Young People,CYP,Third Party Payments,EGA,06/09/2022,06-17312,"3,634.44",Fostering Dimensions Ltd
Nottinghamshire County Council,1111/1001,Children and Young People,CYP,Third Party Payments,EGA,07/09/2022,06-11056,"1,150.00",Norman Galloway Ltd
Nottinghamshire County Council,1111/1001,Children and Young People,CYP,Third Party Payments,EGA,07/09/2022,06-11141,"4,922.00",Crystal Care Solutions Ltd
Nottinghamshire County Council,1111/1001,Children and Young People,CYP,Third Party Payments,EGA,07/09/2022,06-17237,"7,417.68",Nevaeh Homes Ltd
Nottinghamshire County Council,1111/1001,Children and Young People,CYP,Third Party Payments,EGA,07/09/2022,06-17264,"11,027.01",Nevaeh Homes Ltd
Nottinghamshire County Council,1111/1001,Children and Young People,CYP,Third Party Payments,EGA,07/09/2022,06-17335,"4,539.21",Smiles on Faces Ltd (Evoke 24)
Nottinghamshire County Council,1111/1001,Children and Young People,CYP,Third Party Payments,EGA,07/09/2022,06-17345,"6,000.00",True Fostering Ltd
Nottinghamshire County Council,1111/1001,Children and Young People,CYP,Third Party Payments,EGA,07/09/2022,06-17346,"6,000.00",True Fostering Ltd
Nottinghamshire County Council,1111/1001,Children and Young People,CYP,Third Party Payments,EGA,07/09/2022,06-17350,"7,240.71",Brightside Care Solutions Ltd
Nottinghamshire County Council,1111/1001,Children and Young People,CYP,Third Party Payments,EGA,08/09/2022,06-17396,"15,994.14",Horizon Care & Education Group Ltd
Nottinghamshire County Council,1111/1001,Children and Young People,CYP,Third Party Payments,EGA,08/09/2022,06-17397,"15,994.14",Horizon Care & Education Group Ltd
Nottinghamshire County Council,1111/1001,Children and Young People,CYP,Third Party Payments,EGA,08/09/2022,06-17398,"15,994.14",Horizon Care & Education Group Ltd
Nottinghamshire County Council,1111/1001,Children and Young People,CYP,Third Party Payments,EGA,08/09/2022,06-17399,"15,994.14",Horizon Care & Education Group Ltd
Nottinghamshire County Council,1111/1001,Children and Young People,CYP,Third Party Payments,EGA,08/09/2022,06-17400,"24,139.69",Keys PCE Ltd
Nottinghamshire County Council,1111/1001,Children and Young People,CYP,Third Party Payments,EGA,08/09/2022,06-17401,"24,139.69",Keys PCE Ltd
Nottinghamshire County Council,1111/1001,Children and Young People,CYP,Third Party Payments,EGA,08/09/2022,06-17402,"24,139.69",Keys PCE Ltd
Nottinghamshire County Council,1111/1001,Children and Young People,CYP,Third Party Payments,EGA,08/09/2022,06-17403,"24,139.69",Keys PCE Ltd
Nottinghamshire County Council,1111/1001,Children and Young People,CYP,Third Party Payments,EGA,08/09/2022,06-17404,"24,139.69",Keys PCE Ltd
Nottinghamshire County Council,1111/1001,Children and Young People,CYP,Third Party Payments,EGA,08/09/2022,06-17405,"24,139.69",Keys PCE Ltd
Nottinghamshire County Council,1111/1001,Children and Young People,CYP,Third Party Payments,EGA,08/09/2022,06-17407,"24,139.69",Keys PCE Ltd
Nottinghamshire County Council,1111/1001,Children and Young People,CYP,Third Party Payments,EGA,08/09/2022,06-17410,"9,989.98",5AB Care Ltd
Nottinghamshire County Council,1111/1001,Children and Young People,CYP,Third Party Payments,EGA,08/09/2022,06-17414,"9,989.98",5AB Care Ltd
Nottinghamshire County Council,1111/1001,Children and Young People,CYP,Third Party Payments,EGA,08/09/2022,06-17421,"28,955.86",Fosterplus Ltd
Nottinghamshire County Council,1111/1001,Children and Young People,CYP,Third Party Payments,EGA,08/09/2022,06-17428,"7,240.71",Brightside Care Solutions Ltd
Nottinghamshire County Council,1111/1001,Children and Young People,CYP,Third Party Payments,EGA,09/09/2022,06-11469,"1,091.77",Tree House Out Of School Club
Nottinghamshire County Council,1111/1001,Children and Young People,CYP,Third Party Payments,EGA,09/09/2022,06-11470,"1,747.20",Acorns Childminding
Nottinghamshire County Council,1111/1001,Children and Young People,CYP,Third Party Payments,EGA,09/09/2022,06-17429,"4,059.05",Banya Family Placement Agency Ltd
Nottinghamshire County Council,1111/1001,Children and Young People,CYP,Third Party Payments,EGA,09/09/2022,06-17430,"3,867.28",Banya Family Placement Agency Ltd
Nottinghamshire County Council,1111/1001,Children and Young People,CYP,Third Party Payments,EGA,09/09/2022,06-17431,"3,867.28",Banya Family Placement Agency Ltd
Nottinghamshire County Council,1111/1001,Children and Young People,CYP,Third Party Payments,EGA,09/09/2022,06-17439,"26,571.34",Grace Care Ltd
Nottinghamshire County Council,1111/1001,Children and Young People,CYP,Third Party Payments,EGA,09/09/2022,06-17441,"6,416.64",Integrated Services Programme
Nottinghamshire County Council,1111/1001,Children and Young People,CYP,Third Party Payments,EGA,09/09/2022,06-17443,"2,598.88",Nottingham Mencap
Nottinghamshire County Council,1111/1001,Children and Young People,CYP,Third Party Payments,EGA,12/09/2022,06-11160,"4,569.10",Pre-School Learning Alliance (HO)
Nottinghamshire County Council,1111/1001,Children and Young People,CYP,Third Party Payments,EGA,12/09/2022,06-11161,"20,553.55",Pre-School Learning Alliance (HO)
Nottinghamshire County Council,1111/1001,Children and Young People,CYP,Third Party Payments,EGA,12/09/2022,06-11522,"3,807.59",Pre-School Learning Alliance (HO)
Nottinghamshire County Council,1111/1001,Children and Young People,CYP,Third Party Payments,EGA,13/09/2022,06-11809,"6,524.60",Kidzgrove
Nottinghamshire County Council,1111/1001,Children and Young People,CYP,Third Party Payments,EGA,13/09/2022,06-11810,"28,572.10",Pre-School Learning Alliance (HO)
Nottinghamshire County Council,1111/1001,Children and Young People,CYP,Third Party Payments,EGA,13/09/2022,06-17369,"2,564.25",DNA Care Services Ltd
Nottinghamshire County Council,1111/1001,Children and Young People,CYP,Third Party Payments,EGA,13/09/2022,06-17370,"1,872.00",DNA Care Services Ltd
Nottinghamshire County Council,1111/1001,Children and Young People,CYP,Third Party Payments,EGA,14/09/2022,06-12846,"4,922.00",Crystal Care Solutions Ltd
Nottinghamshire County Council,1111/1001,Children and Young People,CYP,Third Party Payments,EGA,16/09/2022,06-17204,"16,607.14",Barracare Ltd
Nottinghamshire County Council,1111/1001,Children and Young People,CYP,Third Party Payments,EGA,20/09/2022,06-17228,"18,720.29",Orange Grove Fostercare Ltd
Nottinghamshire County Council,1111/1001,Children and Young People,CYP,Third Party Payments,EGA,21/09/2022,06-13312,"4,922.00",Crystal Care Solutions Ltd
Nottinghamshire County Council,1111/1001,Children and Young People,CYP,Third Party Payments,EGA,21/09/2022,06-13372,"3,431.40",Welcome Nurseries (Ollerton)
Nottinghamshire County Council,1111/1001,Children and Young People,CYP,Third Party Payments,EGA,22/09/2022,06-13390,"4,365.90",Rainbows Day Nursery
Nottinghamshire County Council,1111/1001,Children and Young People,CYP,Third Party Payments,EGA,23/09/2022,06-17185,"1,120.00",Nottm Community Housing Assoc (Head
Nottinghamshire County Council,1111/1001,Children and Young People,CYP,Third Party Payments,EGA,26/09/2022,06-17120,"12,803.00",Grove Social Care Ltd
Nottinghamshire County Council,1111/1001,Children and Young People,CYP,Third Party Payments,EGA,26/09/2022,06-17198,"33,192.14",PAFA (Parenting Assessments for All
Nottinghamshire County Council,1111/1001,Children and Young People,CYP,Third Party Payments,EGA,26/09/2022,06-17265,"3,210.89",Barnardos (Head Office)
Nottinghamshire County Council,1111/1001,Children and Young People,CYP,Third Party Payments,EGA,26/09/2022,06-17266,"3,210.89",Barnardos (Head Office)
Nottinghamshire County Council,1111/1001,Children and Young People,CYP,Third Party Payments,EGA,26/09/2022,06-17267,"3,210.89",Barnardos (Head Office)
Nottinghamshire County Council,1111/1001,Children and Young People,CYP,Third Party Payments,EGA,26/09/2022,06-17269,"1,417.00",Affinity Fostering Service Ltd
Nottinghamshire County Council,1111/1001,Children and Young People,CYP,Third Party Payments,EGA,26/09/2022,06-17270,"1,417.00",Affinity Fostering Service Ltd
Nottinghamshire County Council,1111/1001,Children and Young People,CYP,Third Party Payments,EGA,26/09/2022,06-17271,"1,417.00",Affinity Fostering Service Ltd
Nottinghamshire County Council,1111/1001,Children and Young People,CYP,Third Party Payments,EGA,26/09/2022,06-17272,"1,417.00",Affinity Fostering Service Ltd
Nottinghamshire County Council,1111/1001,Children and Young People,CYP,Third Party Payments,EGA,26/09/2022,06-17321,"4,080.93",Three Circles Fostering Ltd
Nottinghamshire County Council,1111/1001,Children and Young People,CYP,Third Party Payments,EGA,26/09/2022,06-17323,"3,428.57",Bridging Gaps Ltd T/A Bridging Gaps
Nottinghamshire County Council,1111/1001,Children and Young People,CYP,Third Party Payments,EGA,26/09/2022,06-17326,"1,059.30",Nottm Community Housing Assoc (Head
Nottinghamshire County Council,1111/1001,Children and Young People,CYP,Third Party Payments,EGA,26/09/2022,06-17348,"85,973.85",Fusion Fostering Ltd
Nottinghamshire County Council,1111/1001,Children and Young People,CYP,Third Party Payments,EGA,26/09/2022,06-17353,"26,350.00",Shyne Together Ltd
Nottinghamshire County Council,1111/1001,Children and Young People,CYP,Third Party Payments,EGA,27/09/2022,06-17412,"23,560.00",Sixteen Plus Ltd
Nottinghamshire County Council,1111/1001,Children and Young People,CYP,Third Party Payments,EGA,28/09/2022,06-16077,703.14,Crystal Care Solutions Ltd
Nottinghamshire County Council,1111/1001,Children and Young People,CYP,Third Party Payments,EGA,29/09/2022,06-16163,"18,965.94",Serendipity's Day Nursery
Nottinghamshire County Council,1111/1001,Children and Young People,CYP,Third Party Payments,EGA,29/09/2022,06-16164,664.75,Tree House Out Of School Club
Nottinghamshire County Council,1111/1001,Children and Young People,CYP,Third Party Payments,EGA,29/09/2022,06-16165,"23,700.60",Quinton Day Nurseries T/A Honey Bee
Nottinghamshire County Council,1111/1001,Children and Young People,CYP,Third Party Payments,EGA,29/09/2022,06-16166,"8,711.81",Beacon Hill Day Nursery
Nottinghamshire County Council,1111/1001,Children and Young People,CYP,Third Party Payments,EGA,29/09/2022,06-16167,"12,737.09",Plumtree School
Nottinghamshire County Council,1111/1001,Children and Young People,CYP,Third Party Payments,EGA,29/09/2022,06-16168,"3,510.18",Cherubs Childcare Centre (Mansfield
Nottinghamshire County Council,1111/1001,Children and Young People,CYP,Third Party Payments,EGA,29/09/2022,06-16169,"7,862.40",Wellow House School
Nottinghamshire County Council,1111/1001,Children and Young People,CYP,Third Party Payments,EGA,29/09/2022,06-16170,"9,859.58",Bingham Day Nursery & Pre School
Nottinghamshire County Council,1111/1001,Children and Young People,CYP,Third Party Payments,EGA,29/09/2022,06-16171,"4,355.90",Willoughby On The Wolds Playgroup
Nottinghamshire County Council,1111/1001,Children and Young People,CYP,Third Party Payments,EGA,29/09/2022,06-16172,"9,778.44",Scottswood Pdn Ltd
Nottinghamshire County Council,1111/1001,Children and Young People,CYP,Third Party Payments,EGA,29/09/2022,06-16173,"47,386.08",Acorns Childminding
Nottinghamshire County Council,1111/1001,Children and Young People,CYP,Third Party Payments,EGA,29/09/2022,06-16174,"1,467.65",[Redacted]
Nottinghamshire County Council,1111/1001,Children and Young People,CYP,Third Party Payments,EGA,29/09/2022,06-16175,"1,307.71",Tracey Streeter Childminding Servic
Nottinghamshire County Council,1111/1001,Children and Young People,CYP,Third Party Payments,EGA,29/09/2022,06-16176,655.20,Rebecca Pilmore Childminding Servic
Nottinghamshire County Council,1111/1001,Children and Young People,CYP,Third Party Payments,EGA,29/09/2022,06-16177,705.60,G Wood (Childminder)
Nottinghamshire County Council,1111/1001,Children and Young People,CYP,Third Party Payments,EGA,29/09/2022,06-16178,564.48,E Hill (Childminder)
Nottinghamshire County Council,1111/1001,Children and Young People,CYP,Third Party Payments,EGA,29/09/2022,06-16179,705.60,J Horvath (Childminder)
Nottinghamshire County Council,1111/1001,Children and Young People,CYP,Third Party Payments,EGA,29/09/2022,06-16180,"1,016.06",Childcare @ Heathers House
Nottinghamshire County Council,1111/1001,Children and Young People,CYP,Third Party Payments,EGA,29/09/2022,06-16181,"1,213.63",J Thompson Childminding
Nottinghamshire County Council,1111/1001,Children and Young People,CYP,Third Party Payments,EGA,29/09/2022,06-16182,705.60,Cara's Childminding
Nottinghamshire County Council,1111/1001,Children and Young People,CYP,Third Party Payments,EGA,29/09/2022,06-16183,705.60,Orange Moon Childcare CIC T/A Home
Nottinghamshire County Council,1111/1001,Children and Young People,CYP,Third Party Payments,EGA,29/09/2022,06-16184,705.60,Zoes Childminding Service
Nottinghamshire County Council,1111/1001,Children and Young People,CYP,Third Party Payments,EGA,29/09/2022,06-16185,"1,128.96",B E Deignan (Childminder)
Nottinghamshire County Council,1111/1001,Children and Young People,CYP,Third Party Payments,EGA,29/09/2022,06-16186,705.60,Kimi D's Tiny Toes Childminding
Nottinghamshire County Council,1111/1001,Children and Young People,CYP,Third Party Payments,EGA,29/09/2022,06-16187,"4,039.56",Little Explorers
Nottinghamshire County Council,1111/1001,Children and Young People,CYP,Third Party Payments,EGA,29/09/2022,06-16188,"3,725.57",Phoenix Kindergarten CIC
Nottinghamshire County Council,1111/1001,Children and Young People,CYP,Third Party Payments,EGA,29/09/2022,06-16189,"5,685.96",Little Adventurers Forest School Wa
Nottinghamshire County Council,1111/1001,Children and Young People,CYP,Third Party Payments,EGA,29/09/2022,06-16190,827.90,YMCA Nursery at the Village
Nottinghamshire County Council,1111/1001,Children and Young People,CYP,Third Party Payments,EGA,29/09/2022,06-16191,564.48,Kaleigh's Childminding
Nottinghamshire County Council,1111/1001,Children and Young People,CYP,Third Party Payments,EGA,29/09/2022,06-16196,"11,333.70",Sunnydale Nursery Ltd
Nottinghamshire County Council,1111/1001,Children and Young People,CYP,Third Party Payments,EGA,29/09/2022,06-16197,564.48,[Redacted]
Nottinghamshire County Council,1111/1001,Children and Young People,CYP,Third Party Payments,EGA,29/09/2022,06-16198,696.19,[Redacted]
Nottinghamshire County Council,1111/1001,Children and Young People,CYP,Third Party Payments,EGA,29/09/2022,06-16199,579.60,Little Tots
Nottinghamshire County Council,1111/1001,Children and Young People,CYP,Third Party Payments,EGA,29/09/2022,06-16200,"11,201.35",Wolds Childcare Ltd
Nottinghamshire County Council,1111/1001,Children and Young People,CYP,Third Party Payments,EGA,29/09/2022,06-16201,"3,951.36",Saville House School  T/A NRA Acade
Nottinghamshire County Council,1111/1001,Children and Young People,CYP,Third Party Payments,EGA,29/09/2022,06-16202,564.48,Rachel & Philip's Home From Home Ch
Nottinghamshire County Council,1111/1001,Children and Young People,CYP,Third Party Payments,EGA,29/09/2022,06-16203,"3,544.62",Longdale Nursery School (Cherubs)
Nottinghamshire County Council,1111/1001,Children and Young People,CYP,Third Party Payments,EGA,29/09/2022,06-16204,"8,925.84",Wollaton Village Day Nurseries
Nottinghamshire County Council,1111/1001,Children and Young People,CYP,Third Party Payments,EGA,29/09/2022,06-16205,"2,662.46",Misson Pre-School
Nottinghamshire County Council,1111/1001,Children and Young People,CYP,Third Party Payments,EGA,29/09/2022,06-16206,"4,482.91",Toddlers University (Bee)
Nottinghamshire County Council,1111/1001,Children and Young People,CYP,Third Party Payments,EGA,29/09/2022,06-16207,564.48,Jammie Dodgers Childminding Group
Nottinghamshire County Council,1111/1001,Children and Young People,CYP,Third Party Payments,EGA,29/09/2022,06-16208,"18,000.15",Papermoon Day Nursery
Nottinghamshire County Council,1111/1001,Children and Young People,CYP,Third Party Payments,EGA,29/09/2022,06-16209,"24,061.59",Children 1st @ Breedon House (Plumt
Nottinghamshire County Council,1111/1001,Children and Young People,CYP,Third Party Payments,EGA,29/09/2022,06-16210,"1,914.53",Willow Brook Pre-School
Nottinghamshire County Council,1111/1001,Children and Young People,CYP,Third Party Payments,EGA,29/09/2022,06-16211,"1,384.74",[Redacted]
Nottinghamshire County Council,1111/1001,Children and Young People,CYP,Third Party Payments,EGA,29/09/2022,06-16212,"1,481.76",V Gill (Childminder)
Nottinghamshire County Council,1111/1001,Children and Young People,CYP,Third Party Payments,EGA,29/09/2022,06-16213,"7,514.05",Lime Trees  (Burton Joyce)
Nottinghamshire County Council,1111/1001,Children and Young People,CYP,Third Party Payments,EGA,29/09/2022,06-16214,"5,363.89",Ark Pre-School
Nottinghamshire County Council,1111/1001,Children and Young People,CYP,Third Party Payments,EGA,29/09/2022,06-16215,"7,411.74",Little Kites Playgroup
Nottinghamshire County Council,1111/1001,Children and Young People,CYP,Third Party Payments,EGA,29/09/2022,06-16216,"17,767.76",Grosvenor House Day Nursery
Nottinghamshire County Council,1111/1001,Children and Young People,CYP,Third Party Payments,EGA,29/09/2022,06-16217,"1,185.41",[Redacted]
Nottinghamshire County Council,1111/1001,Children and Young People,CYP,Third Party Payments,EGA,29/09/2022,06-16218,"28,572.10",Pre-School Learning Alliance (HO)
Nottinghamshire County Council,1111/1001,Children and Young People,CYP,Third Party Payments,EGA,29/09/2022,06-16219,917.28,[Redacted]
Nottinghamshire County Council,1111/1001,Children and Young People,CYP,Third Party Payments,EGA,29/09/2022,06-16220,"2,845.92",Lady Bay Pre School Playgroup
Nottinghamshire County Council,1111/1001,Children and Young People,CYP,Third Party Payments,EGA,29/09/2022,06-16221,"16,903.83",All Aboard Nursery Ltd
Nottinghamshire County Council,1111/1001,Children and Young People,CYP,Third Party Payments,EGA,29/09/2022,06-16222,"16,487.52",Carlton & Gedling Day Nursery
Nottinghamshire County Council,1111/1001,Children and Young People,CYP,Third Party Payments,EGA,29/09/2022,06-16223,"11,539.50",Arnold House Day Nursery
Nottinghamshire County Council,1111/1001,Children and Young People,CYP,Third Party Payments,EGA,29/09/2022,06-16224,"13,052.13",Alphabet House Day Nurseries Ltd-Lo
Nottinghamshire County Council,1111/1001,Children and Young People,CYP,Third Party Payments,EGA,29/09/2022,06-16225,"3,739.68",Beeston Nursery
Nottinghamshire County Council,1111/1001,Children and Young People,CYP,Third Party Payments,EGA,29/09/2022,06-16226,"1,841.03",Gotham Pre-School Playgroup
Nottinghamshire County Council,1111/1001,Children and Young People,CYP,Third Party Payments,EGA,29/09/2022,06-16227,"7,155.22",Killisick Pre-School
Nottinghamshire County Council,1111/1001,Children and Young People,CYP,Third Party Payments,EGA,29/09/2022,06-16228,"8,831.17",Hucknall Pre-School Playgroup
Nottinghamshire County Council,1111/1001,Children and Young People,CYP,Third Party Payments,EGA,29/09/2022,06-16229,"2,540.16",Jesters Childcare Ltd
Nottinghamshire County Council,1111/1001,Children and Young People,CYP,Third Party Payments,EGA,29/09/2022,06-16230,"3,851.10",Allsorts Preschool Underwood
Nottinghamshire County Council,1111/1001,Children and Young People,CYP,Third Party Payments,EGA,29/09/2022,06-16231,"5,221.44",Collingham & District Pre-School
Nottinghamshire County Council,1111/1001,Children and Young People,CYP,Third Party Payments,EGA,29/09/2022,06-16232,"4,233.60",Pea Pod Day Nursery Ltd
Nottinghamshire County Council,1111/1001,Children and Young People,CYP,Third Party Payments,EGA,29/09/2022,06-16233,"20,843.87",Safe Haven Day Nursery
Nottinghamshire County Council,1111/1001,Children and Young People,CYP,Third Party Payments,EGA,29/09/2022,06-16234,"21,317.94",Shaping Futures Day Nursery
Nottinghamshire County Council,1111/1001,Children and Young People,CYP,Third Party Payments,EGA,29/09/2022,06-16235,"8,908.20",Applegarth Day Nurseries Ltd
Nottinghamshire County Council,1111/1001,Children and Young People,CYP,Third Party Payments,EGA,29/09/2022,06-16236,"3,537.41",Thrumpton Kids Clubs
Nottinghamshire County Council,1111/1001,Children and Young People,CYP,Third Party Payments,EGA,29/09/2022,06-16237,"8,071.18",Radcliffe On Trent Pre School Playg
Nottinghamshire County Council,1111/1001,Children and Young People,CYP,Third Party Payments,EGA,29/09/2022,06-16238,"6,673.80",Staunton Montessori Nursery School
Nottinghamshire County Council,1111/1001,Children and Young People,CYP,Third Party Payments,EGA,29/09/2022,06-16239,"17,512.11",Fernwood Day Nursery Ltd
Nottinghamshire County Council,1111/1001,Children and Young People,CYP,Third Party Payments,EGA,29/09/2022,06-16240,564.48,[Redacted]
Nottinghamshire County Council,1111/1001,Children and Young People,CYP,Third Party Payments,EGA,29/09/2022,06-16241,"1,975.68",Tinas Childminding
Nottinghamshire County Council,1111/1001,Children and Young People,CYP,Third Party Payments,EGA,29/09/2022,06-16242,"8,802.95",Honey Pot Day Private Day Nursery L
Nottinghamshire County Council,1111/1001,Children and Young People,CYP,Third Party Payments,EGA,29/09/2022,06-16243,"14,601.51",Busy Bees (Daybrook)
Nottinghamshire County Council,1111/1001,Children and Young People,CYP,Third Party Payments,EGA,29/09/2022,06-16244,"10,456.75",Little Nippers Pre-School
Nottinghamshire County Council,1111/1001,Children and Young People,CYP,Third Party Payments,EGA,29/09/2022,06-16245,"6,996.91",North Muskham Playgroup
Nottinghamshire County Council,1111/1001,Children and Young People,CYP,Third Party Payments,EGA,29/09/2022,06-16246,"1,693.44",Colston Bassett Preparatory School
Nottinghamshire County Council,1111/1001,Children and Young People,CYP,Third Party Payments,EGA,29/09/2022,06-16247,"5,803.56",Hermitage Pre-School
Nottinghamshire County Council,1111/1001,Children and Young People,CYP,Third Party Payments,EGA,29/09/2022,06-16248,"5,842.35",Highfields School & Nursery
Nottinghamshire County Council,1111/1001,Children and Young People,CYP,Third Party Payments,EGA,29/09/2022,06-16249,"4,898.62",Horsendale Playgroup
Nottinghamshire County Council,1111/1001,Children and Young People,CYP,Third Party Payments,EGA,29/09/2022,06-16250,"2,610.73",St Giles Pre-school
Nottinghamshire County Council,1111/1001,Children and Young People,CYP,Third Party Payments,EGA,29/09/2022,06-16251,"7,100.37",Busy Bees Nurseries Limited
Nottinghamshire County Council,1111/1001,Children and Young People,CYP,Third Party Payments,EGA,29/09/2022,06-16252,"7,099.66",St Mary's Pre-School
Nottinghamshire County Council,1111/1001,Children and Young People,CYP,Third Party Payments,EGA,29/09/2022,06-16253,"8,940.19",Homestead Day Nursery Ltd
Nottinghamshire County Council,1111/1001,Children and Young People,CYP,Third Party Payments,EGA,29/09/2022,06-16254,"5,801.79",Kimberley Pre-School Playgroup
Nottinghamshire County Council,1111/1001,Children and Young People,CYP,Third Party Payments,EGA,29/09/2022,06-16255,"3,465.67",Leahurst Road Pre-School
Nottinghamshire County Council,1111/1001,Children and Young People,CYP,Third Party Payments,EGA,29/09/2022,06-16256,"14,677.07",Leen Mills Pre School Playgroup
Nottinghamshire County Council,1111/1001,Children and Young People,CYP,Third Party Payments,EGA,29/09/2022,06-16257,"10,342.67",Leos Childrens Nurseries Ltd
Nottinghamshire County Council,1111/1001,Children and Young People,CYP,Third Party Payments,EGA,29/09/2022,06-16258,"47,372.16",Children 1st @ Breedon House (MayFi
Nottinghamshire County Council,1111/1001,Children and Young People,CYP,Third Party Payments,EGA,29/09/2022,06-16259,"13,238.82",Westbourne House Nursery School
Nottinghamshire County Council,1111/1001,Children and Young People,CYP,Third Party Payments,EGA,29/09/2022,06-16260,"3,304.95",Lowdham & Epperstone Pre-School
Nottinghamshire County Council,1111/1001,Children and Young People,CYP,Third Party Payments,EGA,29/09/2022,06-16261,"11,482.46",Millfield Nursery School
Nottinghamshire County Council,1111/1001,Children and Young People,CYP,Third Party Payments,EGA,29/09/2022,06-16262,"6,967.06",Noahs Ark Playgroup
Nottinghamshire County Council,1111/1001,Children and Young People,CYP,Third Party Payments,EGA,29/09/2022,06-16263,"10,125.36",Tiny World Mansfield
Nottinghamshire County Council,1111/1001,Children and Young People,CYP,Third Party Payments,EGA,29/09/2022,06-16264,"3,664.71",Old Cooperative Day Nursery
Nottinghamshire County Council,1111/1001,Children and Young People,CYP,Third Party Payments,EGA,29/09/2022,06-16265,"20,083.14",Orchard Day Nursery
Nottinghamshire County Council,1111/1001,Children and Young People,CYP,Third Party Payments,EGA,29/09/2022,06-16266,"7,387.19",Puddleducks Pre-School
Nottinghamshire County Council,1111/1001,Children and Young People,CYP,Third Party Payments,EGA,29/09/2022,06-16267,"5,715.36",Smarties Private Day Nursery
Nottinghamshire County Council,1111/1001,Children and Young People,CYP,Third Party Payments,EGA,29/09/2022,06-16268,"3,867.65",Cherubs Childrens Centre Pleasley
Nottinghamshire County Council,1111/1001,Children and Young People,CYP,Third Party Payments,EGA,29/09/2022,06-16269,"2,069.76",Orchard School Nursery
Nottinghamshire County Council,1111/1001,Children and Young People,CYP,Third Party Payments,EGA,29/09/2022,06-16270,"11,758.82",Papermoon Day Nursery
Nottinghamshire County Council,1111/1001,Children and Young People,CYP,Third Party Payments,EGA,29/09/2022,06-16271,"5,383.63",Prebend Pre-School Playgroup
Nottinghamshire County Council,1111/1001,Children and Young People,CYP,Third Party Payments,EGA,29/09/2022,06-16272,"10,388.19",Railway Children Playgroup
Nottinghamshire County Council,1111/1001,Children and Young People,CYP,Third Party Payments,EGA,29/09/2022,06-16273,"13,692.68",Worksop College
Nottinghamshire County Council,1111/1001,Children and Young People,CYP,Third Party Payments,EGA,29/09/2022,06-16274,"26,077.03",Cherubs Day Nursery
Nottinghamshire County Council,1111/1001,Children and Young People,CYP,Third Party Payments,EGA,29/09/2022,06-16275,"9,795.49",Claremont Early Years Ltd
Nottinghamshire County Council,1111/1001,Children and Young People,CYP,Third Party Payments,EGA,29/09/2022,06-16276,"3,861.94",Ravenshead Pre-School Playgroup
Nottinghamshire County Council,1111/1001,Children and Young People,CYP,Third Party Payments,EGA,29/09/2022,06-16277,"2,948.40",Salterford House School
Nottinghamshire County Council,1111/1001,Children and Young People,CYP,Third Party Payments,EGA,29/09/2022,06-16278,"3,854.34",Sconce Hills Pre-School Playgroup
Nottinghamshire County Council,1111/1001,Children and Young People,CYP,Third Party Payments,EGA,29/09/2022,06-16279,"10,113.60",Scotts Wood Private Day Nursery
Nottinghamshire County Council,1111/1001,Children and Young People,CYP,Third Party Payments,EGA,29/09/2022,06-16280,"12,381.22",Treetops Nursery (Toton)
Nottinghamshire County Council,1111/1001,Children and Young People,CYP,Third Party Payments,EGA,29/09/2022,06-16281,"2,698.92",Arnold St Mary's Pre-School
Nottinghamshire County Council,1111/1001,Children and Young People,CYP,Third Party Payments,EGA,29/09/2022,06-16282,"14,235.23",Radcliffe On Trent Day Nursery
Nottinghamshire County Council,1111/1001,Children and Young People,CYP,Third Party Payments,EGA,29/09/2022,06-16283,"5,644.80",Tiny Talkers Day Nursery
Nottinghamshire County Council,1111/1001,Children and Young People,CYP,Third Party Payments,EGA,29/09/2022,06-16284,"14,126.70",Oceans Day Nursery
Nottinghamshire County Council,1111/1001,Children and Young People,CYP,Third Party Payments,EGA,29/09/2022,06-16285,"12,665.52",The Secret Garden Private Day Nurse
Nottinghamshire County Council,1111/1001,Children and Young People,CYP,Third Party Payments,EGA,29/09/2022,06-16286,"4,783.97",St Johns Pre � School Playgroup
Nottinghamshire County Council,1111/1001,Children and Young People,CYP,Third Party Payments,EGA,29/09/2022,06-16287,"2,910.31",Walesby School Playgroup
Nottinghamshire County Council,1111/1001,Children and Young People,CYP,Third Party Payments,EGA,29/09/2022,06-16288,"3,318.08",Sutton Bonington Playgroup
Nottinghamshire County Council,1111/1001,Children and Young People,CYP,Third Party Payments,EGA,29/09/2022,06-16289,"5,971.14",Sutton Centre Under 5'S Playgroup
Nottinghamshire County Council,1111/1001,Children and Young People,CYP,Third Party Payments,EGA,29/09/2022,06-16290,"3,861.99",Portland Place Pre-School
Nottinghamshire County Council,1111/1001,Children and Young People,CYP,Third Party Payments,EGA,29/09/2022,06-16291,"11,624.76",The Learning Tree Nursery
Nottinghamshire County Council,1111/1001,Children and Young People,CYP,Third Party Payments,EGA,29/09/2022,06-16292,"11,413.08",Little Bears Day Nursery
Nottinghamshire County Council,1111/1001,Children and Young People,CYP,Third Party Payments,EGA,29/09/2022,06-16293,"9,685.84",Tollerton Playgroup
Nottinghamshire County Council,1111/1001,Children and Young People,CYP,Third Party Payments,EGA,29/09/2022,06-16294,"5,223.21",Pre-School 345
Nottinghamshire County Council,1111/1001,Children and Young People,CYP,Third Party Payments,EGA,29/09/2022,06-16295,"3,807.30",Lambley Day Nursery Ltd
Nottinghamshire County Council,1111/1001,Children and Young People,CYP,Third Party Payments,EGA,29/09/2022,06-16296,"9,117.68",Alphabet House Day Nurseries Ltd-Be
Nottinghamshire County Council,1111/1001,Children and Young People,CYP,Third Party Payments,EGA,29/09/2022,06-16297,"9,404.47",Carlton Preschool Playgroup
Nottinghamshire County Council,1111/1001,Children and Young People,CYP,Third Party Payments,EGA,29/09/2022,06-16298,"15,512.13",Village Day Nursery
Nottinghamshire County Council,1111/1001,Children and Young People,CYP,Third Party Payments,EGA,29/09/2022,06-16299,"2,526.05",Watnall Pre-School Playgroup
Nottinghamshire County Council,1111/1001,Children and Young People,CYP,Third Party Payments,EGA,29/09/2022,06-16300,"8,730.63",Weaverthorpe Pre-School Playgroup
Nottinghamshire County Council,1111/1001,Children and Young People,CYP,Third Party Payments,EGA,29/09/2022,06-16301,"16,646.87",Rocking Horse Nursery (Kingsway)
Nottinghamshire County Council,1111/1001,Children and Young People,CYP,Third Party Payments,EGA,29/09/2022,06-16302,"7,493.48",Attenborough Church Pre-School
Nottinghamshire County Council,1111/1001,Children and Young People,CYP,Third Party Payments,EGA,29/09/2022,06-16303,"9,046.38",Awsworth Schoolhouse Day Nursery
Nottinghamshire County Council,1111/1001,Children and Young People,CYP,Third Party Payments,EGA,29/09/2022,06-16304,"11,658.57",Balderton Pre-School
Nottinghamshire County Council,1111/1001,Children and Young People,CYP,Third Party Payments,EGA,29/09/2022,06-16305,"6,295.28",Balderton Village Day Nursery
Nottinghamshire County Council,1111/1001,Children and Young People,CYP,Third Party Payments,EGA,29/09/2022,06-16306,"5,700.66",West Street Pre-School
Nottinghamshire County Council,1111/1001,Children and Young People,CYP,Third Party Payments,EGA,29/09/2022,06-16307,"15,565.54",Alphabet House Day Nurseries Ltd-Wh
Nottinghamshire County Council,1111/1001,Children and Young People,CYP,Third Party Payments,EGA,29/09/2022,06-16308,"7,691.04",Whitehouse Day Nursery
Nottinghamshire County Council,1111/1001,Children and Young People,CYP,Third Party Payments,EGA,29/09/2022,06-16309,"5,380.20",Willow Pre-School Playgroup
Nottinghamshire County Council,1111/1001,Children and Young People,CYP,Third Party Payments,EGA,29/09/2022,06-16310,"3,626.78",Windmill Kindergarten CIC
Nottinghamshire County Council,1111/1001,Children and Young People,CYP,Third Party Payments,EGA,29/09/2022,06-16311,"22,761.48",Papermoon Day Nursery Sutton In Ash
Nottinghamshire County Council,1111/1001,Children and Young People,CYP,Third Party Payments,EGA,29/09/2022,06-16312,"6,516.81",Buttercross Pre School
Nottinghamshire County Council,1111/1001,Children and Young People,CYP,Third Party Payments,EGA,29/09/2022,06-16313,"6,717.31",Bramcote Pre-School Playgroup
Nottinghamshire County Council,1111/1001,Children and Young People,CYP,Third Party Payments,EGA,29/09/2022,06-16314,"18,307.38",Bright Sparks Day Nursery
Nottinghamshire County Council,1111/1001,Children and Young People,CYP,Third Party Payments,EGA,29/09/2022,06-16315,"16,233.50",Brooklyn Day Nursery
Nottinghamshire County Council,1111/1001,Children and Young People,CYP,Third Party Payments,EGA,29/09/2022,06-16316,"3,146.97",Woodborough Village Pre School
Nottinghamshire County Council,1111/1001,Children and Young People,CYP,Third Party Payments,EGA,29/09/2022,06-16317,"26,853.23",Woodthorpe Day Nursery Ltd
Nottinghamshire County Council,1111/1001,Children and Young People,CYP,Third Party Payments,EGA,29/09/2022,06-16318,"11,718.32",Hollies Day Nurseries Ltd
Nottinghamshire County Council,1111/1001,Children and Young People,CYP,Third Party Payments,EGA,29/09/2022,06-16319,"4,290.05",Hickling Pre-School
Nottinghamshire County Council,1111/1001,Children and Young People,CYP,Third Party Payments,EGA,29/09/2022,06-16320,"42,230.16",Serendipity's Day Nursery
Nottinghamshire County Council,1111/1001,Children and Young People,CYP,Third Party Payments,EGA,29/09/2022,06-16321,"6,057.59",Coteswood House School
Nottinghamshire County Council,1111/1001,Children and Young People,CYP,Third Party Payments,EGA,29/09/2022,06-16322,"17,115.36",Bizzy Kidz
Nottinghamshire County Council,1111/1001,Children and Young People,CYP,Third Party Payments,EGA,29/09/2022,06-16323,"11,288.99",Cherubs Childrens Centre Wynndale
Nottinghamshire County Council,1111/1001,Children and Young People,CYP,Third Party Payments,EGA,29/09/2022,06-16324,"20,879.16",Little Oaks Nursery
Nottinghamshire County Council,1111/1001,Children and Young People,CYP,Third Party Payments,EGA,29/09/2022,06-16325,"10,310.58",The Learning Tree Day Nursery 2
Nottinghamshire County Council,1111/1001,Children and Young People,CYP,Third Party Payments,EGA,29/09/2022,06-16326,"11,778.82",Ruddington Nursery & Pre-School
Nottinghamshire County Council,1111/1001,Children and Young People,CYP,Third Party Payments,EGA,29/09/2022,06-16327,"8,840.58",Papplewick Pre-School Playgroup
Nottinghamshire County Council,1111/1001,Children and Young People,CYP,Third Party Payments,EGA,29/09/2022,06-16328,"3,877.86",Little Friends Day Nursery
Nottinghamshire County Council,1111/1001,Children and Young People,CYP,Third Party Payments,EGA,29/09/2022,06-16329,"20,568.24",Stapleford Day Nursery
Nottinghamshire County Council,1111/1001,Children and Young People,CYP,Third Party Payments,EGA,29/09/2022,06-16330,"9,834.30",Rocking Horse Nursery (Hucknall)
Nottinghamshire County Council,1111/1001,Children and Young People,CYP,Third Party Payments,EGA,29/09/2022,06-16331,"11,660.04",Treetops Nurseries (Workop)
Nottinghamshire County Council,1111/1001,Children and Young People,CYP,Third Party Payments,EGA,29/09/2022,06-16332,"3,492.72",Christchurch Hall Pre-School Playgr
Nottinghamshire County Council,1111/1001,Children and Young People,CYP,Third Party Payments,EGA,29/09/2022,06-16333,"12,351.53",Carnarvon Pre-School
Nottinghamshire County Council,1111/1001,Children and Young People,CYP,Third Party Payments,EGA,29/09/2022,06-16334,"2,725.38",Costock Pre School
Nottinghamshire County Council,1111/1001,Children and Young People,CYP,Third Party Payments,EGA,29/09/2022,06-16335,510.05,Rainbow Day Nursery
Nottinghamshire County Council,1111/1001,Children and Young People,CYP,Third Party Payments,EGA,29/09/2022,06-16336,"7,497.00",Papermoon Day Nursery
Nottinghamshire County Council,1111/1001,Children and Young People,CYP,Third Party Payments,EGA,29/09/2022,06-16337,"4,614.63",Haywood Road Pre-School
Nottinghamshire County Council,1111/1001,Children and Young People,CYP,Third Party Payments,EGA,29/09/2022,06-16338,"4,511.43",Southfields Pre-School
Nottinghamshire County Council,1111/1001,Children and Young People,CYP,Third Party Payments,EGA,29/09/2022,06-16339,"10,485.22",Ashfield Plaza Day Nursery
Nottinghamshire County Council,1111/1001,Children and Young People,CYP,Third Party Payments,EGA,29/09/2022,06-16340,"10,865.07",Cranmer Pre-School
Nottinghamshire County Council,1111/1001,Children and Young People,CYP,Third Party Payments,EGA,29/09/2022,06-16341,"12,601.99",East Leake Day Nursery & Pre-School
Nottinghamshire County Council,1111/1001,Children and Young People,CYP,Third Party Payments,EGA,29/09/2022,06-16342,"2,441.37",Elston Pre-school
Nottinghamshire County Council,1111/1001,Children and Young People,CYP,Third Party Payments,EGA,29/09/2022,06-16343,"12,502.25",Wollaton Village Day Nurseries Ltd
Nottinghamshire County Council,1111/1001,Children and Young People,CYP,Third Party Payments,EGA,29/09/2022,06-16344,"12,388.32",Pump Farm Day Nursery
Nottinghamshire County Council,1111/1001,Children and Young People,CYP,Third Party Payments,EGA,29/09/2022,06-16345,"15,037.47",Edwalton Day Nursery
Nottinghamshire County Council,1111/1001,Children and Young People,CYP,Third Party Payments,EGA,29/09/2022,06-16346,"7,819.82",Farnsfield Pre-School
Nottinghamshire County Council,1111/1001,Children and Young People,CYP,Third Party Payments,EGA,29/09/2022,06-16347,"3,983.12",Fledglings Pre School
Nottinghamshire County Council,1111/1001,Children and Young People,CYP,Third Party Payments,EGA,29/09/2022,06-16348,"5,932.34",Early Years Playgroup
Nottinghamshire County Council,1111/1001,Children and Young People,CYP,Third Party Payments,EGA,29/09/2022,06-16349,"3,161.09",Lowater Street Play & Pre School
Nottinghamshire County Council,1111/1001,Children and Young People,CYP,Third Party Payments,EGA,29/09/2022,06-16350,"7,537.50",Little Millers Day Nursery
Nottinghamshire County Council,1111/1001,Children and Young People,CYP,Third Party Payments,EGA,29/09/2022,06-16351,"3,176.97",Tiny Tots Playgroup
Nottinghamshire County Council,1111/1001,Children and Young People,CYP,Third Party Payments,EGA,29/09/2022,06-16352,"11,712.96",Alphabet House Day Nurseries Ltd-We
Nottinghamshire County Council,1111/1001,Children and Young People,CYP,Third Party Payments,EGA,29/09/2022,06-16353,"15,471.59",Good Foundations Day Nursery
Nottinghamshire County Council,1111/1001,Children and Young People,CYP,Third Party Payments,EGA,29/09/2022,06-16354,"2,804.29",Good Shepherd Pre-School
Nottinghamshire County Council,1111/1001,Children and Young People,CYP,Third Party Payments,EGA,29/09/2022,06-16355,"5,192.04",Leo's Childrens Nurseries Ltd
Nottinghamshire County Council,1111/1001,Children and Young People,CYP,Third Party Payments,EGA,29/09/2022,06-16356,"12,181.44",Bircotes Pre-School
Nottinghamshire County Council,1111/1001,Children and Young People,CYP,Third Party Payments,EGA,29/09/2022,06-16357,"9,511.38",East Leake Pre-School Playgroup
Nottinghamshire County Council,1111/1001,Children and Young People,CYP,Third Party Payments,EGA,29/09/2022,06-16358,"6,601.48",Little Acorns Shireoaks
Nottinghamshire County Council,1111/1001,Children and Young People,CYP,Third Party Payments,EGA,29/09/2022,06-16359,"8,333.14",Willow Childcare & Training Ltd
Nottinghamshire County Council,1111/1001,Children and Young People,CYP,Third Party Payments,EGA,29/09/2022,06-16360,"1,505.28",J Fisher (Childminder)
Nottinghamshire County Council,1111/1001,Children and Young People,CYP,Third Party Payments,EGA,29/09/2022,06-16361,"14,411.88",Treetops Nursery (Clipstone)
Nottinghamshire County Council,1111/1001,Children and Young People,CYP,Third Party Payments,EGA,29/09/2022,06-16362,"1,199.52",[Redacted]
Nottinghamshire County Council,1111/1001,Children and Young People,CYP,Third Party Payments,EGA,29/09/2022,06-16363,"13,185.90",Bright Stars Childcare
Nottinghamshire County Council,1111/1001,Children and Young People,CYP,Third Party Payments,EGA,29/09/2022,06-16364,"8,548.19",Cherubs Ryton Park
Nottinghamshire County Council,1111/1001,Children and Young People,CYP,Third Party Payments,EGA,29/09/2022,06-16365,"6,394.50",Bullpit Road Nursery
Nottinghamshire County Council,1111/1001,Children and Young People,CYP,Third Party Payments,EGA,29/09/2022,06-16366,"23,868.05",The Enchanted Garden Day Nursery
Nottinghamshire County Council,1111/1001,Children and Young People,CYP,Third Party Payments,EGA,29/09/2022,06-16367,"1,270.08",[Redacted]
Nottinghamshire County Council,1111/1001,Children and Young People,CYP,Third Party Payments,EGA,29/09/2022,06-16368,"1,270.08",Kylees Childminding Services
Nottinghamshire County Council,1111/1001,Children and Young People,CYP,Third Party Payments,EGA,29/09/2022,06-16369,917.28,C A Quinn (Childminder)
Nottinghamshire County Council,1111/1001,Children and Young People,CYP,Third Party Payments,EGA,29/09/2022,06-16370,"1,609.86",Luans Little Stars
Nottinghamshire County Council,1111/1001,Children and Young People,CYP,Third Party Payments,EGA,29/09/2022,06-16371,"11,430.72",Zoe's Childcare Ltd
Nottinghamshire County Council,1111/1001,Children and Young People,CYP,Third Party Payments,EGA,29/09/2022,06-16372,"6,681.75",Cedar House Day Nursery
Nottinghamshire County Council,1111/1001,Children and Young People,CYP,Third Party Payments,EGA,29/09/2022,06-16373,564.48,Jelly Tots
Nottinghamshire County Council,1111/1001,Children and Young People,CYP,Third Party Payments,EGA,29/09/2022,06-16374,"3,175.20",[Redacted]
Nottinghamshire County Council,1111/1001,Children and Young People,CYP,Third Party Payments,EGA,29/09/2022,06-16375,"32,780.11",Orange Tree Day Nursery
Nottinghamshire County Council,1111/1001,Children and Young People,CYP,Third Party Payments,EGA,29/09/2022,06-16376,635.04,[Redacted]
Nottinghamshire County Council,1111/1001,Children and Young People,CYP,Third Party Payments,EGA,29/09/2022,06-16377,536.25,H Fletcher (Childminder)
Nottinghamshire County Council,1111/1001,Children and Young People,CYP,Third Party Payments,EGA,29/09/2022,06-16378,790.27,[Redacted]
Nottinghamshire County Council,1111/1001,Children and Young People,CYP,Third Party Payments,EGA,29/09/2022,06-16379,564.48,[Redacted]
Nottinghamshire County Council,1111/1001,Children and Young People,CYP,Third Party Payments,EGA,29/09/2022,06-16380,"7,954.48",Rushcliffe Pre-School (Nottingham)
Nottinghamshire County Council,1111/1001,Children and Young People,CYP,Third Party Payments,EGA,29/09/2022,06-16381,"4,967.43",Upton Crickets Day Nursery
Nottinghamshire County Council,1111/1001,Children and Young People,CYP,Third Party Payments,EGA,29/09/2022,06-16382,"1,288.89",[Redacted]
Nottinghamshire County Council,1111/1001,Children and Young People,CYP,Third Party Payments,EGA,29/09/2022,06-16383,564.48,[Redacted]
Nottinghamshire County Council,1111/1001,Children and Young People,CYP,Third Party Payments,EGA,29/09/2022,06-16384,"8,240.82",Cheeky Monkeys Day Nursery
Nottinghamshire County Council,1111/1001,Children and Young People,CYP,Third Party Payments,EGA,29/09/2022,06-16385,564.48,[Redacted]
Nottinghamshire County Council,1111/1001,Children and Young People,CYP,Third Party Payments,EGA,29/09/2022,06-16386,"2,187.36",[Redacted]
Nottinghamshire County Council,1111/1001,Children and Young People,CYP,Third Party Payments,EGA,29/09/2022,06-16387,"1,128.96",[Redacted]
Nottinghamshire County Council,1111/1001,Children and Young People,CYP,Third Party Payments,EGA,29/09/2022,06-16388,890.82,[Redacted]
Nottinghamshire County Council,1111/1001,Children and Young People,CYP,Third Party Payments,EGA,29/09/2022,06-16389,917.28,[Redacted]
Nottinghamshire County Council,1111/1001,Children and Young People,CYP,Third Party Payments,EGA,29/09/2022,06-16390,564.48,[Redacted]
Nottinghamshire County Council,1111/1001,Children and Young People,CYP,Third Party Payments,EGA,29/09/2022,06-16391,"10,646.53",Children 1st @ Newark Centre
Nottinghamshire County Council,1111/1001,Children and Young People,CYP,Third Party Payments,EGA,29/09/2022,06-16392,"6,121.08",Zoes Childcare Ltd
Nottinghamshire County Council,1111/1001,Children and Young People,CYP,Third Party Payments,EGA,29/09/2022,06-16393,"1,128.96",Lucy Doherty (Childminder)
Nottinghamshire County Council,1111/1001,Children and Young People,CYP,Third Party Payments,EGA,29/09/2022,06-16394,564.48,Ami Wallington Childminding Service
Nottinghamshire County Council,1111/1001,Children and Young People,CYP,Third Party Payments,EGA,29/09/2022,06-16395,"1,005.48",[Redacted]
Nottinghamshire County Council,1111/1001,Children and Young People,CYP,Third Party Payments,EGA,29/09/2022,06-16396,705.60,[Redacted]
Nottinghamshire County Council,1111/1001,Children and Young People,CYP,Third Party Payments,EGA,29/09/2022,06-16397,"1,128.96",[Redacted]
Nottinghamshire County Council,1111/1001,Children and Young People,CYP,Third Party Payments,EGA,29/09/2022,06-16398,"1,317.12",[Redacted]
Nottinghamshire County Council,1111/1001,Children and Young People,CYP,Third Party Payments,EGA,29/09/2022,06-16399,969.03,[Redacted]
Nottinghamshire County Council,1111/1001,Children and Young People,CYP,Third Party Payments,EGA,29/09/2022,06-16400,705.60,[Redacted]
Nottinghamshire County Council,1111/1001,Children and Young People,CYP,Third Party Payments,EGA,29/09/2022,06-16401,564.48,Jeanette Hooper Childminding Servic
Nottinghamshire County Council,1111/1001,Children and Young People,CYP,Third Party Payments,EGA,29/09/2022,06-16402,"8,440.74",Little Beans Playgroup
Nottinghamshire County Council,1111/1001,Children and Young People,CYP,Third Party Payments,EGA,29/09/2022,06-16403,"6,621.49",Childrens House Childcare Ltd
Nottinghamshire County Council,1111/1001,Children and Young People,CYP,Third Party Payments,EGA,29/09/2022,06-16404,635.04,[Redacted]
Nottinghamshire County Council,1111/1001,Children and Young People,CYP,Third Party Payments,EGA,29/09/2022,06-16405,"1,354.76",Little Acorns Childminding
Nottinghamshire County Council,1111/1001,Children and Young People,CYP,Third Party Payments,EGA,29/09/2022,06-16406,"13,053.60",Mapperley Day Nursery
Nottinghamshire County Council,1111/1001,Children and Young People,CYP,Third Party Payments,EGA,29/09/2022,06-16407,508.03,T M Fletcher (Childminding Service)
Nottinghamshire County Council,1111/1001,Children and Young People,CYP,Third Party Payments,EGA,29/09/2022,06-16408,917.28,Taylor -Made Childcare
Nottinghamshire County Council,1111/1001,Children and Young People,CYP,Third Party Payments,EGA,29/09/2022,06-16409,"18,865.13",Hollies Day Nurseries Ltd
Nottinghamshire County Council,1111/1001,Children and Young People,CYP,Third Party Payments,EGA,29/09/2022,06-16410,"2,469.60",Yew Tree Childcare
Nottinghamshire County Council,1111/1001,Children and Young People,CYP,Third Party Payments,EGA,29/09/2022,06-16411,"26,304.77",Phoenix Park Nursery Ltd
Nottinghamshire County Council,1111/1001,Children and Young People,CYP,Third Party Payments,EGA,29/09/2022,06-16412,"2,328.48",R Durr Rose Lodge Childminding
Nottinghamshire County Council,1111/1001,Children and Young People,CYP,Third Party Payments,EGA,29/09/2022,06-16413,"2,414.92",Explorers Childcare
Nottinghamshire County Council,1111/1001,Children and Young People,CYP,Third Party Payments,EGA,29/09/2022,06-16414,904.93,Dee Dee's Childminding
Nottinghamshire County Council,1111/1001,Children and Young People,CYP,Third Party Payments,EGA,29/09/2022,06-16415,"8,577.84",Wolds Day Nursery @ Stragglethorpe
Nottinghamshire County Council,1111/1001,Children and Young People,CYP,Third Party Payments,EGA,29/09/2022,06-16416,775.41,D Simpson (Childminder)
Nottinghamshire County Council,1111/1001,Children and Young People,CYP,Third Party Payments,EGA,29/09/2022,06-16417,531.55,Susan Cochran Childminding Service
Nottinghamshire County Council,1111/1001,Children and Young People,CYP,Third Party Payments,EGA,29/09/2022,06-16418,564.48,Belvoir House Childminding
Nottinghamshire County Council,1111/1001,Children and Young People,CYP,Third Party Payments,EGA,29/09/2022,06-16419,"9,754.92",Pre-School Learning Alliance (HO)
Nottinghamshire County Council,1111/1001,Children and Young People,CYP,Third Party Payments,EGA,29/09/2022,06-16420,917.28,J Hall (Childminder)
Nottinghamshire County Council,1111/1001,Children and Young People,CYP,Third Party Payments,EGA,29/09/2022,06-16421,"16,662.75",Aunty Sue's Day Care Ltd
Nottinghamshire County Council,1111/1001,Children and Young People,CYP,Third Party Payments,EGA,29/09/2022,06-16422,"7,973.28",Happy Days Childcare Services Ltd
Nottinghamshire County Council,1111/1001,Children and Young People,CYP,Third Party Payments,EGA,29/09/2022,06-16423,"7,324.13",Alphabet House Day Nursery (Chilwel
Nottinghamshire County Council,1111/1001,Children and Young People,CYP,Third Party Payments,EGA,29/09/2022,06-16424,"1,128.96",L Naylor (Childminding Service)
Nottinghamshire County Council,1111/1001,Children and Young People,CYP,Third Party Payments,EGA,29/09/2022,06-16425,766.08,Hunny Bunny's Childcare
Nottinghamshire County Council,1111/1001,Children and Young People,CYP,Third Party Payments,EGA,29/09/2022,06-16426,"13,907.38",Creative Hands Childcare Ltd
Nottinghamshire County Council,1111/1001,Children and Young People,CYP,Third Party Payments,EGA,29/09/2022,06-16427,691.49,Imogen Barnett (Immy's House)
Nottinghamshire County Council,1111/1001,Children and Young People,CYP,Third Party Payments,EGA,29/09/2022,06-16428,"10,319.40",Little Lambs Day Nursery
Nottinghamshire County Council,1111/1001,Children and Young People,CYP,Third Party Payments,EGA,29/09/2022,06-16429,564.48,J Heath (Childminder)
Nottinghamshire County Council,1111/1001,Children and Young People,CYP,Third Party Payments,EGA,29/09/2022,06-16430,"1,481.76",N Stevenson (Childminder)
Nottinghamshire County Council,1111/1001,Children and Young People,CYP,Third Party Payments,EGA,29/09/2022,06-16431,564.48,B Lilley (Childminder)
Nottinghamshire County Council,1111/1001,Children and Young People,CYP,Third Party Payments,EGA,29/09/2022,06-16432,"1,411.20",S Elliott (Childminder)
Nottinghamshire County Council,1111/1001,Children and Young People,CYP,Third Party Payments,EGA,29/09/2022,06-16433,917.28,S Simpson (Childminder)
Nottinghamshire County Council,1111/1001,Children and Young People,CYP,Third Party Payments,EGA,29/09/2022,06-16434,917.28,Kathryn Birks Childminding Service
Nottinghamshire County Council,1111/1001,Children and Young People,CYP,Third Party Payments,EGA,29/09/2022,06-16435,"1,467.65",N Lees (Childminder)
Nottinghamshire County Council,1111/1001,Children and Young People,CYP,Third Party Payments,EGA,29/09/2022,06-16436,"12,013.30",Jumacare Ltd T/A Church House Nurse
Nottinghamshire County Council,1111/1001,Children and Young People,CYP,Third Party Payments,EGA,29/09/2022,06-16437,"8,915.84",Child First (Welbeck) Nursery
Nottinghamshire County Council,1111/1001,Children and Young People,CYP,Third Party Payments,EGA,29/09/2022,06-16438,564.48,H Machin Childminder
Nottinghamshire County Council,1111/1001,Children and Young People,CYP,Third Party Payments,EGA,29/09/2022,06-16439,564.48,K Watt Childminder
Nottinghamshire County Council,1111/1001,Children and Young People,CYP,Third Party Payments,EGA,29/09/2022,06-16440,662.51,Kates Childminding Services
Nottinghamshire County Council,1111/1001,Children and Young People,CYP,Third Party Payments,EGA,29/09/2022,06-16441,"1,273.61",Elaine Marshall (Childminder)
Nottinghamshire County Council,1111/1001,Children and Young People,CYP,Third Party Payments,EGA,29/09/2022,06-16442,890.82,L Nightingale (Childiminer)
Nottinghamshire County Council,1111/1001,Children and Young People,CYP,Third Party Payments,EGA,29/09/2022,06-16443,"1,500.58",Kate's Childminding
Nottinghamshire County Council,1111/1001,Children and Young People,CYP,Third Party Payments,EGA,29/09/2022,06-16444,"4,300.38",Country Kids Day Nursery (Kneesall)
Nottinghamshire County Council,1111/1001,Children and Young People,CYP,Third Party Payments,EGA,29/09/2022,06-16445,616.23,T Goddard (Childminder)
Nottinghamshire County Council,1111/1001,Children and Young People,CYP,Third Party Payments,EGA,29/09/2022,06-16446,705.60,Butterflies Childminding Services
Nottinghamshire County Council,1111/1001,Children and Young People,CYP,Third Party Payments,EGA,29/09/2022,06-16447,"2,116.80",Little House Of Horrors
Nottinghamshire County Council,1111/1001,Children and Young People,CYP,Third Party Payments,EGA,29/09/2022,06-16448,564.48,Tracys Childminding Services
Nottinghamshire County Council,1111/1001,Children and Young People,CYP,Third Party Payments,EGA,29/09/2022,06-16449,602.11,Ruthies Childcare
Nottinghamshire County Council,1111/1001,Children and Young People,CYP,Third Party Payments,EGA,29/09/2022,06-16450,"4,842.18",Little House Childcare of Brinsley
Nottinghamshire County Council,1111/1001,Children and Young People,CYP,Third Party Payments,EGA,29/09/2022,06-16451,"2,646.00",Green Tot Childcare
Nottinghamshire County Council,1111/1001,Children and Young People,CYP,Third Party Payments,EGA,29/09/2022,06-16452,"1,552.32",E Overton (Childminder)
Nottinghamshire County Council,1111/1001,Children and Young People,CYP,Third Party Payments,EGA,29/09/2022,06-16453,658.56,K J Channer (Childminder)
Nottinghamshire County Council,1111/1001,Children and Young People,CYP,Third Party Payments,EGA,29/09/2022,06-16454,752.64,D G K Services Ltd
Nottinghamshire County Council,1111/1001,Children and Young People,CYP,Third Party Payments,EGA,29/09/2022,06-16455,"1,481.76",Jenny's Jelly Tots
Nottinghamshire County Council,1111/1001,Children and Young People,CYP,Third Party Payments,EGA,29/09/2022,06-16456,635.04,Sarah's Childminding
Nottinghamshire County Council,1111/1001,Children and Young People,CYP,Third Party Payments,EGA,29/09/2022,06-16457,846.72,R Savage (Childminder)
Nottinghamshire County Council,1111/1001,Children and Young People,CYP,Third Party Payments,EGA,29/09/2022,06-16458,"1,270.08",L Warwick (Childminder)
Nottinghamshire County Council,1111/1001,Children and Young People,CYP,Third Party Payments,EGA,29/09/2022,06-16459,"16,878.54",Luan's Little People Ltd
Nottinghamshire County Council,1111/1001,Children and Young People,CYP,Third Party Payments,EGA,29/09/2022,06-16460,"1,241.86",Fingerprints Childminding
Nottinghamshire County Council,1111/1001,Children and Young People,CYP,Third Party Payments,EGA,29/09/2022,06-16461,"10,373.27",Little Adventures Forest School Ltd
Nottinghamshire County Council,1111/1001,Children and Young People,CYP,Third Party Payments,EGA,29/09/2022,06-16462,"1,270.08",L & K's Little Kingdom
Nottinghamshire County Council,1111/1001,Children and Young People,CYP,Third Party Payments,EGA,29/09/2022,06-16463,"9,086.84",Ryan House Day Nursery
Nottinghamshire County Council,1111/1001,Children and Young People,CYP,Third Party Payments,EGA,29/09/2022,06-16464,"15,228.36",Little Baths Ltd T/A Little PLums D
Nottinghamshire County Council,1111/1001,Children and Young People,CYP,Third Party Payments,EGA,29/09/2022,06-16465,705.60,K Mcknight Childcare
Nottinghamshire County Council,1111/1001,Children and Young People,CYP,Third Party Payments,EGA,29/09/2022,06-16466,"9,690.24",Lime Trees Day Nursery Ltd
Nottinghamshire County Council,1111/1001,Children and Young People,CYP,Third Party Payments,EGA,29/09/2022,06-16467,"11,681.86",Hollies Day Nursery (Loughborough R
Nottinghamshire County Council,1111/1001,Children and Young People,CYP,Third Party Payments,EGA,29/09/2022,06-16468,564.48,Gemmas Little Gems
Nottinghamshire County Council,1111/1001,Children and Young People,CYP,Third Party Payments,EGA,29/09/2022,06-16469,"11,507.07",Secret Garden Childcare Ltd
Nottinghamshire County Council,1111/1001,Children and Young People,CYP,Third Party Payments,EGA,29/09/2022,06-16470,635.04,Amanda Birth to 11yrs Childcare
Nottinghamshire County Council,1111/1001,Children and Young People,CYP,Third Party Payments,EGA,29/09/2022,06-16471,"11,876.74",Cherubs (Sutton In Ashfield)
Nottinghamshire County Council,1111/1001,Children and Young People,CYP,Third Party Payments,EGA,29/09/2022,06-16472,"10,567.20",Small People Ltd
Nottinghamshire County Council,1111/1001,Children and Young People,CYP,Third Party Payments,EGA,29/09/2022,06-16473,564.48,E L Smith (Childminder)
Nottinghamshire County Council,1111/1001,Children and Young People,CYP,Third Party Payments,EGA,29/09/2022,06-16474,564.48,Mornington Childcare Services
Nottinghamshire County Council,1111/1001,Children and Young People,CYP,Third Party Payments,EGA,29/09/2022,06-16475,564.48,L Tinsley (Childminder)
Nottinghamshire County Council,1111/1001,Children and Young People,CYP,Third Party Payments,EGA,29/09/2022,06-16476,"8,410.75",Little Wrens Day Nursery & Pre Scho
Nottinghamshire County Council,1111/1001,Children and Young People,CYP,Third Party Payments,EGA,29/09/2022,06-16477,"1,481.76",U Tomlinson (Childminder)
Nottinghamshire County Council,1111/1001,Children and Young People,CYP,Third Party Payments,EGA,29/09/2022,06-16478,"4,021.92",Jelly Beans Day Nursery Ltd
Nottinghamshire County Council,1111/1001,Children and Young People,CYP,Third Party Payments,EGA,29/09/2022,06-16479,691.49,Matthew's Monsters
Nottinghamshire County Council,1111/1001,Children and Young People,CYP,Third Party Payments,EGA,29/09/2022,06-16480,"7,751.31",Play Days Cottage
Nottinghamshire County Council,1111/1001,Children and Young People,CYP,Third Party Payments,EGA,29/09/2022,06-16481,"1,128.96",Little Foxes Hucknall
Nottinghamshire County Council,1111/1001,Children and Young People,CYP,Third Party Payments,EGA,29/09/2022,06-16482,564.48,K Lockyer (Childminder)
Nottinghamshire County Council,1111/1001,Children and Young People,CYP,Third Party Payments,EGA,29/09/2022,06-16483,"1,128.96",New Beginnings Quality Childcare
Nottinghamshire County Council,1111/1001,Children and Young People,CYP,Third Party Payments,EGA,29/09/2022,06-16484,752.64,Fox Cubs Childminding
Nottinghamshire County Council,1111/1001,Children and Young People,CYP,Third Party Payments,EGA,29/09/2022,06-16485,"1,411.20",A Pemberton (Childminder)
Nottinghamshire County Council,1111/1001,Children and Young People,CYP,Third Party Payments,EGA,29/09/2022,06-16486,512.00,Windmills Childcare
Nottinghamshire County Council,1111/1001,Children and Young People,CYP,Third Party Payments,EGA,29/09/2022,06-16487,"1,058.40",Michelle Maddock (Childminder)
Nottinghamshire County Council,1111/1001,Children and Young People,CYP,Third Party Payments,EGA,29/09/2022,06-16488,"1,016.07",Morags Childminding
Nottinghamshire County Council,1111/1001,Children and Young People,CYP,Third Party Payments,EGA,29/09/2022,06-16489,"6,815.54",Country Kids Day Nursery (Newark)
Nottinghamshire County Council,1111/1001,Children and Young People,CYP,Third Party Payments,EGA,29/09/2022,06-16490,"7,338.24",Country Kids Nursery (Rainworth)
Nottinghamshire County Council,1111/1001,Children and Young People,CYP,Third Party Payments,EGA,29/09/2022,06-16491,961.38,Jennytots Childcare
Nottinghamshire County Council,1111/1001,Children and Young People,CYP,Third Party Payments,EGA,29/09/2022,06-16492,"17,725.26",Crocodile Rock Day Care Ltd
Nottinghamshire County Council,1111/1001,Children and Young People,CYP,Third Party Payments,EGA,29/09/2022,06-16493,"5,162.54",Windmills Childcare
Nottinghamshire County Council,1111/1001,Children and Young People,CYP,Third Party Payments,EGA,29/09/2022,06-16494,"1,439.43",E Severs (Childminder)
Nottinghamshire County Council,1111/1001,Children and Young People,CYP,Third Party Payments,EGA,29/09/2022,06-16495,564.48,E Haynes (Childminder)
Nottinghamshire County Council,1111/1001,Children and Young People,CYP,Third Party Payments,EGA,29/09/2022,06-16496,"4,818.67",Cherubs (Edwinstowe)
Nottinghamshire County Council,1111/1001,Children and Young People,CYP,Third Party Payments,EGA,29/09/2022,06-16497,564.48,B Whyman (Childminder)
Nottinghamshire County Council,1111/1001,Children and Young People,CYP,Third Party Payments,EGA,29/09/2022,06-16498,766.75,M Tyreman (Childminder)
Nottinghamshire County Council,1111/1001,Children and Young People,CYP,Third Party Payments,EGA,29/09/2022,06-16499,"2,146.79",M Dodgson (Chidminder)
Nottinghamshire County Council,1111/1001,Children and Young People,CYP,Third Party Payments,EGA,29/09/2022,06-16500,"7,126.56",Cherubs (Ruddington)
Nottinghamshire County Council,1111/1001,Children and Young People,CYP,Third Party Payments,EGA,29/09/2022,06-16501,"17,159.31",Hucknall Day Nursery Ltd
Nottinghamshire County Council,1111/1001,Children and Young People,CYP,Third Party Payments,EGA,29/09/2022,06-16502,"6,353.64",Lime Trees (Cropwell Bishop)
Nottinghamshire County Council,1111/1001,Children and Young People,CYP,Third Party Payments,EGA,29/09/2022,06-16503,"9,843.71",Lime Trees (Kirkby West)
Nottinghamshire County Council,1111/1001,Children and Young People,CYP,Third Party Payments,EGA,29/09/2022,06-16504,"3,466.26",Lime Trees (Netherfield)
Nottinghamshire County Council,1111/1001,Children and Young People,CYP,Third Party Payments,EGA,29/09/2022,06-16505,564.48,L Sturman (Childminder)
Nottinghamshire County Council,1111/1001,Children and Young People,CYP,Third Party Payments,EGA,29/09/2022,06-16506,"18,439.68",Little Lambs Day Nursery (Kirkby in
Nottinghamshire County Council,1111/1001,Children and Young People,CYP,Third Party Payments,EGA,29/09/2022,06-16507,"2,019.78",Kangaroo Teacher Led Childcare Ltd
Nottinghamshire County Council,1111/1001,Children and Young People,CYP,Third Party Payments,EGA,29/09/2022,06-16508,"5,410.72",Poppy & Jacks Ltd
Nottinghamshire County Council,1111/1001,Children and Young People,CYP,Third Party Payments,EGA,29/09/2022,06-16509,"8,317.26",Redwood Scholars Schools LtdT/A Alp
Nottinghamshire County Council,1111/1001,Children and Young People,CYP,Third Party Payments,EGA,29/09/2022,06-16510,"1,072.51",Ems Gems
Nottinghamshire County Council,1111/1001,Children and Young People,CYP,Third Party Payments,EGA,29/09/2022,06-16511,"10,019.52",Playroom Nursery
Nottinghamshire County Council,1111/1001,Children and Young People,CYP,Third Party Payments,EGA,29/09/2022,06-16512,691.49,Lou Lous Childminding
Nottinghamshire County Council,1111/1001,Children and Young People,CYP,Third Party Payments,EGA,29/09/2022,06-16513,"1,411.20",Little Gems Childminding
Nottinghamshire County Council,1111/1001,Children and Young People,CYP,Third Party Payments,EGA,29/09/2022,06-16514,"1,737.54",S Greger (Childminder)
Nottinghamshire County Council,1111/1001,Children and Young People,CYP,Third Party Payments,EGA,29/09/2022,06-16515,"13,204.45",Cherubs (Mapperley)
Nottinghamshire County Council,1111/1001,Children and Young People,CYP,Third Party Payments,EGA,29/09/2022,06-16516,"3,757.32",Diggory�s Day Nursery Ltd
Nottinghamshire County Council,1111/1001,Children and Young People,CYP,Third Party Payments,EGA,29/09/2022,06-16517,"3,457.44",Little Elms Pre-school (Oxton)
Nottinghamshire County Council,1111/1001,Children and Young People,CYP,Third Party Payments,EGA,29/09/2022,06-16518,917.28,Little Sunshines TLC
Nottinghamshire County Council,1111/1001,Children and Young People,CYP,Third Party Payments,EGA,29/09/2022,06-16519,"1,802.46",Busy Bees (Edwalton)
Nottinghamshire County Council,1111/1001,Children and Young People,CYP,Third Party Payments,EGA,29/09/2022,06-16520,"1,270.08",Eden Adventures Childminding
Nottinghamshire County Council,1111/1001,Children and Young People,CYP,Third Party Payments,EGA,29/09/2022,06-16521,"5,009.76",Country Kids Day Nursery (Farndon)
Nottinghamshire County Council,1111/1001,Children and Young People,CYP,Third Party Payments,EGA,29/09/2022,06-16522,"9,705.01",Purley Green Ltd
Nottinghamshire County Council,1111/1001,Children and Young People,CYP,Third Party Payments,EGA,29/09/2022,06-16523,"12,956.58",Holly House Nursery (Doncaster) Ltd
Nottinghamshire County Council,1111/1001,Children and Young People,CYP,Third Party Payments,EGA,29/09/2022,06-16524,"1,505.28",Kate Turner (Childminder)
Nottinghamshire County Council,1111/1001,Children and Young People,CYP,Third Party Payments,EGA,29/09/2022,06-16525,635.04,R Townroe (Childminder)
Nottinghamshire County Council,1111/1001,Children and Young People,CYP,Third Party Payments,EGA,29/09/2022,06-16526,"8,489.74",Hollies Day Nursery Ltd (Mapperley)
Nottinghamshire County Council,1111/1001,Children and Young People,CYP,Third Party Payments,EGA,29/09/2022,06-16527,"11,545.38",Phoenix Park Nursery (Giltbrook) Lt
Nottinghamshire County Council,1111/1001,Children and Young People,CYP,Third Party Payments,EGA,29/09/2022,06-16528,800.00,Longdale Nursery School (Cherubs)
Nottinghamshire County Council,1111/1001,Children and Young People,CYP,Third Party Payments,EGA,29/09/2022,06-16529,"1,600.00",Ark Pre-School
Nottinghamshire County Council,1111/1001,Children and Young People,CYP,Third Party Payments,EGA,29/09/2022,06-16530,800.00,Little Kites Playgroup
Nottinghamshire County Council,1111/1001,Children and Young People,CYP,Third Party Payments,EGA,29/09/2022,06-16531,800.00,Killisick Pre-School
Nottinghamshire County Council,1111/1001,Children and Young People,CYP,Third Party Payments,EGA,29/09/2022,06-16532,800.00,Radcliffe On Trent Pre School Playg
Nottinghamshire County Council,1111/1001,Children and Young People,CYP,Third Party Payments,EGA,29/09/2022,06-16533,800.00,Busy Bees (Daybrook)
Nottinghamshire County Council,1111/1001,Children and Young People,CYP,Third Party Payments,EGA,29/09/2022,06-16534,800.00,Little Nippers Pre-School
Nottinghamshire County Council,1111/1001,Children and Young People,CYP,Third Party Payments,EGA,29/09/2022,06-16535,800.00,Quinton Day Nurseries T/A Honey Bee
Nottinghamshire County Council,1111/1001,Children and Young People,CYP,Third Party Payments,EGA,29/09/2022,06-16536,800.00,Radcliffe On Trent Day Nursery
Nottinghamshire County Council,1111/1001,Children and Young People,CYP,Third Party Payments,EGA,29/09/2022,06-16537,800.00,Buttercross Pre School
Nottinghamshire County Council,1111/1001,Children and Young People,CYP,Third Party Payments,EGA,29/09/2022,06-16538,800.00,Bright Sparks Day Nursery
Nottinghamshire County Council,1111/1001,Children and Young People,CYP,Third Party Payments,EGA,29/09/2022,06-16539,800.00,Woodthorpe Day Nursery Ltd
Nottinghamshire County Council,1111/1001,Children and Young People,CYP,Third Party Payments,EGA,29/09/2022,06-16540,800.00,Ashfield Plaza Day Nursery
Nottinghamshire County Council,1111/1001,Children and Young People,CYP,Third Party Payments,EGA,29/09/2022,06-16541,"1,600.00",The Enchanted Garden Day Nursery
Nottinghamshire County Council,1111/1001,Children and Young People,CYP,Third Party Payments,EGA,29/09/2022,06-16542,800.00,[Redacted]
Nottinghamshire County Council,1111/1001,Children and Young People,CYP,Third Party Payments,EGA,29/09/2022,06-16543,800.00,Alphabet House Day Nursery (Chilwel
Nottinghamshire County Council,1111/1001,Children and Young People,CYP,Third Party Payments,EGA,29/09/2022,06-17305,"26,489.36",Inspire Care (Uk) Ltd
Nottinghamshire County Council,1111/1001,Children and Young People,CYP,Third Party Payments,EGA,29/09/2022,06-17347,"25,714.50",Chrysalis Consortium Ltd
Nottinghamshire County Council,1111/1001,Children and Young People,CYP,Third Party Payments,EHA,07/09/2022,06-17354,"1,216.65",Scottish Adoption
Nottinghamshire County Council,1111/1001,Children and Young People,CYP,Third Party Payments,EHA,07/09/2022,06-17368,"2,671.92",Coram
Nottinghamshire County Council,1111/1001,Children and Young People,CYP,Third Party Payments,EHA,26/09/2022,06-17477,"16,000.00",Leicestershire County Council
Nottinghamshire County Council,1111/1001,Children and Young People,CYP,Transfer Payments,GAA,07/09/2022,06-11036,"1,162.09",Jamie Smith Trust
Nottinghamshire County Council,1111/1001,Children and Young People,CYP,Transfer Payments,GAA,07/09/2022,06-11061,400.00,Young People First Ltd
Nottinghamshire County Council,1111/1001,Children and Young People,CYP,Transfer Payments,GAA,07/09/2022,06-11063,"7,193.00",Straits Three (Jersey) Ltd
Nottinghamshire County Council,1111/1001,Children and Young People,CYP,Transfer Payments,GAA,09/09/2022,06-17434,708.33,Different Class Solutions Ltd
Nottinghamshire County Council,1111/1001,Children and Young People,CYP,Transfer Payments,GAA,14/09/2022,06-12847,"4,050.00",[Redacted]
Nottinghamshire County Council,1111/1001,Children and Young People,CYP,Transfer Payments,GAA,15/09/2022,06-12935,"1,081.21",Jamie Smith Trust
Nottinghamshire County Council,1111/1001,Children and Young People,CYP,Transfer Payments,GAA,21/09/2022,06-13314,600.00,Young People First Ltd
Nottinghamshire County Council,1111/1001,Children and Young People,CYP,Transfer Payments,GAA,28/09/2022,06-16075,550.00,ADG Management
Nottinghamshire County Council,1111/1001,Children and Young People,CYP,Support Services,HAA,21/09/2022,06-13329,970.00,Nottingham Minibuses & Coaches
Nottinghamshire County Council,1111/1001,Children and Young People,CYP,Support Services,HAA,21/09/2022,06-13330,520.00,Nottingham Minibuses & Coaches
Nottinghamshire County Council,1111/1001,Children and Young People,CYP,Income,JAA,09/09/2022,06-10062,"117,324.70",Department for Education
Nottinghamshire County Council,1111/1001,Adult Social Care and Health,ASCH,Premises Related,BAA,01/09/2022,06-10170,822.51,Steven Pay
Nottinghamshire County Council,1111/1001,Adult Social Care and Health,ASCH,Premises Related,BAA,02/09/2022,06-10174,"2,365.64",ARC Property Services Partnership L
Nottinghamshire County Council,1111/1001,Adult Social Care and Health,ASCH,Premises Related,BAA,05/09/2022,06-10590,590.63,Heating & Process Eng Serv Ltd
Nottinghamshire County Council,1111/1001,Adult Social Care and Health,ASCH,Premises Related,BAA,06/09/2022,06-11008,"1,205.04",ARC Property Services Partnership L
Nottinghamshire County Council,1111/1001,Adult Social Care and Health,ASCH,Premises Related,BAA,15/09/2022,06-13005,315.00,ARC Property Services Partnership L
Nottinghamshire County Council,1111/1001,Adult Social Care and Health,ASCH,Premises Related,BAA,20/09/2022,06-13307,"1,069.51",Steven Pay
Nottinghamshire County Council,1111/1001,Adult Social Care and Health,ASCH,Premises Related,BAA,22/09/2022,06-13379,"1,039.50",ARC Property Services Partnership L
Nottinghamshire County Council,1111/1001,Adult Social Care and Health,ASCH,Premises Related,BAA,26/09/2022,06-15725,160.13,ARC Property Services Partnership L
Nottinghamshire County Council,1111/1001,Adult Social Care and Health,ASCH,Premises Related,BAA,29/09/2022,06-16158,566.50,Pgs Joinery Services Ltd
Nottinghamshire County Council,1111/1001,Adult Social Care and Health,ASCH,Premises Related,BAA,29/09/2022,06-16159,555.75,Sues Maintenance Services Ltd
Nottinghamshire County Council,1111/1001,Adult Social Care and Health,ASCH,Premises Related,BAA,29/09/2022,06-16160,"1,073.12",TMM & Building Ltd
Nottinghamshire County Council,1111/1001,Adult Social Care and Health,ASCH,Premises Related,BAA,29/09/2022,06-16161,839.00,TMM & Building Ltd
Nottinghamshire County Council,1111/1001,Adult Social Care and Health,ASCH,Premises Related,BCA,26/09/2022,06-11157,221.33,Siemens Infra & Cities Mobility & L
Nottinghamshire County Council,1111/1001,Adult Social Care and Health,ASCH,Premises Related,BDA,01/09/2022,06-10025,"18,938.64",Mansfield District Council
Nottinghamshire County Council,1111/1001,Adult Social Care and Health,ASCH,Premises Related,BDA,06/09/2022,06-10979,657.58,Calder Conferences Ltd
Nottinghamshire County Council,1111/1001,Adult Social Care and Health,ASCH,Premises Related,BEA,02/09/2022,06-10180,"2,395.00",Gedling Borough Council (Bus Rates
Nottinghamshire County Council,1111/1001,Adult Social Care and Health,ASCH,Premises Related,BEA,02/09/2022,06-10187,"33,162.00",Att Of Earn/Bus Rates Bassetlaw D C
Nottinghamshire County Council,1111/1001,Adult Social Care and Health,ASCH,Premises Related,BEA,02/09/2022,06-10197,"1,347.00",Rushcliffe Borough Council
Nottinghamshire County Council,1111/1001,Adult Social Care and Health,ASCH,Premises Related,BEA,02/09/2022,06-10207,"4,690.00",Newark & Sherwood District Council
Nottinghamshire County Council,1111/1001,Adult Social Care and Health,ASCH,Premises Related,BEA,05/09/2022,06-10598,359.00,Att Of Earn/Bus Rates Bassetlaw D C
Nottinghamshire County Council,1111/1001,Adult Social Care and Health,ASCH,Premises Related,BEA,21/09/2022,06-13375,359.00,Att Of Earn/Bus Rates Bassetlaw D C
Nottinghamshire County Council,1111/1001,Adult Social Care and Health,ASCH,Transport Related,CAA,05/09/2022,06-10591,"1,488.15",UK Fuels Ltd
Nottinghamshire County Council,1111/1001,Adult Social Care and Health,ASCH,Transport Related,CAA,07/09/2022,06-10122,"1,756.62",UK Fuels Ltd
Nottinghamshire County Council,1111/1001,Adult Social Care and Health,ASCH,Transport Related,CAA,08/09/2022,06-11143,237.84,Via East Midlands Ltd
Nottinghamshire County Council,1111/1001,Adult Social Care and Health,ASCH,Transport Related,CAA,09/09/2022,06-11170,160.50,Via East Midlands Ltd
Nottinghamshire County Council,1111/1001,Adult Social Care and Health,ASCH,Transport Related,CAA,14/09/2022,06-12849,"1,726.44",Via East Midlands Ltd
Nottinghamshire County Council,1111/1001,Adult Social Care and Health,ASCH,Transport Related,CAA,21/09/2022,06-10214,"1,608.19",UK Fuels Ltd
Nottinghamshire County Council,1111/1001,Adult Social Care and Health,ASCH,Transport Related,CAA,28/09/2022,06-11811,"1,470.08",UK Fuels Ltd
Nottinghamshire County Council,1111/1001,Adult Social Care and Health,ASCH,Transport Related,CCA,07/09/2022,06-11022,"2,191.86",Arrow Specialised Transport Ltd
Nottinghamshire County Council,1111/1001,Adult Social Care and Health,ASCH,Transport Related,CCA,07/09/2022,06-11134,"4,450.16",Nottingham Specialist Transport Ltd
Nottinghamshire County Council,1111/1001,Adult Social Care and Health,ASCH,Transport Related,CCA,12/09/2022,06-11481,"2,105.60",Alpha Cars
Nottinghamshire County Council,1111/1001,Adult Social Care and Health,ASCH,Transport Related,CCA,30/09/2022,06-16551,"1,045.00",Abacus Cars
Nottinghamshire County Council,1111/1001,Adult Social Care and Health,ASCH,Transport Related,CDA,05/09/2022,06-17259,"15,676.67",Thera East Midlands
Nottinghamshire County Council,1111/1001,Adult Social Care and Health,ASCH,Transport Related,CDA,05/09/2022,06-17260,"15,676.67",Thera East Midlands
Nottinghamshire County Council,1111/1001,Adult Social Care and Health,ASCH,Transport Related,CDA,05/09/2022,06-17261,"15,676.67",Thera East Midlands
Nottinghamshire County Council,1111/1001,Adult Social Care and Health,ASCH,Transport Related,CDA,05/09/2022,06-17262,"15,676.67",Thera East Midlands
Nottinghamshire County Council,1111/1001,Adult Social Care and Health,ASCH,Transport Related,CDA,06/09/2022,06-10937,565.76,Southside Cars Ltd
Nottinghamshire County Council,1111/1001,Adult Social Care and Health,ASCH,Transport Related,CDA,06/09/2022,06-10938,"2,291.44",Southside Cars Ltd
Nottinghamshire County Council,1111/1001,Adult Social Care and Health,ASCH,Transport Related,CDA,06/09/2022,06-10942,689.92,Southside Cars Ltd
Nottinghamshire County Council,1111/1001,Adult Social Care and Health,ASCH,Transport Related,CDA,06/09/2022,06-10945,707.28,Southside Cars Ltd
Nottinghamshire County Council,1111/1001,Adult Social Care and Health,ASCH,Transport Related,CDA,06/09/2022,06-10969,665.60,Abacus Cars
Nottinghamshire County Council,1111/1001,Adult Social Care and Health,ASCH,Transport Related,CDA,06/09/2022,06-10970,"4,014.40",Abacus Cars
Nottinghamshire County Council,1111/1001,Adult Social Care and Health,ASCH,Transport Related,CDA,06/09/2022,06-10973,"1,860.67",AAA Cabs (Notts) Ltd
Nottinghamshire County Council,1111/1001,Adult Social Care and Health,ASCH,Transport Related,CDA,07/09/2022,06-11020,998.40,200 Cars Ltd
Nottinghamshire County Council,1111/1001,Adult Social Care and Health,ASCH,Transport Related,CDA,07/09/2022,06-11021,"2,292.30",Arrow Specialised Transport Ltd
Nottinghamshire County Council,1111/1001,Adult Social Care and Health,ASCH,Transport Related,CDA,07/09/2022,06-11023,"3,006.52",Arrow Specialised Transport Ltd
Nottinghamshire County Council,1111/1001,Adult Social Care and Health,ASCH,Transport Related,CDA,07/09/2022,06-11024,880.00,Ng11 Cars
Nottinghamshire County Council,1111/1001,Adult Social Care and Health,ASCH,Transport Related,CDA,07/09/2022,06-11025,"3,993.98",BN Gibson Ltd
Nottinghamshire County Council,1111/1001,Adult Social Care and Health,ASCH,Transport Related,CDA,07/09/2022,06-11026,"3,892.48",BN Gibson Ltd
Nottinghamshire County Council,1111/1001,Adult Social Care and Health,ASCH,Transport Related,CDA,07/09/2022,06-11028,665.60,Abacus Cars
Nottinghamshire County Council,1111/1001,Adult Social Care and Health,ASCH,Transport Related,CDA,07/09/2022,06-11029,635.00,Abacus Cars
Nottinghamshire County Council,1111/1001,Adult Social Care and Health,ASCH,Transport Related,CDA,07/09/2022,06-11030,936.00,Abacus Cars
Nottinghamshire County Council,1111/1001,Adult Social Care and Health,ASCH,Transport Related,CDA,07/09/2022,06-11035,765.00,Carriage Solutions Ltd
Nottinghamshire County Council,1111/1001,Adult Social Care and Health,ASCH,Transport Related,CDA,07/09/2022,06-11073,630.24,Bridges Transport Ltd
Nottinghamshire County Council,1111/1001,Adult Social Care and Health,ASCH,Transport Related,CDA,07/09/2022,06-11081,"2,466.42",Hawkins Taxis & Transport
Nottinghamshire County Council,1111/1001,Adult Social Care and Health,ASCH,Transport Related,CDA,07/09/2022,06-11128,"2,428.58",[Redacted]
Nottinghamshire County Council,1111/1001,Adult Social Care and Health,ASCH,Transport Related,CDA,07/09/2022,06-11130,"1,149.20",Rushcliffe Travel Ltd
Nottinghamshire County Council,1111/1001,Adult Social Care and Health,ASCH,Transport Related,CDA,07/09/2022,06-11136,"2,208.96",W Hollingsworth T/A Target Taxis
Nottinghamshire County Council,1111/1001,Adult Social Care and Health,ASCH,Transport Related,CDA,07/09/2022,06-11138,"2,038.40",W Hollingsworth T/A Target Taxis
Nottinghamshire County Council,1111/1001,Adult Social Care and Health,ASCH,Transport Related,CDA,07/09/2022,06-11140,693.00,JK Transport Ltd
Nottinghamshire County Council,1111/1001,Adult Social Care and Health,ASCH,Transport Related,CDA,12/09/2022,06-11471,"1,227.20",Southside Cars Ltd
Nottinghamshire County Council,1111/1001,Adult Social Care and Health,ASCH,Transport Related,CDA,12/09/2022,06-11472,565.76,Southside Cars Ltd
Nottinghamshire County Council,1111/1001,Adult Social Care and Health,ASCH,Transport Related,CDA,12/09/2022,06-11474,660.00,6 Five 2s
Nottinghamshire County Council,1111/1001,Adult Social Care and Health,ASCH,Transport Related,CDA,12/09/2022,06-11476,"1,954.04",F4Control Ltd (t/a First4care)
Nottinghamshire County Council,1111/1001,Adult Social Care and Health,ASCH,Transport Related,CDA,12/09/2022,06-11479,"1,430.00",Ace Of Mansfield Ltd
Nottinghamshire County Council,1111/1001,Adult Social Care and Health,ASCH,Transport Related,CDA,12/09/2022,06-11480,"3,432.00",Alpha Cars
Nottinghamshire County Council,1111/1001,Adult Social Care and Health,ASCH,Transport Related,CDA,12/09/2022,06-11482,718.20,Alpha Cars
Nottinghamshire County Council,1111/1001,Adult Social Care and Health,ASCH,Transport Related,CDA,12/09/2022,06-11483,"1,040.00",Alpha Cars
Nottinghamshire County Council,1111/1001,Adult Social Care and Health,ASCH,Transport Related,CDA,12/09/2022,06-11484,949.13,Alpha Cars
Nottinghamshire County Council,1111/1001,Adult Social Care and Health,ASCH,Transport Related,CDA,12/09/2022,06-11486,"2,120.04",Fozcabs Newark Taxis
Nottinghamshire County Council,1111/1001,Adult Social Care and Health,ASCH,Transport Related,CDA,12/09/2022,06-11487,"3,970.12",F4Control Ltd (t/a First4care)
Nottinghamshire County Council,1111/1001,Adult Social Care and Health,ASCH,Transport Related,CDA,12/09/2022,06-11489,"1,327.04",D G Private Hire Ltd
Nottinghamshire County Council,1111/1001,Adult Social Care and Health,ASCH,Transport Related,CDA,12/09/2022,06-11490,"1,578.72",D G Private Hire Ltd
Nottinghamshire County Council,1111/1001,Adult Social Care and Health,ASCH,Transport Related,CDA,12/09/2022,06-11496,"1,611.00",Rio Cabs
Nottinghamshire County Council,1111/1001,Adult Social Care and Health,ASCH,Transport Related,CDA,12/09/2022,06-11503,"1,053.60",Ideal Cars (Private Hire) Ltd
Nottinghamshire County Council,1111/1001,Adult Social Care and Health,ASCH,Transport Related,CDA,12/09/2022,06-11505,600.00,Ideal Cars (Private Hire) Ltd
Nottinghamshire County Council,1111/1001,Adult Social Care and Health,ASCH,Transport Related,CDA,21/09/2022,06-13322,"2,406.96",Southside Cars Ltd
Nottinghamshire County Council,1111/1001,Adult Social Care and Health,ASCH,Transport Related,CDA,21/09/2022,06-13323,"1,164.80",Acorn Contracts
Nottinghamshire County Council,1111/1001,Adult Social Care and Health,ASCH,Transport Related,CDA,21/09/2022,06-13334,"3,350.36",Rushcliffe Travel Ltd
Nottinghamshire County Council,1111/1001,Adult Social Care and Health,ASCH,Transport Related,CDA,21/09/2022,06-13335,"1,081.60",Rushcliffe Travel Ltd
Nottinghamshire County Council,1111/1001,Adult Social Care and Health,ASCH,Transport Related,CDA,21/09/2022,06-13357,980.00,A1 Private Hire Ltd
Nottinghamshire County Council,1111/1001,Adult Social Care and Health,ASCH,Transport Related,CDA,21/09/2022,06-13358,"2,082.08",A1 Private Hire Ltd
Nottinghamshire County Council,1111/1001,Adult Social Care and Health,ASCH,Transport Related,CDA,21/09/2022,06-13359,"1,096.00",A1 Private Hire Ltd
Nottinghamshire County Council,1111/1001,Adult Social Care and Health,ASCH,Transport Related,CDA,21/09/2022,06-13360,"1,876.00",A1 Private Hire Ltd
Nottinghamshire County Council,1111/1001,Adult Social Care and Health,ASCH,Transport Related,CDA,26/09/2022,06-11133,627.30,24 x 7 Nottinghamshire Ltd
Nottinghamshire County Council,1111/1001,Adult Social Care and Health,ASCH,Transport Related,CDA,26/09/2022,06-17409,900.00,Autism East Midlands (Head Office)
Nottinghamshire County Council,1111/1001,Adult Social Care and Health,ASCH,Transport Related,CDA,30/09/2022,06-16547,690.00,6 Five 2s
Nottinghamshire County Council,1111/1001,Adult Social Care and Health,ASCH,Transport Related,CDA,30/09/2022,06-16550,665.60,Abacus Cars
Nottinghamshire County Council,1111/1001,Adult Social Care and Health,ASCH,Transport Related,CDA,30/09/2022,06-16551,"3,135.00",Abacus Cars
Nottinghamshire County Council,1111/1001,Adult Social Care and Health,ASCH,Transport Related,CDA,30/09/2022,06-16570,"2,358.30",SM Travel Yorkshire Ltd
Nottinghamshire County Council,1111/1001,Adult Social Care and Health,ASCH,Transport Related,CDA,30/09/2022,06-16581,"1,455.30",SM Travel Yorkshire Ltd
Nottinghamshire County Council,1111/1001,Adult Social Care and Health,ASCH,Transport Related,CDA,30/09/2022,06-16587,"1,437.60",SM Travel Yorkshire Ltd
Nottinghamshire County Council,1111/1001,Adult Social Care and Health,ASCH,Transport Related,CDA,30/09/2022,06-16591,"1,524.60",SM Travel Yorkshire Ltd
Nottinghamshire County Council,1111/1001,Adult Social Care and Health,ASCH,Transport Related,CDA,30/09/2022,06-16592,"2,470.60",SM Travel Yorkshire Ltd
Nottinghamshire County Council,1111/1001,Adult Social Care and Health,ASCH,Transport Related,CDA,30/09/2022,06-16593,551.70,SM Travel Yorkshire Ltd
Nottinghamshire County Council,1111/1001,Adult Social Care and Health,ASCH,Transport Related,CEA,06/09/2022,06-11038,246.59,Reed Employment Ltd
Nottinghamshire County Council,1111/1001,Adult Social Care and Health,ASCH,Transport Related,CEA,06/09/2022,06-11046,337.53,Reed Employment Ltd
Nottinghamshire County Council,1111/1001,Adult Social Care and Health,ASCH,Transport Related,CEA,06/09/2022,06-11052,204.72,Reed Employment Ltd
Nottinghamshire County Council,1111/1001,Adult Social Care and Health,ASCH,Transport Related,CEA,12/09/2022,06-11042,297.64,Reed Employment Ltd
Nottinghamshire County Council,1111/1001,Adult Social Care and Health,ASCH,Transport Related,CEA,22/09/2022,06-13392,608.57,Reed Employment Ltd
Nottinghamshire County Council,1111/1001,Adult Social Care and Health,ASCH,Transport Related,CEA,26/09/2022,06-13397,260.19,Reed Employment Ltd
Nottinghamshire County Council,1111/1001,Adult Social Care and Health,ASCH,Supplies & Services,DAA,05/09/2022,06-17225,"1,478.68",Dawsongroup Temperature Control Sol
Nottinghamshire County Council,1111/1001,Adult Social Care and Health,ASCH,Supplies & Services,DAA,05/09/2022,06-17229,"1,478.68",Dawsongroup Temperature Control Sol
Nottinghamshire County Council,1111/1001,Adult Social Care and Health,ASCH,Supplies & Services,DAA,20/09/2022,06-17475,"1,499.04",Woodlodge Products Ltd
Nottinghamshire County Council,1111/1001,Adult Social Care and Health,ASCH,Supplies & Services,DAA,30/09/2022,06-17442,758.00,Arjo UK Ltd
Nottinghamshire County Council,1111/1001,Adult Social Care and Health,ASCH,Supplies & Services,DBA,06/09/2022,06-10984,"4,657.21",M Maloney Country Butchers & B Ltd
Nottinghamshire County Council,1111/1001,Adult Social Care and Health,ASCH,Supplies & Services,DBA,06/09/2022,06-10987,"2,075.67",M Maloney Country Butchers & B Ltd
Nottinghamshire County Council,1111/1001,Adult Social Care and Health,ASCH,Supplies & Services,DBA,07/09/2022,06-10077,"4,869.05",Brake Bros Ltd
Nottinghamshire County Council,1111/1001,Adult Social Care and Health,ASCH,Supplies & Services,DBA,09/09/2022,06-11147,167.99,On A Roll Sandwich Company
Nottinghamshire County Council,1111/1001,Adult Social Care and Health,ASCH,Supplies & Services,DBA,12/09/2022,06-11513,"2,434.03",M Maloney Country Butchers & B Ltd
Nottinghamshire County Council,1111/1001,Adult Social Care and Health,ASCH,Supplies & Services,DBA,13/09/2022,06-11819,201.51,Millside Barrowcliffe Ltd
Nottinghamshire County Council,1111/1001,Adult Social Care and Health,ASCH,Supplies & Services,DBA,13/09/2022,06-11821,26.82,Millside Barrowcliffe Ltd
Nottinghamshire County Council,1111/1001,Adult Social Care and Health,ASCH,Supplies & Services,DBA,16/09/2022,06-13014,"2,554.82",M Maloney Country Butchers & B Ltd
Nottinghamshire County Council,1111/1001,Adult Social Care and Health,ASCH,Supplies & Services,DBA,16/09/2022,06-13018,684.82,Fresh Opportunities Ltd
Nottinghamshire County Council,1111/1001,Adult Social Care and Health,ASCH,Supplies & Services,DBA,21/09/2022,06-10990,"2,939.29",Brake Bros Ltd
Nottinghamshire County Council,1111/1001,Adult Social Care and Health,ASCH,Supplies & Services,DBA,21/09/2022,06-13363,178.43,On A Roll Sandwich Company
Nottinghamshire County Council,1111/1001,Adult Social Care and Health,ASCH,Supplies & Services,DBA,21/09/2022,06-13365,"3,260.30",John Palin (Wholesale) Ltd
Nottinghamshire County Council,1111/1001,Adult Social Care and Health,ASCH,Supplies & Services,DBA,23/09/2022,06-17158,"5,128.75",IFF (GB) Ltd T/A Tastepoint
Nottinghamshire County Council,1111/1001,Adult Social Care and Health,ASCH,Supplies & Services,DBA,26/09/2022,06-17130,"1,226.52",Nestle UK Ltd
Nottinghamshire County Council,1111/1001,Adult Social Care and Health,ASCH,Supplies & Services,DBA,26/09/2022,06-17324,"1,200.00",F Smales & Son Fish Merchants Ltd
Nottinghamshire County Council,1111/1001,Adult Social Care and Health,ASCH,Supplies & Services,DBA,27/09/2022,06-16063,"3,170.12",M Maloney Country Butchers & B Ltd
Nottinghamshire County Council,1111/1001,Adult Social Care and Health,ASCH,Supplies & Services,DBA,27/09/2022,06-16066,195.77,On A Roll Sandwich Company
Nottinghamshire County Council,1111/1001,Adult Social Care and Health,ASCH,Supplies & Services,DBA,28/09/2022,06-11516,"2,772.84",Brake Bros Ltd
Nottinghamshire County Council,1111/1001,Adult Social Care and Health,ASCH,Supplies & Services,DCA,20/09/2022,06-17159,"3,627.10",Micronclean
Nottinghamshire County Council,1111/1001,Adult Social Care and Health,ASCH,Supplies & Services,DEA,05/09/2022,06-10068,905.97,Retford Senior Care Ser T/A Home In
Nottinghamshire County Council,1111/1001,Adult Social Care and Health,ASCH,Supplies & Services,DEA,05/09/2022,06-17242,"5,276.40",Browne Jacobson LLP
Nottinghamshire County Council,1111/1001,Adult Social Care and Health,ASCH,Supplies & Services,DEA,05/09/2022,06-17249,"5,276.40",Browne Jacobson LLP
Nottinghamshire County Council,1111/1001,Adult Social Care and Health,ASCH,Supplies & Services,DEA,07/09/2022,06-17351,"4,180.00",Reed Employment Ltd
Nottinghamshire County Council,1111/1001,Adult Social Care and Health,ASCH,Supplies & Services,DEA,09/09/2022,06-10067,"1,665.75",Farthings Care Home (Ashall Care Lt
Nottinghamshire County Council,1111/1001,Adult Social Care and Health,ASCH,Supplies & Services,DEA,09/09/2022,06-10133,"1,328.28",Goodman House T/A GH Support Ltd
Nottinghamshire County Council,1111/1001,Adult Social Care and Health,ASCH,Supplies & Services,DEA,09/09/2022,06-11149,"1,200.00",Be Cared For Ltd
Nottinghamshire County Council,1111/1001,Adult Social Care and Health,ASCH,Supplies & Services,DEA,09/09/2022,06-11150,"1,586.54",Farthings Care Home (Ashall Care Lt
Nottinghamshire County Council,1111/1001,Adult Social Care and Health,ASCH,Supplies & Services,DEA,09/09/2022,06-11151,"1,500.00",Docmar Ltd T/A Respectful Care Mans
Nottinghamshire County Council,1111/1001,Adult Social Care and Health,ASCH,Supplies & Services,DEA,09/09/2022,06-11152,"1,500.00",Carers Trust East Midlands (TuVida)
Nottinghamshire County Council,1111/1001,Adult Social Care and Health,ASCH,Supplies & Services,DEA,09/09/2022,06-11153,"1,500.00",Carers Trust East Midlands (TuVida)
Nottinghamshire County Council,1111/1001,Adult Social Care and Health,ASCH,Supplies & Services,DEA,09/09/2022,06-11154,"1,172.43",Carefound Home Care (West Bridgford
Nottinghamshire County Council,1111/1001,Adult Social Care and Health,ASCH,Supplies & Services,DEA,09/09/2022,06-11155,"1,500.00",Enablement Care (CCT Community)
Nottinghamshire County Council,1111/1001,Adult Social Care and Health,ASCH,Supplies & Services,DEA,20/09/2022,06-13024,"2,976.00",iCare Solutions Manchester Ltd
Nottinghamshire County Council,1111/1001,Adult Social Care and Health,ASCH,Third Party Payments,EBA,05/09/2022,06-17222,"28,750.00",Carers Trust East Midlands (TuVida)
Nottinghamshire County Council,1111/1001,Adult Social Care and Health,ASCH,Third Party Payments,EBA,08/09/2022,06-17382,"39,399.51",Age Uk Nottm & Notts
Nottinghamshire County Council,1111/1001,Adult Social Care and Health,ASCH,Third Party Payments,EBA,26/09/2022,06-17168,"75,684.17",Pohwer
Nottinghamshire County Council,1111/1001,Adult Social Care and Health,ASCH,Third Party Payments,EBA,26/09/2022,06-17201,"2,380.92",Framework Housing Association
Nottinghamshire County Council,1111/1001,Adult Social Care and Health,ASCH,Third Party Payments,EBA,26/09/2022,06-17202,"14,285.75",Framework Housing Association
Nottinghamshire County Council,1111/1001,Adult Social Care and Health,ASCH,Third Party Payments,EBA,26/09/2022,06-17203,"15,113.75",Framework Housing Association
Nottinghamshire County Council,1111/1001,Adult Social Care and Health,ASCH,Third Party Payments,EBA,26/09/2022,06-17214,"66,064.00",Framework Housing Association
Nottinghamshire County Council,1111/1001,Adult Social Care and Health,ASCH,Third Party Payments,EBA,26/09/2022,06-17215,"54,907.42",Framework Housing Association
Nottinghamshire County Council,1111/1001,Adult Social Care and Health,ASCH,Third Party Payments,EBA,28/09/2022,06-17313,"2,028.00",Telefonica UK Ltd (O2)
Nottinghamshire County Council,1111/1001,Adult Social Care and Health,ASCH,Third Party Payments,EBA,30/09/2022,06-16978,"7,200.00",Sutton Court Care Home (Ashmere)
Nottinghamshire County Council,1111/1001,Adult Social Care and Health,ASCH,Third Party Payments,ECA,23/09/2022,06-14603,"4,234.40",Lowmoor Nursing Home
Nottinghamshire County Council,1111/1001,Adult Social Care and Health,ASCH,Third Party Payments,EGA,02/09/2022,06-10226,"2,488.00",Ashton Court
Nottinghamshire County Council,1111/1001,Adult Social Care and Health,ASCH,Third Party Payments,EGA,02/09/2022,06-10227,"2,419.76",Acorn House
Nottinghamshire County Council,1111/1001,Adult Social Care and Health,ASCH,Third Party Payments,EGA,02/09/2022,06-10228,"2,716.00",Ashton Court
Nottinghamshire County Council,1111/1001,Adult Social Care and Health,ASCH,Third Party Payments,EGA,02/09/2022,06-10229,"3,023.68",Acorn House
Nottinghamshire County Council,1111/1001,Adult Social Care and Health,ASCH,Third Party Payments,EGA,02/09/2022,06-10230,"4,711.00",Alexandra House (Eastgate)
Nottinghamshire County Council,1111/1001,Adult Social Care and Health,ASCH,Third Party Payments,EGA,02/09/2022,06-10231,"3,452.57",Aldercar Residential Home
Nottinghamshire County Council,1111/1001,Adult Social Care and Health,ASCH,Third Party Payments,EGA,02/09/2022,06-10232,"4,881.12",Alfred Minto House Residential Home
Nottinghamshire County Council,1111/1001,Adult Social Care and Health,ASCH,Third Party Payments,EGA,02/09/2022,06-10233,"2,085.44",Ashview House Care Home (Grindleys
Nottinghamshire County Council,1111/1001,Adult Social Care and Health,ASCH,Third Party Payments,EGA,02/09/2022,06-10234,"2,419.76",Ashleigh House Residential Home
Nottinghamshire County Council,1111/1001,Adult Social Care and Health,ASCH,Third Party Payments,EGA,02/09/2022,06-10235,817.72,Aldercar Residential Home
Nottinghamshire County Council,1111/1001,Adult Social Care and Health,ASCH,Third Party Payments,EGA,02/09/2022,06-10236,"2,716.00",Ashton Court
Nottinghamshire County Council,1111/1001,Adult Social Care and Health,ASCH,Third Party Payments,EGA,02/09/2022,06-10237,"2,716.00",Ashton Court
Nottinghamshire County Council,1111/1001,Adult Social Care and Health,ASCH,Third Party Payments,EGA,02/09/2022,06-10238,"4,054.80",Alexandra Nursing Home (Rosmead Hea
Nottinghamshire County Council,1111/1001,Adult Social Care and Health,ASCH,Third Party Payments,EGA,02/09/2022,06-10239,"2,488.00",Ashton Court
Nottinghamshire County Council,1111/1001,Adult Social Care and Health,ASCH,Third Party Payments,EGA,02/09/2022,06-10240,"4,881.12",Alfred Minto House Residential Home
Nottinghamshire County Council,1111/1001,Adult Social Care and Health,ASCH,Third Party Payments,EGA,02/09/2022,06-10241,"4,724.57",Annesley Lodge
Nottinghamshire County Council,1111/1001,Adult Social Care and Health,ASCH,Third Party Payments,EGA,02/09/2022,06-10242,"2,488.00",Adbolton Hall Nursing Home (MPS)
Nottinghamshire County Council,1111/1001,Adult Social Care and Health,ASCH,Third Party Payments,EGA,02/09/2022,06-10243,"2,716.00",Ashton Court
Nottinghamshire County Council,1111/1001,Adult Social Care and Health,ASCH,Third Party Payments,EGA,02/09/2022,06-10244,"4,881.12",Alfred Minto House Residential Home
Nottinghamshire County Council,1111/1001,Adult Social Care and Health,ASCH,Third Party Payments,EGA,02/09/2022,06-10245,"3,333.76",Ashley Court Care Home
Nottinghamshire County Council,1111/1001,Adult Social Care and Health,ASCH,Third Party Payments,EGA,02/09/2022,06-10246,"2,716.00",Ashton Court
Nottinghamshire County Council,1111/1001,Adult Social Care and Health,ASCH,Third Party Payments,EGA,02/09/2022,06-10247,"2,419.76",Acorn House
Nottinghamshire County Council,1111/1001,Adult Social Care and Health,ASCH,Third Party Payments,EGA,02/09/2022,06-10248,"2,716.00",Ashton Court
Nottinghamshire County Council,1111/1001,Adult Social Care and Health,ASCH,Third Party Payments,EGA,02/09/2022,06-10249,"2,419.76",Acorn House
Nottinghamshire County Council,1111/1001,Adult Social Care and Health,ASCH,Third Party Payments,EGA,02/09/2022,06-10250,"2,819.76",Acorn House
Nottinghamshire County Council,1111/1001,Adult Social Care and Health,ASCH,Third Party Payments,EGA,02/09/2022,06-10251,"1,066.28",Adbolton Hall Nursing Home (MPS)
Nottinghamshire County Council,1111/1001,Adult Social Care and Health,ASCH,Third Party Payments,EGA,02/09/2022,06-10252,"2,716.00",Ashton Court
Nottinghamshire County Council,1111/1001,Adult Social Care and Health,ASCH,Third Party Payments,EGA,02/09/2022,06-10253,"1,622.00",Ashley House Nursing Home
Nottinghamshire County Council,1111/1001,Adult Social Care and Health,ASCH,Third Party Payments,EGA,02/09/2022,06-10254,"4,883.12",Alfred Minto House Residential Home
Nottinghamshire County Council,1111/1001,Adult Social Care and Health,ASCH,Third Party Payments,EGA,02/09/2022,06-10255,"10,786.29",Ashley House Nursing Home
Nottinghamshire County Council,1111/1001,Adult Social Care and Health,ASCH,Third Party Payments,EGA,02/09/2022,06-10256,"4,000.00",Ailwyn Hall Care Home
Nottinghamshire County Council,1111/1001,Adult Social Care and Health,ASCH,Third Party Payments,EGA,02/09/2022,06-10257,"3,593.57",Ashlands Residential Care Home
Nottinghamshire County Council,1111/1001,Adult Social Care and Health,ASCH,Third Party Payments,EGA,02/09/2022,06-10258,"8,722.29",Annesley Lodge
Nottinghamshire County Council,1111/1001,Adult Social Care and Health,ASCH,Third Party Payments,EGA,02/09/2022,06-10259,"2,488.00",Ashton Court
Nottinghamshire County Council,1111/1001,Adult Social Care and Health,ASCH,Third Party Payments,EGA,02/09/2022,06-10260,"2,716.00",Ashton Court
Nottinghamshire County Council,1111/1001,Adult Social Care and Health,ASCH,Third Party Payments,EGA,02/09/2022,06-10261,"2,848.68",Ashleigh House Residential Home
Nottinghamshire County Council,1111/1001,Adult Social Care and Health,ASCH,Third Party Payments,EGA,02/09/2022,06-10262,"2,716.00",Ashton Court
Nottinghamshire County Council,1111/1001,Adult Social Care and Health,ASCH,Third Party Payments,EGA,02/09/2022,06-10263,"10,238.76",Beech Tree Hall
Nottinghamshire County Council,1111/1001,Adult Social Care and Health,ASCH,Third Party Payments,EGA,02/09/2022,06-10264,"6,326.57",Beaumont House (Crown Care VIII Ltd
Nottinghamshire County Council,1111/1001,Adult Social Care and Health,ASCH,Third Party Payments,EGA,02/09/2022,06-10265,"2,852.00",Beech House Residential Home
Nottinghamshire County Council,1111/1001,Adult Social Care and Health,ASCH,Third Party Payments,EGA,02/09/2022,06-10266,"2,852.00",Beech House Residential Home
Nottinghamshire County Council,1111/1001,Adult Social Care and Health,ASCH,Third Party Payments,EGA,02/09/2022,06-10267,"9,792.00",Beech Court Care Home
Nottinghamshire County Council,1111/1001,Adult Social Care and Health,ASCH,Third Party Payments,EGA,02/09/2022,06-10268,"5,500.72",Balmore Country House (My Care Ltd)
Nottinghamshire County Council,1111/1001,Adult Social Care and Health,ASCH,Third Party Payments,EGA,02/09/2022,06-10269,"11,776.00",Braywood Gardens (Runwood)
Nottinghamshire County Council,1111/1001,Adult Social Care and Health,ASCH,Third Party Payments,EGA,02/09/2022,06-10270,"1,426.00",Branthwaite Res Home (FBC)
Nottinghamshire County Council,1111/1001,Adult Social Care and Health,ASCH,Third Party Payments,EGA,02/09/2022,06-10271,"2,544.00",Braywood Gardens (Runwood)
Nottinghamshire County Council,1111/1001,Adult Social Care and Health,ASCH,Third Party Payments,EGA,02/09/2022,06-10272,636.00,Braywood Gardens (Runwood)
Nottinghamshire County Council,1111/1001,Adult Social Care and Health,ASCH,Third Party Payments,EGA,02/09/2022,06-10273,"4,562.68",Bryn Ivor Lodge Care Home (Barchest
Nottinghamshire County Council,1111/1001,Adult Social Care and Health,ASCH,Third Party Payments,EGA,02/09/2022,06-10274,"11,106.68",Bridle Lodge (Creative Care)
Nottinghamshire County Council,1111/1001,Adult Social Care and Health,ASCH,Third Party Payments,EGA,02/09/2022,06-10275,"2,620.00",Beech House Residential Home
Nottinghamshire County Council,1111/1001,Adult Social Care and Health,ASCH,Third Party Payments,EGA,02/09/2022,06-10276,"2,268.00",Bunkers Hill Care Home(United Healt
Nottinghamshire County Council,1111/1001,Adult Social Care and Health,ASCH,Third Party Payments,EGA,02/09/2022,06-10277,"7,406.80",Beech Tree Hall
Nottinghamshire County Council,1111/1001,Adult Social Care and Health,ASCH,Third Party Payments,EGA,02/09/2022,06-10278,"8,751.04",Bridle Lodge (Creative Care)
Nottinghamshire County Council,1111/1001,Adult Social Care and Health,ASCH,Third Party Payments,EGA,02/09/2022,06-10280,900.00,The Beeches (Just Care Homes Ltd)
Nottinghamshire County Council,1111/1001,Adult Social Care and Health,ASCH,Third Party Payments,EGA,02/09/2022,06-10281,"3,100.00",Beech House Residential Home
Nottinghamshire County Council,1111/1001,Adult Social Care and Health,ASCH,Third Party Payments,EGA,02/09/2022,06-10282,"8,751.04",Bridle Lodge (Creative Care)
Nottinghamshire County Council,1111/1001,Adult Social Care and Health,ASCH,Third Party Payments,EGA,02/09/2022,06-10283,"2,852.00",Beech House Residential Home
Nottinghamshire County Council,1111/1001,Adult Social Care and Health,ASCH,Third Party Payments,EGA,02/09/2022,06-10284,"2,852.00",Beech House Residential Home
Nottinghamshire County Council,1111/1001,Adult Social Care and Health,ASCH,Third Party Payments,EGA,02/09/2022,06-10285,"8,571.48",Beech Tree Hall
Nottinghamshire County Council,1111/1001,Adult Social Care and Health,ASCH,Third Party Payments,EGA,02/09/2022,06-10286,"6,469.28",Beech Tree Hall
Nottinghamshire County Council,1111/1001,Adult Social Care and Health,ASCH,Third Party Payments,EGA,02/09/2022,06-10287,622.00,Brailsford House Care Home
Nottinghamshire County Council,1111/1001,Adult Social Care and Health,ASCH,Third Party Payments,EGA,02/09/2022,06-10288,"3,216.00",Beech House Residential Home
Nottinghamshire County Council,1111/1001,Adult Social Care and Health,ASCH,Third Party Payments,EGA,02/09/2022,06-10289,"2,620.00",Beech House Residential Home
Nottinghamshire County Council,1111/1001,Adult Social Care and Health,ASCH,Third Party Payments,EGA,02/09/2022,06-10290,"2,544.00",Braywood Gardens (Runwood)
Nottinghamshire County Council,1111/1001,Adult Social Care and Health,ASCH,Third Party Payments,EGA,02/09/2022,06-10291,"3,035.88",Beech Lodge Nursing Home (Country C
Nottinghamshire County Council,1111/1001,Adult Social Care and Health,ASCH,Third Party Payments,EGA,02/09/2022,06-10292,"3,000.00",Beech House Residential Home
Nottinghamshire County Council,1111/1001,Adult Social Care and Health,ASCH,Third Party Payments,EGA,02/09/2022,06-10293,"1,310.00",Cherry Holt Care Home
Nottinghamshire County Council,1111/1001,Adult Social Care and Health,ASCH,Third Party Payments,EGA,02/09/2022,06-10294,"21,912.43",Cherry Tree House (Lime Tree Care)
Nottinghamshire County Council,1111/1001,Adult Social Care and Health,ASCH,Third Party Payments,EGA,02/09/2022,06-10295,"2,419.76",Conifers Rest Home Ltd
Nottinghamshire County Council,1111/1001,Adult Social Care and Health,ASCH,Third Party Payments,EGA,02/09/2022,06-10296,"4,839.52",Carrington Care Home (Jeeves care H
Nottinghamshire County Council,1111/1001,Adult Social Care and Health,ASCH,Third Party Payments,EGA,02/09/2022,06-10297,622.00,Charnwood H (Four Seasons)
Nottinghamshire County Council,1111/1001,Adult Social Care and Health,ASCH,Third Party Payments,EGA,02/09/2022,06-10298,"8,871.36",Cherry Tree House (Lime Tree Care)
Nottinghamshire County Council,1111/1001,Adult Social Care and Health,ASCH,Third Party Payments,EGA,02/09/2022,06-10299,950.62,Clifton Manor Care (Monarch)
Nottinghamshire County Council,1111/1001,Adult Social Care and Health,ASCH,Third Party Payments,EGA,02/09/2022,06-10300,"1,029.29",Cherry Holt Care Home
Nottinghamshire County Council,1111/1001,Adult Social Care and Health,ASCH,Third Party Payments,EGA,02/09/2022,06-10301,"38,456.00",Cherry Tree House (Lime Tree Care)
Nottinghamshire County Council,1111/1001,Adult Social Care and Health,ASCH,Third Party Payments,EGA,02/09/2022,06-10302,"2,419.76",Conifers Rest Home Ltd
Nottinghamshire County Council,1111/1001,Adult Social Care and Health,ASCH,Third Party Payments,EGA,02/09/2022,06-10303,"9,952.00",Charnwood H (Four Seasons)
Nottinghamshire County Council,1111/1001,Adult Social Care and Health,ASCH,Third Party Payments,EGA,02/09/2022,06-10304,"2,505.76",Conifers Rest Home Ltd
Nottinghamshire County Council,1111/1001,Adult Social Care and Health,ASCH,Third Party Payments,EGA,02/09/2022,06-10305,"1,244.00",Gateford Hill(Countrywide Care)
Nottinghamshire County Council,1111/1001,Adult Social Care and Health,ASCH,Third Party Payments,EGA,02/09/2022,06-10306,"7,631.28",Forest Care Centre
Nottinghamshire County Council,1111/1001,Adult Social Care and Health,ASCH,Third Party Payments,EGA,02/09/2022,06-10307,"1,181.15",Gedling Village Care Home
Nottinghamshire County Council,1111/1001,Adult Social Care and Health,ASCH,Third Party Payments,EGA,02/09/2022,06-10308,"6,464.32",Forest Care Centre
Nottinghamshire County Council,1111/1001,Adult Social Care and Health,ASCH,Third Party Payments,EGA,02/09/2022,06-10309,"4,983.20",Forest Care Centre
Nottinghamshire County Council,1111/1001,Adult Social Care and Health,ASCH,Third Party Payments,EGA,02/09/2022,06-10310,"6,965.28",Forest Care Centre
Nottinghamshire County Council,1111/1001,Adult Social Care and Health,ASCH,Third Party Payments,EGA,02/09/2022,06-10311,"48,372.00",Forest Care Centre
Nottinghamshire County Council,1111/1001,Adult Social Care and Health,ASCH,Third Party Payments,EGA,02/09/2022,06-10312,"6,965.28",Forest Care Centre
Nottinghamshire County Council,1111/1001,Adult Social Care and Health,ASCH,Third Party Payments,EGA,02/09/2022,06-10313,"1,504.29",Falcon House Residential Home (Mins
Nottinghamshire County Council,1111/1001,Adult Social Care and Health,ASCH,Third Party Payments,EGA,02/09/2022,06-10314,"2,256.43",Falcon House Residential Home (Mins
Nottinghamshire County Council,1111/1001,Adult Social Care and Health,ASCH,Third Party Payments,EGA,02/09/2022,06-10315,"5,432.00",Forest Manor Care Home (ASHA)
Nottinghamshire County Council,1111/1001,Adult Social Care and Health,ASCH,Third Party Payments,EGA,02/09/2022,06-10316,"2,841.43",Falcon House Residential Home (Mins
Nottinghamshire County Council,1111/1001,Adult Social Care and Health,ASCH,Third Party Payments,EGA,02/09/2022,06-10317,"26,546.79",Goodman House T/A GH Support Ltd
Nottinghamshire County Council,1111/1001,Adult Social Care and Health,ASCH,Third Party Payments,EGA,02/09/2022,06-10318,"5,601.76",Forest Care Centre
Nottinghamshire County Council,1111/1001,Adult Social Care and Health,ASCH,Third Party Payments,EGA,02/09/2022,06-10319,"2,340.00",Falcon House Residential Home (Mins
Nottinghamshire County Council,1111/1001,Adult Social Care and Health,ASCH,Third Party Payments,EGA,02/09/2022,06-10320,"12,176.32",Forest Care Centre
Nottinghamshire County Council,1111/1001,Adult Social Care and Health,ASCH,Third Party Payments,EGA,02/09/2022,06-10321,"7,372.68",Forest Care Centre
Nottinghamshire County Council,1111/1001,Adult Social Care and Health,ASCH,Third Party Payments,EGA,02/09/2022,06-10322,"1,322.00",Gedling Village Care Home
Nottinghamshire County Council,1111/1001,Adult Social Care and Health,ASCH,Third Party Payments,EGA,02/09/2022,06-10323,"6,240.52",Forest Care Centre
Nottinghamshire County Council,1111/1001,Adult Social Care and Health,ASCH,Third Party Payments,EGA,02/09/2022,06-10324,"2,132.65",Gateford Hill(Countrywide Care)
Nottinghamshire County Council,1111/1001,Adult Social Care and Health,ASCH,Third Party Payments,EGA,02/09/2022,06-10325,"6,851.52",Forest Care Centre
Nottinghamshire County Council,1111/1001,Adult Social Care and Health,ASCH,Third Party Payments,EGA,02/09/2022,06-10327,"8,258.32",Hegarty Care
Nottinghamshire County Council,1111/1001,Adult Social Care and Health,ASCH,Third Party Payments,EGA,02/09/2022,06-10328,"4,346.54",Huws (Fitzroy)
Nottinghamshire County Council,1111/1001,Adult Social Care and Health,ASCH,Third Party Payments,EGA,02/09/2022,06-10329,"1,328.00",Hatzfeld House Care Home
Nottinghamshire County Council,1111/1001,Adult Social Care and Health,ASCH,Third Party Payments,EGA,02/09/2022,06-10330,"2,336.00",Hazel Grove NH (Milford)
Nottinghamshire County Council,1111/1001,Adult Social Care and Health,ASCH,Third Party Payments,EGA,02/09/2022,06-10331,"2,546.00",Hazel Grove NH (Milford)
Nottinghamshire County Council,1111/1001,Adult Social Care and Health,ASCH,Third Party Payments,EGA,02/09/2022,06-10332,"6,486.60",Hatzfeld House Care Home
Nottinghamshire County Council,1111/1001,Adult Social Care and Health,ASCH,Third Party Payments,EGA,02/09/2022,06-10333,"6,890.60",Hatzfeld House Care Home
Nottinghamshire County Council,1111/1001,Adult Social Care and Health,ASCH,Third Party Payments,EGA,02/09/2022,06-10334,"17,544.96",Hatzfeld House Care Home
Nottinghamshire County Council,1111/1001,Adult Social Care and Health,ASCH,Third Party Payments,EGA,02/09/2022,06-10335,"5,087.52",Hatzfeld House Care Home
Nottinghamshire County Council,1111/1001,Adult Social Care and Health,ASCH,Third Party Payments,EGA,02/09/2022,06-10336,"6,174.36",Hatzfeld House Care Home
Nottinghamshire County Council,1111/1001,Adult Social Care and Health,ASCH,Third Party Payments,EGA,02/09/2022,06-10337,"4,094.48",Hatzfeld House Care Home
Nottinghamshire County Council,1111/1001,Adult Social Care and Health,ASCH,Third Party Payments,EGA,02/09/2022,06-10338,"10,206.04",Hatzfeld House Care Home
Nottinghamshire County Council,1111/1001,Adult Social Care and Health,ASCH,Third Party Payments,EGA,02/09/2022,06-10339,"7,154.52",Huws (Fitzroy)
Nottinghamshire County Council,1111/1001,Adult Social Care and Health,ASCH,Third Party Payments,EGA,02/09/2022,06-10340,"2,881.04",Hazel Grove NH (Milford)
Nottinghamshire County Council,1111/1001,Adult Social Care and Health,ASCH,Third Party Payments,EGA,02/09/2022,06-10341,"2,958.92",Hazel Grove NH (Milford)
Nottinghamshire County Council,1111/1001,Adult Social Care and Health,ASCH,Third Party Payments,EGA,02/09/2022,06-10342,"4,400.00",Hatzfeld House Care Home
Nottinghamshire County Council,1111/1001,Adult Social Care and Health,ASCH,Third Party Payments,EGA,02/09/2022,06-10343,"11,457.48",Hegarty Care
Nottinghamshire County Council,1111/1001,Adult Social Care and Health,ASCH,Third Party Payments,EGA,02/09/2022,06-10344,"4,027.64",Hatzfeld House Care Home
Nottinghamshire County Council,1111/1001,Adult Social Care and Health,ASCH,Third Party Payments,EGA,02/09/2022,06-10345,"8,118.32",Huws (Fitzroy)
Nottinghamshire County Council,1111/1001,Adult Social Care and Health,ASCH,Third Party Payments,EGA,02/09/2022,06-10346,"8,151.12",Huws (Fitzroy)
Nottinghamshire County Council,1111/1001,Adult Social Care and Health,ASCH,Third Party Payments,EGA,02/09/2022,06-10347,"8,566.56",Huws (Fitzroy)
Nottinghamshire County Council,1111/1001,Adult Social Care and Health,ASCH,Third Party Payments,EGA,02/09/2022,06-10348,"3,448.32",Hatzfeld House Care Home
Nottinghamshire County Council,1111/1001,Adult Social Care and Health,ASCH,Third Party Payments,EGA,02/09/2022,06-10349,"9,637.86",The Herons RCH (MHA)
Nottinghamshire County Council,1111/1001,Adult Social Care and Health,ASCH,Third Party Payments,EGA,02/09/2022,06-10350,"2,336.00",Hazel Grove NH (Milford)
Nottinghamshire County Council,1111/1001,Adult Social Care and Health,ASCH,Third Party Payments,EGA,02/09/2022,06-10351,696.00,Hatzfeld House Care Home
Nottinghamshire County Council,1111/1001,Adult Social Care and Health,ASCH,Third Party Payments,EGA,02/09/2022,06-10352,"2,336.00",Hazel Grove NH (Milford)
Nottinghamshire County Council,1111/1001,Adult Social Care and Health,ASCH,Third Party Payments,EGA,02/09/2022,06-10353,"8,027.36",Hegarty Care
Nottinghamshire County Council,1111/1001,Adult Social Care and Health,ASCH,Third Party Payments,EGA,02/09/2022,06-10354,"7,110.88",Hegarty Care
Nottinghamshire County Council,1111/1001,Adult Social Care and Health,ASCH,Third Party Payments,EGA,02/09/2022,06-10355,"2,376.00",Hazel Grove NH (Milford)
Nottinghamshire County Council,1111/1001,Adult Social Care and Health,ASCH,Third Party Payments,EGA,02/09/2022,06-10356,"3,800.00",Hatzfeld House Care Home
Nottinghamshire County Council,1111/1001,Adult Social Care and Health,ASCH,Third Party Payments,EGA,02/09/2022,06-10357,"8,432.56",Huws (Fitzroy)
Nottinghamshire County Council,1111/1001,Adult Social Care and Health,ASCH,Third Party Payments,EGA,02/09/2022,06-10358,"2,336.00",Hazel Grove NH (Milford)
Nottinghamshire County Council,1111/1001,Adult Social Care and Health,ASCH,Third Party Payments,EGA,02/09/2022,06-10359,"2,036.00",Hazel Grove NH (Milford)
Nottinghamshire County Council,1111/1001,Adult Social Care and Health,ASCH,Third Party Payments,EGA,02/09/2022,06-10360,"2,036.00",Hazel Grove NH (Milford)
Nottinghamshire County Council,1111/1001,Adult Social Care and Health,ASCH,Third Party Payments,EGA,02/09/2022,06-10361,"2,119.71",Hazel Grove NH (Milford)
Nottinghamshire County Council,1111/1001,Adult Social Care and Health,ASCH,Third Party Payments,EGA,02/09/2022,06-10362,"7,381.84",Hegarty Care
Nottinghamshire County Council,1111/1001,Adult Social Care and Health,ASCH,Third Party Payments,EGA,02/09/2022,06-10363,"2,852.00",High Barrow Residential Home (Sunpl
Nottinghamshire County Council,1111/1001,Adult Social Care and Health,ASCH,Third Party Payments,EGA,02/09/2022,06-10364,"5,082.00",Hazel Grove NH (Milford)
Nottinghamshire County Council,1111/1001,Adult Social Care and Health,ASCH,Third Party Payments,EGA,02/09/2022,06-10365,"7,111.48",Hegarty Care
Nottinghamshire County Council,1111/1001,Adult Social Care and Health,ASCH,Third Party Payments,EGA,02/09/2022,06-10366,"3,800.00",Hatzfeld House Care Home
Nottinghamshire County Council,1111/1001,Adult Social Care and Health,ASCH,Third Party Payments,EGA,02/09/2022,06-10367,"2,336.00",Hazel Grove NH (Milford)
Nottinghamshire County Council,1111/1001,Adult Social Care and Health,ASCH,Third Party Payments,EGA,02/09/2022,06-10368,"2,022.85",Hatzfeld House Care Home
Nottinghamshire County Council,1111/1001,Adult Social Care and Health,ASCH,Third Party Payments,EGA,02/09/2022,06-10369,"2,040.00",Hazel Grove NH (Milford)
Nottinghamshire County Council,1111/1001,Adult Social Care and Health,ASCH,Third Party Payments,EGA,02/09/2022,06-10370,"6,953.36",Hegarty Care
Nottinghamshire County Council,1111/1001,Adult Social Care and Health,ASCH,Third Party Payments,EGA,02/09/2022,06-10371,"4,027.64",Hatzfeld House Care Home
Nottinghamshire County Council,1111/1001,Adult Social Care and Health,ASCH,Third Party Payments,EGA,02/09/2022,06-10372,"2,852.00",Hazel Grove NH (Milford)
Nottinghamshire County Council,1111/1001,Adult Social Care and Health,ASCH,Third Party Payments,EGA,02/09/2022,06-10373,"5,417.64",Hatzfeld House Care Home
Nottinghamshire County Council,1111/1001,Adult Social Care and Health,ASCH,Third Party Payments,EGA,02/09/2022,06-10374,"1,000.00",Hatzfeld House Care Home
Nottinghamshire County Council,1111/1001,Adult Social Care and Health,ASCH,Third Party Payments,EGA,02/09/2022,06-10375,"9,377.60",Hegarty Care
Nottinghamshire County Council,1111/1001,Adult Social Care and Health,ASCH,Third Party Payments,EGA,02/09/2022,06-10376,"1,272.00",Jubilee Court Nursing Home
Nottinghamshire County Council,1111/1001,Adult Social Care and Health,ASCH,Third Party Payments,EGA,02/09/2022,06-10377,"5,542.29",Langwith Lodge (Your Health)
Nottinghamshire County Council,1111/1001,Adult Social Care and Health,ASCH,Third Party Payments,EGA,02/09/2022,06-10378,"13,354.68",Longley Park
Nottinghamshire County Council,1111/1001,Adult Social Care and Health,ASCH,Third Party Payments,EGA,02/09/2022,06-10379,"11,902.29",Jubilee Court Nursing Home
Nottinghamshire County Council,1111/1001,Adult Social Care and Health,ASCH,Third Party Payments,EGA,02/09/2022,06-10380,"1,907.85",Kilburn Care Centre (Kilburn Care L
Nottinghamshire County Council,1111/1001,Adult Social Care and Health,ASCH,Third Party Payments,EGA,02/09/2022,06-10381,"10,943.40",Longley Park
Nottinghamshire County Council,1111/1001,Adult Social Care and Health,ASCH,Third Party Payments,EGA,02/09/2022,06-10382,"7,873.57",Leawood Manor (Runwood)
Nottinghamshire County Council,1111/1001,Adult Social Care and Health,ASCH,Third Party Payments,EGA,02/09/2022,06-10383,"10,219.71",Longley Park
Nottinghamshire County Council,1111/1001,Adult Social Care and Health,ASCH,Third Party Payments,EGA,02/09/2022,06-10384,"4,928.57",Jubilee Court Nursing Home
Nottinghamshire County Council,1111/1001,Adult Social Care and Health,ASCH,Third Party Payments,EGA,02/09/2022,06-10385,"2,488.00",Jubilee Court (Runwood)
Nottinghamshire County Council,1111/1001,Adult Social Care and Health,ASCH,Third Party Payments,EGA,02/09/2022,06-10386,"1,380.00",Jubilee Court Nursing Home
Nottinghamshire County Council,1111/1001,Adult Social Care and Health,ASCH,Third Party Payments,EGA,02/09/2022,06-10387,690.00,Jubilee Court Nursing Home
